Organisation Code,Organisation Label,Effective Date,Organisational Unit,Service Division Label,Category Internal Name,Purpose,Detailed Expenditure Code,Payment Date,Transaction Number,Irrecoverable VAT Amount,Amount,Capital Or Revenue,Beneficiary Name,Procurement Card
Http://opendatacommunities.org/id/metropolitan-district-council/leeds,Leeds City Council,31/10/2020,City Development,Libraries  Arts & Heritage,Supplies and Services,Publication And Promotion,267,07/10/2020,2010-00001,0.00,2000.00,R,A & N Media Finance Services Ltd,No
Http://opendatacommunities.org/id/metropolitan-district-council/leeds,Leeds City Council,31/10/2020,Adults and Health,Services For Older People Under 65 P/Dis,Third Party Payments,Sheltered Accommodation,569,14/10/2020,2010-00002,0.00,5400.00,R,A & V TRANSITIONAL HOMES,No
Http://opendatacommunities.org/id/metropolitan-district-council/leeds,Leeds City Council,31/10/2020,Resources and Housing,HRA Housing Leeds,Capital,OTHER COSTS,7,13/10/2020,2010-00003,0.00,100.00,C,REDACTED PERSONAL DATA,No
Http://opendatacommunities.org/id/metropolitan-district-council/leeds,Leeds City Council,31/10/2020,Resources and Housing,Leeds Building Services,Supplies and Services,Other Hired And Contracted Services,265,07/10/2020,2010-00004,0.00,36545.00,R,A Buckler (Haulage) Ltd,No
Http://opendatacommunities.org/id/metropolitan-district-council/leeds,Leeds City Council,31/10/2020,Resources and Housing,Leeds Building Services,Supplies and Services,Other Hired And Contracted Services,265,09/10/2020,2010-00005,0.00,276499.12,R,A Buckler (Haulage) Ltd,No
Http://opendatacommunities.org/id/metropolitan-district-council/leeds,Leeds City Council,31/10/2020,Resources and Housing,Leeds Building Services,Supplies and Services,Other Hired And Contracted Services,265,21/10/2020,2010-00006,0.00,1754.50,R,A Buckler (Haulage) Ltd,No
Http://opendatacommunities.org/id/metropolitan-district-council/leeds,Leeds City Council,31/10/2020,Resources and Housing,Leeds Building Services,Supplies and Services,Other Hired And Contracted Services,265,29/10/2020,2010-00007,0.00,7330.00,R,A Buckler (Haulage) Ltd,No
Http://opendatacommunities.org/id/metropolitan-district-council/leeds,Leeds City Council,31/10/2020,Resources and Housing,Leeds Building Services,Supplies and Services,Other Hired And Contracted Services,265,29/10/2020,2010-00008,0.00,14600.00,R,A Buckler (Haulage) Ltd,No
Http://opendatacommunities.org/id/metropolitan-district-council/leeds,Leeds City Council,31/10/2020,Resources and Housing,Leeds Building Services,Supplies and Services,Other Hired And Contracted Services,265,29/10/2020,2010-00009,0.00,5240.00,R,A Buckler (Haulage) Ltd,No
Http://opendatacommunities.org/id/metropolitan-district-council/leeds,Leeds City Council,31/10/2020,Children and Families,Social Care,Third Party Payments,Services Rendered By Other Organisations,511,02/10/2020,2010-00010,0.00,173.01,R,REDACTED PERSONAL DATA,No
Http://opendatacommunities.org/id/metropolitan-district-council/leeds,Leeds City Council,31/10/2020,Resources and Housing,HRA Housing Leeds,Capital,CONSTRUCTION,3,06/10/2020,2010-00011,0.00,270708.44,C,A Connolly Limited,No
Http://opendatacommunities.org/id/metropolitan-district-council/leeds,Leeds City Council,31/10/2020,Resources and Housing,Shared Services,Supplies and Services,Licences,266,21/10/2020,2010-00012,0.00,-665.00,R,A Coole Electrical Ltd,No
Http://opendatacommunities.org/id/metropolitan-district-council/leeds,Leeds City Council,31/10/2020,Resources and Housing,Leeds Building Services,Supplies and Services,Other Hired And Contracted Services,265,21/10/2020,2010-00013,0.00,125.00,R,A Coole Electrical Ltd,No
Http://opendatacommunities.org/id/metropolitan-district-council/leeds,Leeds City Council,31/10/2020,Resources and Housing,Leeds Building Services,Supplies and Services,Other Hired And Contracted Services,265,21/10/2020,2010-00014,0.00,160.00,R,A Coole Electrical Ltd,No
Http://opendatacommunities.org/id/metropolitan-district-council/leeds,Leeds City Council,31/10/2020,Resources and Housing,Leeds Building Services,Supplies and Services,Other Hired And Contracted Services,265,21/10/2020,2010-00015,0.00,1075.00,R,A Coole Electrical Ltd,No
Http://opendatacommunities.org/id/metropolitan-district-council/leeds,Leeds City Council,31/10/2020,Resources and Housing,Leeds Building Services,Supplies and Services,Other Hired And Contracted Services,265,23/10/2020,2010-00016,0.00,160.00,R,A Coole Electrical Ltd,No
Http://opendatacommunities.org/id/metropolitan-district-council/leeds,Leeds City Council,31/10/2020,Resources and Housing,Leeds Building Services,Supplies and Services,Other Hired And Contracted Services,265,30/10/2020,2010-00017,0.00,85.00,R,A Coole Electrical Ltd,No
Http://opendatacommunities.org/id/metropolitan-district-council/leeds,Leeds City Council,31/10/2020,Communities and Environment,Communities,Supplies and Services,Other Hired And Contracted Services,265,07/10/2020,2010-00018,0.00,15.00,R,A D Dumitru,No
Http://opendatacommunities.org/id/metropolitan-district-council/leeds,Leeds City Council,31/10/2020,Communities and Environment,Customer Access,Supplies and Services,Bought In Professional Services,277,08/10/2020,2010-00019,0.00,9.00,R,A D Dumitru,No
Http://opendatacommunities.org/id/metropolitan-district-council/leeds,Leeds City Council,31/10/2020,Communities and Environment,Customer Access,Supplies and Services,Bought In Professional Services,277,14/10/2020,2010-00020,0.00,40.50,R,A D Dumitru,No
Http://opendatacommunities.org/id/metropolitan-district-council/leeds,Leeds City Council,31/10/2020,Communities and Environment,Communities,Supplies and Services,Other Hired And Contracted Services,265,14/10/2020,2010-00021,0.00,75.00,R,A D Dumitru,No
Http://opendatacommunities.org/id/metropolitan-district-council/leeds,Leeds City Council,31/10/2020,Communities and Environment,Communities,Supplies and Services,Other Hired And Contracted Services,265,14/10/2020,2010-00022,0.00,25.00,R,A D Dumitru,No
Http://opendatacommunities.org/id/metropolitan-district-council/leeds,Leeds City Council,31/10/2020,Communities and Environment,Customer Access,Supplies and Services,Bought In Professional Services,277,21/10/2020,2010-00023,0.00,27.60,R,A D Dumitru,No
Http://opendatacommunities.org/id/metropolitan-district-council/leeds,Leeds City Council,31/10/2020,Communities and Environment,Customer Access,Supplies and Services,Bought In Professional Services,277,21/10/2020,2010-00024,0.00,18.00,R,A D Dumitru,No
Http://opendatacommunities.org/id/metropolitan-district-council/leeds,Leeds City Council,31/10/2020,Communities and Environment,Customer Access,Supplies and Services,Bought In Professional Services,277,21/10/2020,2010-00025,0.00,18.00,R,A D Dumitru,No
Http://opendatacommunities.org/id/metropolitan-district-council/leeds,Leeds City Council,31/10/2020,Communities and Environment,Communities,Supplies and Services,Other Hired And Contracted Services,265,27/10/2020,2010-00026,0.00,50.00,R,A D Dumitru,No
Http://opendatacommunities.org/id/metropolitan-district-council/leeds,Leeds City Council,31/10/2020,Communities and Environment,Communities,Supplies and Services,Other Hired And Contracted Services,265,27/10/2020,2010-00027,0.00,15.00,R,A D Dumitru,No
Http://opendatacommunities.org/id/metropolitan-district-council/leeds,Leeds City Council,31/10/2020,Communities and Environment,Customer Access,Supplies and Services,Bought In Professional Services,277,28/10/2020,2010-00028,0.00,18.00,R,A D Dumitru,No
Http://opendatacommunities.org/id/metropolitan-district-council/leeds,Leeds City Council,31/10/2020,Children and Families,Social Care,Third Party Payments,Services Rendered By Voluntary Sector,505,02/10/2020,2010-00029,0.00,5252.71,R,REDACTED PERSONAL DATA,No
Http://opendatacommunities.org/id/metropolitan-district-council/leeds,Leeds City Council,31/10/2020,Children and Families,Social Care,Third Party Payments,Services Rendered By Voluntary Sector,505,07/10/2020,2010-00030,0.00,1029.60,R,REDACTED PERSONAL DATA,No
Http://opendatacommunities.org/id/metropolitan-district-council/leeds,Leeds City Council,31/10/2020,Resources and Housing,HRA Housing Leeds,Capital,OTHER COSTS,7,08/10/2020,2010-00031,0.00,170.09,C,REDACTED PERSONAL DATA,No
Http://opendatacommunities.org/id/metropolitan-district-council/leeds,Leeds City Council,31/10/2020,Children and Families,Social Care,Third Party Payments,Services Rendered By Other Organisations,511,02/10/2020,2010-00032,0.00,473.04,R,REDACTED PERSONAL DATA,No
Http://opendatacommunities.org/id/metropolitan-district-council/leeds,Leeds City Council,31/10/2020,Children and Families,Social Care,Third Party Payments,Services Rendered By Other Organisations,511,07/10/2020,2010-00033,0.00,514.80,R,REDACTED PERSONAL DATA,No
Http://opendatacommunities.org/id/metropolitan-district-council/leeds,Leeds City Council,31/10/2020,Resources and Housing,HRA Housing Leeds,Capital,OTHER COSTS,7,13/10/2020,2010-00034,0.00,80.00,C,REDACTED PERSONAL DATA,No
Http://opendatacommunities.org/id/metropolitan-district-council/leeds,Leeds City Council,31/10/2020,Children and Families,Social Care,Third Party Payments,Services Rendered By Other Organisations,511,02/10/2020,2010-00035,0.00,213.52,R,REDACTED PERSONAL DATA,No
Http://opendatacommunities.org/id/metropolitan-district-council/leeds,Leeds City Council,31/10/2020,Children and Families,Social Care,Third Party Payments,Contact,548,14/10/2020,2010-00036,0.00,14.00,R,REDACTED PERSONAL DATA,No
Http://opendatacommunities.org/id/metropolitan-district-council/leeds,Leeds City Council,31/10/2020,Children and Families,Social Care,Third Party Payments,Contact,548,28/10/2020,2010-00037,0.00,14.00,R,REDACTED PERSONAL DATA,No
Http://opendatacommunities.org/id/metropolitan-district-council/leeds,Leeds City Council,31/10/2020,Children and Families,Social Care,Third Party Payments,Services Rendered By Other Organisations,511,02/10/2020,2010-00038,0.00,624.15,R,REDACTED PERSONAL DATA,No
Http://opendatacommunities.org/id/metropolitan-district-council/leeds,Leeds City Council,31/10/2020,Children and Families,Social Care,Third Party Payments,Services Rendered By Other Organisations,511,02/10/2020,2010-00039,0.00,213.52,R,REDACTED PERSONAL DATA,No
Http://opendatacommunities.org/id/metropolitan-district-council/leeds,Leeds City Council,31/10/2020,Children and Families,Social Care,Third Party Payments,Services Rendered By Other Organisations,511,07/10/2020,2010-00040,0.00,514.80,R,REDACTED PERSONAL DATA,No
Http://opendatacommunities.org/id/metropolitan-district-council/leeds,Leeds City Council,31/10/2020,Resources and Housing,Commercial Services,Supplies and Services,Other Hired And Contracted Services,265,26/10/2020,2010-00041,0.00,81.40,R,REDACTED PERSONAL DATA,No
Http://opendatacommunities.org/id/metropolitan-district-council/leeds,Leeds City Council,31/10/2020,Adults and Health,Other Generic Services,Third Party Payments,Fees To Carers,563,05/10/2020,2010-00042,0.00,393.36,R,REDACTED PERSONAL DATA,No
Http://opendatacommunities.org/id/metropolitan-district-council/leeds,Leeds City Council,31/10/2020,Adults and Health,Other Generic Services,Third Party Payments,Fees To Carers,563,16/10/2020,2010-00043,0.00,550.80,R,REDACTED PERSONAL DATA,No
Http://opendatacommunities.org/id/metropolitan-district-council/leeds,Leeds City Council,31/10/2020,Adults and Health,Other Generic Services,Third Party Payments,Fees To Carers,563,16/10/2020,2010-00044,0.00,63.00,R,REDACTED PERSONAL DATA,No
Http://opendatacommunities.org/id/metropolitan-district-council/leeds,Leeds City Council,31/10/2020,Adults and Health,Other Generic Services,Third Party Payments,Fees To Carers,563,16/10/2020,2010-00045,0.00,40.15,R,REDACTED PERSONAL DATA,No
Http://opendatacommunities.org/id/metropolitan-district-council/leeds,Leeds City Council,31/10/2020,Adults and Health,Other Generic Services,Third Party Payments,Fees To Carers,563,16/10/2020,2010-00046,0.00,40.15,R,REDACTED PERSONAL DATA,No
Http://opendatacommunities.org/id/metropolitan-district-council/leeds,Leeds City Council,31/10/2020,Adults and Health,Other Generic Services,Third Party Payments,Fees To Carers,563,30/10/2020,2010-00047,0.00,40.15,R,REDACTED PERSONAL DATA,No
Http://opendatacommunities.org/id/metropolitan-district-council/leeds,Leeds City Council,31/10/2020,Resources and Housing,Leeds Building Services,Supplies and Services,Operational Materials,205,02/10/2020,2010-00048,0.00,53.90,R,A J H  Pump Supply & Repair Ltd,No
Http://opendatacommunities.org/id/metropolitan-district-council/leeds,Leeds City Council,31/10/2020,Resources and Housing,Leeds Building Services,Supplies and Services,Operational Materials,205,02/10/2020,2010-00049,0.00,2159.00,R,A J H  Pump Supply & Repair Ltd,No
Http://opendatacommunities.org/id/metropolitan-district-council/leeds,Leeds City Council,31/10/2020,Resources and Housing,Leeds Building Services,Supplies and Services,Operational Materials,205,05/10/2020,2010-00050,0.00,974.00,R,A J H  Pump Supply & Repair Ltd,No
Http://opendatacommunities.org/id/metropolitan-district-council/leeds,Leeds City Council,31/10/2020,Resources and Housing,Leeds Building Services,Supplies and Services,Operational Materials,205,05/10/2020,2010-00051,0.00,72.31,R,A J H  Pump Supply & Repair Ltd,No
Http://opendatacommunities.org/id/metropolitan-district-council/leeds,Leeds City Council,31/10/2020,Resources and Housing,Leeds Building Services,Supplies and Services,Operational Materials,205,05/10/2020,2010-00052,0.00,97.93,R,A J H  Pump Supply & Repair Ltd,No
Http://opendatacommunities.org/id/metropolitan-district-council/leeds,Leeds City Council,31/10/2020,Resources and Housing,Leeds Building Services,Supplies and Services,Operational Materials,205,05/10/2020,2010-00053,0.00,49.00,R,A J H  Pump Supply & Repair Ltd,No
Http://opendatacommunities.org/id/metropolitan-district-council/leeds,Leeds City Council,31/10/2020,Resources and Housing,Leeds Building Services,Supplies and Services,Operational Materials,205,05/10/2020,2010-00054,0.00,94.99,R,A J H  Pump Supply & Repair Ltd,No
Http://opendatacommunities.org/id/metropolitan-district-council/leeds,Leeds City Council,31/10/2020,Resources and Housing,Leeds Building Services,Supplies and Services,Operational Materials,205,05/10/2020,2010-00055,0.00,767.73,R,A J H  Pump Supply & Repair Ltd,No
Http://opendatacommunities.org/id/metropolitan-district-council/leeds,Leeds City Council,31/10/2020,Resources and Housing,Leeds Building Services,Supplies and Services,Operational Materials,205,05/10/2020,2010-00056,0.00,68.23,R,A J H  Pump Supply & Repair Ltd,No
Http://opendatacommunities.org/id/metropolitan-district-council/leeds,Leeds City Council,31/10/2020,Resources and Housing,Leeds Building Services,Supplies and Services,Operational Materials,205,05/10/2020,2010-00057,0.00,52.47,R,A J H  Pump Supply & Repair Ltd,No
Http://opendatacommunities.org/id/metropolitan-district-council/leeds,Leeds City Council,31/10/2020,Resources and Housing,Leeds Building Services,Supplies and Services,Operational Materials,205,05/10/2020,2010-00058,0.00,70.25,R,A J H  Pump Supply & Repair Ltd,No
Http://opendatacommunities.org/id/metropolitan-district-council/leeds,Leeds City Council,31/10/2020,Resources and Housing,Leeds Building Services,Supplies and Services,Operational Materials,205,05/10/2020,2010-00059,0.00,344.61,R,A J H  Pump Supply & Repair Ltd,No
Http://opendatacommunities.org/id/metropolitan-district-council/leeds,Leeds City Council,31/10/2020,Resources and Housing,Leeds Building Services,Supplies and Services,Operational Materials,205,05/10/2020,2010-00060,0.00,64.88,R,A J H  Pump Supply & Repair Ltd,No
Http://opendatacommunities.org/id/metropolitan-district-council/leeds,Leeds City Council,31/10/2020,Resources and Housing,Leeds Building Services,Supplies and Services,Operational Materials,205,05/10/2020,2010-00061,0.00,90.00,R,A J H  Pump Supply & Repair Ltd,No
Http://opendatacommunities.org/id/metropolitan-district-council/leeds,Leeds City Council,31/10/2020,Resources and Housing,Leeds Building Services,Supplies and Services,Operational Materials,205,05/10/2020,2010-00062,0.00,75.00,R,A J H  Pump Supply & Repair Ltd,No
Http://opendatacommunities.org/id/metropolitan-district-council/leeds,Leeds City Council,31/10/2020,Resources and Housing,Leeds Building Services,Supplies and Services,Operational Materials,205,05/10/2020,2010-00063,0.00,245.00,R,A J H  Pump Supply & Repair Ltd,No
Http://opendatacommunities.org/id/metropolitan-district-council/leeds,Leeds City Council,31/10/2020,Resources and Housing,Leeds Building Services,Supplies and Services,Operational Materials,205,05/10/2020,2010-00064,0.00,22.84,R,A J H  Pump Supply & Repair Ltd,No
Http://opendatacommunities.org/id/metropolitan-district-council/leeds,Leeds City Council,31/10/2020,Resources and Housing,Leeds Building Services,Supplies and Services,Operational Materials,205,05/10/2020,2010-00065,0.00,329.43,R,A J H  Pump Supply & Repair Ltd,No
Http://opendatacommunities.org/id/metropolitan-district-council/leeds,Leeds City Council,31/10/2020,Resources and Housing,Leeds Building Services,Supplies and Services,Operational Materials,205,05/10/2020,2010-00066,0.00,369.00,R,A J H  Pump Supply & Repair Ltd,No
Http://opendatacommunities.org/id/metropolitan-district-council/leeds,Leeds City Council,31/10/2020,Resources and Housing,Leeds Building Services,Supplies and Services,Operational Materials,205,05/10/2020,2010-00067,0.00,248.65,R,A J H  Pump Supply & Repair Ltd,No
Http://opendatacommunities.org/id/metropolitan-district-council/leeds,Leeds City Council,31/10/2020,Resources and Housing,Leeds Building Services,Supplies and Services,Operational Materials,205,05/10/2020,2010-00068,0.00,1573.00,R,A J H  Pump Supply & Repair Ltd,No
Http://opendatacommunities.org/id/metropolitan-district-council/leeds,Leeds City Council,31/10/2020,Resources and Housing,Leeds Building Services,Supplies and Services,Operational Materials,205,09/10/2020,2010-00069,0.00,675.00,R,A J H  Pump Supply & Repair Ltd,No
Http://opendatacommunities.org/id/metropolitan-district-council/leeds,Leeds City Council,31/10/2020,Resources and Housing,Leeds Building Services,Supplies and Services,Operational Materials,205,09/10/2020,2010-00070,0.00,416.00,R,A J H  Pump Supply & Repair Ltd,No
Http://opendatacommunities.org/id/metropolitan-district-council/leeds,Leeds City Council,31/10/2020,Resources and Housing,Leeds Building Services,Supplies and Services,Operational Materials,205,09/10/2020,2010-00071,0.00,85.00,R,A J H  Pump Supply & Repair Ltd,No
Http://opendatacommunities.org/id/metropolitan-district-council/leeds,Leeds City Council,31/10/2020,Resources and Housing,Leeds Building Services,Supplies and Services,Operational Materials,205,09/10/2020,2010-00072,0.00,35.00,R,A J H  Pump Supply & Repair Ltd,No
Http://opendatacommunities.org/id/metropolitan-district-council/leeds,Leeds City Council,31/10/2020,Resources and Housing,Leeds Building Services,Supplies and Services,Operational Materials,205,09/10/2020,2010-00073,0.00,407.67,R,A J H  Pump Supply & Repair Ltd,No
Http://opendatacommunities.org/id/metropolitan-district-council/leeds,Leeds City Council,31/10/2020,Resources and Housing,Leeds Building Services,Supplies and Services,Operational Materials,205,09/10/2020,2010-00074,0.00,125.00,R,A J H  Pump Supply & Repair Ltd,No
Http://opendatacommunities.org/id/metropolitan-district-council/leeds,Leeds City Council,31/10/2020,Resources and Housing,Leeds Building Services,Supplies and Services,Operational Materials,205,09/10/2020,2010-00075,0.00,150.70,R,A J H  Pump Supply & Repair Ltd,No
Http://opendatacommunities.org/id/metropolitan-district-council/leeds,Leeds City Council,31/10/2020,Resources and Housing,Leeds Building Services,Supplies and Services,Operational Materials,205,09/10/2020,2010-00076,0.00,41.26,R,A J H  Pump Supply & Repair Ltd,No
Http://opendatacommunities.org/id/metropolitan-district-council/leeds,Leeds City Council,31/10/2020,Resources and Housing,Leeds Building Services,Supplies and Services,Operational Materials,205,09/10/2020,2010-00077,0.00,106.75,R,A J H  Pump Supply & Repair Ltd,No
Http://opendatacommunities.org/id/metropolitan-district-council/leeds,Leeds City Council,31/10/2020,Resources and Housing,Leeds Building Services,Supplies and Services,Operational Materials,205,09/10/2020,2010-00078,0.00,254.27,R,A J H  Pump Supply & Repair Ltd,No
Http://opendatacommunities.org/id/metropolitan-district-council/leeds,Leeds City Council,31/10/2020,Resources and Housing,Leeds Building Services,Supplies and Services,Operational Materials,205,09/10/2020,2010-00079,0.00,192.00,R,A J H  Pump Supply & Repair Ltd,No
Http://opendatacommunities.org/id/metropolitan-district-council/leeds,Leeds City Council,31/10/2020,Resources and Housing,Leeds Building Services,Supplies and Services,Operational Materials,205,09/10/2020,2010-00080,0.00,70.00,R,A J H  Pump Supply & Repair Ltd,No
Http://opendatacommunities.org/id/metropolitan-district-council/leeds,Leeds City Council,31/10/2020,Resources and Housing,Leeds Building Services,Supplies and Services,Operational Materials,205,09/10/2020,2010-00081,0.00,297.91,R,A J H  Pump Supply & Repair Ltd,No
Http://opendatacommunities.org/id/metropolitan-district-council/leeds,Leeds City Council,31/10/2020,Resources and Housing,Leeds Building Services,Supplies and Services,Operational Materials,205,09/10/2020,2010-00082,0.00,47.21,R,A J H  Pump Supply & Repair Ltd,No
Http://opendatacommunities.org/id/metropolitan-district-council/leeds,Leeds City Council,31/10/2020,Resources and Housing,Leeds Building Services,Supplies and Services,Operational Materials,205,09/10/2020,2010-00083,0.00,18.50,R,A J H  Pump Supply & Repair Ltd,No
Http://opendatacommunities.org/id/metropolitan-district-council/leeds,Leeds City Council,31/10/2020,Resources and Housing,Leeds Building Services,Supplies and Services,Operational Materials,205,09/10/2020,2010-00084,0.00,380.95,R,A J H  Pump Supply & Repair Ltd,No
Http://opendatacommunities.org/id/metropolitan-district-council/leeds,Leeds City Council,31/10/2020,Resources and Housing,Leeds Building Services,Supplies and Services,Operational Materials,205,09/10/2020,2010-00085,0.00,273.00,R,A J H  Pump Supply & Repair Ltd,No
Http://opendatacommunities.org/id/metropolitan-district-council/leeds,Leeds City Council,31/10/2020,Resources and Housing,Leeds Building Services,Supplies and Services,Operational Materials,205,09/10/2020,2010-00086,0.00,300.95,R,A J H  Pump Supply & Repair Ltd,No
Http://opendatacommunities.org/id/metropolitan-district-council/leeds,Leeds City Council,31/10/2020,Resources and Housing,Leeds Building Services,Supplies and Services,Operational Materials,205,09/10/2020,2010-00087,0.00,372.85,R,A J H  Pump Supply & Repair Ltd,No
Http://opendatacommunities.org/id/metropolitan-district-council/leeds,Leeds City Council,31/10/2020,Resources and Housing,Leeds Building Services,Supplies and Services,Operational Materials,205,09/10/2020,2010-00088,0.00,430.36,R,A J H  Pump Supply & Repair Ltd,No
Http://opendatacommunities.org/id/metropolitan-district-council/leeds,Leeds City Council,31/10/2020,Resources and Housing,Leeds Building Services,Supplies and Services,Operational Materials,205,09/10/2020,2010-00089,0.00,244.68,R,A J H  Pump Supply & Repair Ltd,No
Http://opendatacommunities.org/id/metropolitan-district-council/leeds,Leeds City Council,31/10/2020,Resources and Housing,Leeds Building Services,Supplies and Services,Operational Materials,205,09/10/2020,2010-00090,0.00,56.16,R,A J H  Pump Supply & Repair Ltd,No
Http://opendatacommunities.org/id/metropolitan-district-council/leeds,Leeds City Council,31/10/2020,Resources and Housing,Leeds Building Services,Supplies and Services,Operational Materials,205,09/10/2020,2010-00091,0.00,74.18,R,A J H  Pump Supply & Repair Ltd,No
Http://opendatacommunities.org/id/metropolitan-district-council/leeds,Leeds City Council,31/10/2020,Resources and Housing,Leeds Building Services,Supplies and Services,Operational Materials,205,09/10/2020,2010-00092,0.00,249.00,R,A J H  Pump Supply & Repair Ltd,No
Http://opendatacommunities.org/id/metropolitan-district-council/leeds,Leeds City Council,31/10/2020,Resources and Housing,Leeds Building Services,Supplies and Services,Operational Materials,205,09/10/2020,2010-00093,0.00,107.50,R,A J H  Pump Supply & Repair Ltd,No
Http://opendatacommunities.org/id/metropolitan-district-council/leeds,Leeds City Council,31/10/2020,Resources and Housing,Leeds Building Services,Supplies and Services,Operational Materials,205,09/10/2020,2010-00094,0.00,64.94,R,A J H  Pump Supply & Repair Ltd,No
Http://opendatacommunities.org/id/metropolitan-district-council/leeds,Leeds City Council,31/10/2020,Resources and Housing,Leeds Building Services,Supplies and Services,Operational Materials,205,09/10/2020,2010-00095,0.00,39.70,R,A J H  Pump Supply & Repair Ltd,No
Http://opendatacommunities.org/id/metropolitan-district-council/leeds,Leeds City Council,31/10/2020,Resources and Housing,Leeds Building Services,Supplies and Services,Operational Materials,205,09/10/2020,2010-00096,0.00,33.49,R,A J H  Pump Supply & Repair Ltd,No
Http://opendatacommunities.org/id/metropolitan-district-council/leeds,Leeds City Council,31/10/2020,Resources and Housing,Leeds Building Services,Supplies and Services,Operational Materials,205,09/10/2020,2010-00097,0.00,32.50,R,A J H  Pump Supply & Repair Ltd,No
Http://opendatacommunities.org/id/metropolitan-district-council/leeds,Leeds City Council,31/10/2020,Resources and Housing,Leeds Building Services,Supplies and Services,Operational Materials,205,09/10/2020,2010-00098,0.00,35.74,R,A J H  Pump Supply & Repair Ltd,No
Http://opendatacommunities.org/id/metropolitan-district-council/leeds,Leeds City Council,31/10/2020,Resources and Housing,Leeds Building Services,Supplies and Services,Operational Materials,205,09/10/2020,2010-00099,0.00,49.15,R,A J H  Pump Supply & Repair Ltd,No
Http://opendatacommunities.org/id/metropolitan-district-council/leeds,Leeds City Council,31/10/2020,Resources and Housing,Leeds Building Services,Supplies and Services,Operational Materials,205,09/10/2020,2010-00100,0.00,238.50,R,A J H  Pump Supply & Repair Ltd,No
Http://opendatacommunities.org/id/metropolitan-district-council/leeds,Leeds City Council,31/10/2020,Resources and Housing,Leeds Building Services,Supplies and Services,Operational Materials,205,09/10/2020,2010-00101,0.00,178.00,R,A J H  Pump Supply & Repair Ltd,No
Http://opendatacommunities.org/id/metropolitan-district-council/leeds,Leeds City Council,31/10/2020,Resources and Housing,Leeds Building Services,Supplies and Services,Operational Materials,205,09/10/2020,2010-00102,0.00,67.42,R,A J H  Pump Supply & Repair Ltd,No
Http://opendatacommunities.org/id/metropolitan-district-council/leeds,Leeds City Council,31/10/2020,Resources and Housing,Leeds Building Services,Supplies and Services,Operational Materials,205,09/10/2020,2010-00103,0.00,38.15,R,A J H  Pump Supply & Repair Ltd,No
Http://opendatacommunities.org/id/metropolitan-district-council/leeds,Leeds City Council,31/10/2020,Resources and Housing,Leeds Building Services,Supplies and Services,Operational Materials,205,09/10/2020,2010-00104,0.00,808.97,R,A J H  Pump Supply & Repair Ltd,No
Http://opendatacommunities.org/id/metropolitan-district-council/leeds,Leeds City Council,31/10/2020,Resources and Housing,Leeds Building Services,Supplies and Services,Operational Materials,205,09/10/2020,2010-00105,0.00,929.85,R,A J H  Pump Supply & Repair Ltd,No
Http://opendatacommunities.org/id/metropolitan-district-council/leeds,Leeds City Council,31/10/2020,Resources and Housing,Leeds Building Services,Supplies and Services,Operational Materials,205,09/10/2020,2010-00106,0.00,285.00,R,A J H  Pump Supply & Repair Ltd,No
Http://opendatacommunities.org/id/metropolitan-district-council/leeds,Leeds City Council,31/10/2020,Resources and Housing,Leeds Building Services,Supplies and Services,Operational Materials,205,09/10/2020,2010-00107,0.00,548.00,R,A J H  Pump Supply & Repair Ltd,No
Http://opendatacommunities.org/id/metropolitan-district-council/leeds,Leeds City Council,31/10/2020,Resources and Housing,Leeds Building Services,Supplies and Services,Operational Materials,205,09/10/2020,2010-00108,0.00,18.60,R,A J H  Pump Supply & Repair Ltd,No
Http://opendatacommunities.org/id/metropolitan-district-council/leeds,Leeds City Council,31/10/2020,Resources and Housing,Leeds Building Services,Supplies and Services,Operational Materials,205,09/10/2020,2010-00109,0.00,55.70,R,A J H  Pump Supply & Repair Ltd,No
Http://opendatacommunities.org/id/metropolitan-district-council/leeds,Leeds City Council,31/10/2020,Resources and Housing,Leeds Building Services,Supplies and Services,Operational Materials,205,09/10/2020,2010-00110,0.00,40.80,R,A J H  Pump Supply & Repair Ltd,No
Http://opendatacommunities.org/id/metropolitan-district-council/leeds,Leeds City Council,31/10/2020,Resources and Housing,Leeds Building Services,Supplies and Services,Operational Materials,205,09/10/2020,2010-00111,0.00,132.82,R,A J H  Pump Supply & Repair Ltd,No
Http://opendatacommunities.org/id/metropolitan-district-council/leeds,Leeds City Council,31/10/2020,Resources and Housing,Leeds Building Services,Supplies and Services,Operational Materials,205,09/10/2020,2010-00112,0.00,112.64,R,A J H  Pump Supply & Repair Ltd,No
Http://opendatacommunities.org/id/metropolitan-district-council/leeds,Leeds City Council,31/10/2020,Resources and Housing,Leeds Building Services,Supplies and Services,Operational Materials,205,09/10/2020,2010-00113,0.00,398.32,R,A J H  Pump Supply & Repair Ltd,No
Http://opendatacommunities.org/id/metropolitan-district-council/leeds,Leeds City Council,31/10/2020,Resources and Housing,Leeds Building Services,Supplies and Services,Operational Materials,205,09/10/2020,2010-00114,0.00,98.96,R,A J H  Pump Supply & Repair Ltd,No
Http://opendatacommunities.org/id/metropolitan-district-council/leeds,Leeds City Council,31/10/2020,Resources and Housing,Leeds Building Services,Supplies and Services,Operational Materials,205,09/10/2020,2010-00115,0.00,17.40,R,A J H  Pump Supply & Repair Ltd,No
Http://opendatacommunities.org/id/metropolitan-district-council/leeds,Leeds City Council,31/10/2020,Resources and Housing,Leeds Building Services,Supplies and Services,Operational Materials,205,09/10/2020,2010-00116,0.00,38.20,R,A J H  Pump Supply & Repair Ltd,No
Http://opendatacommunities.org/id/metropolitan-district-council/leeds,Leeds City Council,31/10/2020,Resources and Housing,Leeds Building Services,Supplies and Services,Operational Materials,205,09/10/2020,2010-00117,0.00,436.50,R,A J H  Pump Supply & Repair Ltd,No
Http://opendatacommunities.org/id/metropolitan-district-council/leeds,Leeds City Council,31/10/2020,Resources and Housing,Leeds Building Services,Supplies and Services,Operational Materials,205,09/10/2020,2010-00118,0.00,231.00,R,A J H  Pump Supply & Repair Ltd,No
Http://opendatacommunities.org/id/metropolitan-district-council/leeds,Leeds City Council,31/10/2020,Resources and Housing,Leeds Building Services,Supplies and Services,Operational Materials,205,09/10/2020,2010-00119,0.00,958.00,R,A J H  Pump Supply & Repair Ltd,No
Http://opendatacommunities.org/id/metropolitan-district-council/leeds,Leeds City Council,31/10/2020,Resources and Housing,Leeds Building Services,Supplies and Services,Operational Materials,205,20/10/2020,2010-00120,0.00,4.49,R,A J H  Pump Supply & Repair Ltd,No
Http://opendatacommunities.org/id/metropolitan-district-council/leeds,Leeds City Council,31/10/2020,Resources and Housing,Leeds Building Services,Supplies and Services,Operational Materials,205,20/10/2020,2010-00121,0.00,376.66,R,A J H  Pump Supply & Repair Ltd,No
Http://opendatacommunities.org/id/metropolitan-district-council/leeds,Leeds City Council,31/10/2020,Resources and Housing,Leeds Building Services,Supplies and Services,Operational Materials,205,20/10/2020,2010-00122,0.00,311.00,R,A J H  Pump Supply & Repair Ltd,No
Http://opendatacommunities.org/id/metropolitan-district-council/leeds,Leeds City Council,31/10/2020,Resources and Housing,Leeds Building Services,Supplies and Services,Operational Materials,205,20/10/2020,2010-00123,0.00,427.17,R,A J H  Pump Supply & Repair Ltd,No
Http://opendatacommunities.org/id/metropolitan-district-council/leeds,Leeds City Council,31/10/2020,Resources and Housing,Leeds Building Services,Supplies and Services,Operational Materials,205,20/10/2020,2010-00124,0.00,9.25,R,A J H  Pump Supply & Repair Ltd,No
Http://opendatacommunities.org/id/metropolitan-district-council/leeds,Leeds City Council,31/10/2020,Resources and Housing,Leeds Building Services,Supplies and Services,Operational Materials,205,20/10/2020,2010-00125,0.00,17.50,R,A J H  Pump Supply & Repair Ltd,No
Http://opendatacommunities.org/id/metropolitan-district-council/leeds,Leeds City Council,31/10/2020,Resources and Housing,Leeds Building Services,Supplies and Services,Operational Materials,205,20/10/2020,2010-00126,0.00,90.99,R,A J H  Pump Supply & Repair Ltd,No
Http://opendatacommunities.org/id/metropolitan-district-council/leeds,Leeds City Council,31/10/2020,Resources and Housing,Leeds Building Services,Supplies and Services,Operational Materials,205,20/10/2020,2010-00127,0.00,74.99,R,A J H  Pump Supply & Repair Ltd,No
Http://opendatacommunities.org/id/metropolitan-district-council/leeds,Leeds City Council,31/10/2020,Resources and Housing,Leeds Building Services,Supplies and Services,Operational Materials,205,20/10/2020,2010-00128,0.00,90.61,R,A J H  Pump Supply & Repair Ltd,No
Http://opendatacommunities.org/id/metropolitan-district-council/leeds,Leeds City Council,31/10/2020,Resources and Housing,Leeds Building Services,Supplies and Services,Operational Materials,205,20/10/2020,2010-00129,0.00,69.25,R,A J H  Pump Supply & Repair Ltd,No
Http://opendatacommunities.org/id/metropolitan-district-council/leeds,Leeds City Council,31/10/2020,Resources and Housing,Leeds Building Services,Supplies and Services,Operational Materials,205,20/10/2020,2010-00130,0.00,624.95,R,A J H  Pump Supply & Repair Ltd,No
Http://opendatacommunities.org/id/metropolitan-district-council/leeds,Leeds City Council,31/10/2020,Resources and Housing,Leeds Building Services,Supplies and Services,Operational Materials,205,20/10/2020,2010-00131,0.00,185.00,R,A J H  Pump Supply & Repair Ltd,No
Http://opendatacommunities.org/id/metropolitan-district-council/leeds,Leeds City Council,31/10/2020,Resources and Housing,Leeds Building Services,Supplies and Services,Operational Materials,205,20/10/2020,2010-00132,0.00,179.55,R,A J H  Pump Supply & Repair Ltd,No
Http://opendatacommunities.org/id/metropolitan-district-council/leeds,Leeds City Council,31/10/2020,Resources and Housing,Leeds Building Services,Supplies and Services,Operational Materials,205,20/10/2020,2010-00133,0.00,151.45,R,A J H  Pump Supply & Repair Ltd,No
Http://opendatacommunities.org/id/metropolitan-district-council/leeds,Leeds City Council,31/10/2020,Resources and Housing,Leeds Building Services,Supplies and Services,Operational Materials,205,20/10/2020,2010-00134,0.00,158.17,R,A J H  Pump Supply & Repair Ltd,No
Http://opendatacommunities.org/id/metropolitan-district-council/leeds,Leeds City Council,31/10/2020,Resources and Housing,Leeds Building Services,Supplies and Services,Operational Materials,205,20/10/2020,2010-00135,0.00,30.42,R,A J H  Pump Supply & Repair Ltd,No
Http://opendatacommunities.org/id/metropolitan-district-council/leeds,Leeds City Council,31/10/2020,Resources and Housing,Leeds Building Services,Supplies and Services,Operational Materials,205,20/10/2020,2010-00136,0.00,517.19,R,A J H  Pump Supply & Repair Ltd,No
Http://opendatacommunities.org/id/metropolitan-district-council/leeds,Leeds City Council,31/10/2020,Resources and Housing,Leeds Building Services,Supplies and Services,Operational Materials,205,20/10/2020,2010-00137,0.00,248.76,R,A J H  Pump Supply & Repair Ltd,No
Http://opendatacommunities.org/id/metropolitan-district-council/leeds,Leeds City Council,31/10/2020,Resources and Housing,Leeds Building Services,Supplies and Services,Operational Materials,205,20/10/2020,2010-00138,0.00,176.23,R,A J H  Pump Supply & Repair Ltd,No
Http://opendatacommunities.org/id/metropolitan-district-council/leeds,Leeds City Council,31/10/2020,Resources and Housing,Leeds Building Services,Supplies and Services,Operational Materials,205,21/10/2020,2010-00139,0.00,315.00,R,A J H  Pump Supply & Repair Ltd,No
Http://opendatacommunities.org/id/metropolitan-district-council/leeds,Leeds City Council,31/10/2020,Resources and Housing,Leeds Building Services,Supplies and Services,Operational Materials,205,21/10/2020,2010-00140,0.00,835.00,R,A J H  Pump Supply & Repair Ltd,No
Http://opendatacommunities.org/id/metropolitan-district-council/leeds,Leeds City Council,31/10/2020,Resources and Housing,Leeds Building Services,Supplies and Services,Operational Materials,205,21/10/2020,2010-00141,0.00,29.99,R,A J H  Pump Supply & Repair Ltd,No
Http://opendatacommunities.org/id/metropolitan-district-council/leeds,Leeds City Council,31/10/2020,Resources and Housing,Leeds Building Services,Supplies and Services,Operational Materials,205,22/10/2020,2010-00142,0.00,1090.00,R,A J H  Pump Supply & Repair Ltd,No
Http://opendatacommunities.org/id/metropolitan-district-council/leeds,Leeds City Council,31/10/2020,Resources and Housing,Leeds Building Services,Supplies and Services,Operational Materials,205,22/10/2020,2010-00143,0.00,798.00,R,A J H  Pump Supply & Repair Ltd,No
Http://opendatacommunities.org/id/metropolitan-district-council/leeds,Leeds City Council,31/10/2020,Resources and Housing,Leeds Building Services,Supplies and Services,Operational Materials,205,22/10/2020,2010-00144,0.00,179.00,R,A J H  Pump Supply & Repair Ltd,No
Http://opendatacommunities.org/id/metropolitan-district-council/leeds,Leeds City Council,31/10/2020,Resources and Housing,Leeds Building Services,Supplies and Services,Operational Materials,205,30/10/2020,2010-00145,0.00,646.37,R,A J H  Pump Supply & Repair Ltd,No
Http://opendatacommunities.org/id/metropolitan-district-council/leeds,Leeds City Council,31/10/2020,Resources and Housing,Leeds Building Services,Supplies and Services,Operational Materials,205,30/10/2020,2010-00146,0.00,13.45,R,A J H  Pump Supply & Repair Ltd,No
Http://opendatacommunities.org/id/metropolitan-district-council/leeds,Leeds City Council,31/10/2020,Resources and Housing,Leeds Building Services,Supplies and Services,Operational Materials,205,30/10/2020,2010-00147,0.00,398.64,R,A J H  Pump Supply & Repair Ltd,No
Http://opendatacommunities.org/id/metropolitan-district-council/leeds,Leeds City Council,31/10/2020,Resources and Housing,Leeds Building Services,Supplies and Services,Operational Materials,205,30/10/2020,2010-00148,0.00,291.00,R,A J H  Pump Supply & Repair Ltd,No
Http://opendatacommunities.org/id/metropolitan-district-council/leeds,Leeds City Council,31/10/2020,Resources and Housing,Leeds Building Services,Supplies and Services,Operational Materials,205,30/10/2020,2010-00149,0.00,372.00,R,A J H  Pump Supply & Repair Ltd,No
Http://opendatacommunities.org/id/metropolitan-district-council/leeds,Leeds City Council,31/10/2020,Resources and Housing,Leeds Building Services,Supplies and Services,Operational Materials,205,30/10/2020,2010-00150,0.00,980.00,R,A J H  Pump Supply & Repair Ltd,No
Http://opendatacommunities.org/id/metropolitan-district-council/leeds,Leeds City Council,31/10/2020,Resources and Housing,Leeds Building Services,Supplies and Services,Operational Materials,205,30/10/2020,2010-00151,0.00,169.95,R,A J H  Pump Supply & Repair Ltd,No
Http://opendatacommunities.org/id/metropolitan-district-council/leeds,Leeds City Council,31/10/2020,Resources and Housing,Leeds Building Services,Supplies and Services,Operational Materials,205,30/10/2020,2010-00152,0.00,6.95,R,A J H  Pump Supply & Repair Ltd,No
Http://opendatacommunities.org/id/metropolitan-district-council/leeds,Leeds City Council,31/10/2020,Resources and Housing,Leeds Building Services,Supplies and Services,Operational Materials,205,30/10/2020,2010-00153,0.00,433.00,R,A J H  Pump Supply & Repair Ltd,No
Http://opendatacommunities.org/id/metropolitan-district-council/leeds,Leeds City Council,31/10/2020,Resources and Housing,Leeds Building Services,Supplies and Services,Operational Materials,205,30/10/2020,2010-00154,0.00,453.75,R,A J H  Pump Supply & Repair Ltd,No
Http://opendatacommunities.org/id/metropolitan-district-council/leeds,Leeds City Council,31/10/2020,Resources and Housing,Leeds Building Services,Supplies and Services,Operational Materials,205,30/10/2020,2010-00155,0.00,214.74,R,A J H  Pump Supply & Repair Ltd,No
Http://opendatacommunities.org/id/metropolitan-district-council/leeds,Leeds City Council,31/10/2020,Resources and Housing,Leeds Building Services,Supplies and Services,Operational Materials,205,30/10/2020,2010-00156,0.00,53.26,R,A J H  Pump Supply & Repair Ltd,No
Http://opendatacommunities.org/id/metropolitan-district-council/leeds,Leeds City Council,31/10/2020,Resources and Housing,Leeds Building Services,Supplies and Services,Operational Materials,205,30/10/2020,2010-00157,0.00,195.00,R,A J H  Pump Supply & Repair Ltd,No
Http://opendatacommunities.org/id/metropolitan-district-council/leeds,Leeds City Council,31/10/2020,Resources and Housing,Leeds Building Services,Supplies and Services,Operational Materials,205,30/10/2020,2010-00158,0.00,65.00,R,A J H  Pump Supply & Repair Ltd,No
Http://opendatacommunities.org/id/metropolitan-district-council/leeds,Leeds City Council,31/10/2020,Resources and Housing,Leeds Building Services,Supplies and Services,Operational Materials,205,30/10/2020,2010-00159,0.00,47.38,R,A J H  Pump Supply & Repair Ltd,No
Http://opendatacommunities.org/id/metropolitan-district-council/leeds,Leeds City Council,31/10/2020,Resources and Housing,Leeds Building Services,Supplies and Services,Operational Materials,205,30/10/2020,2010-00160,0.00,201.00,R,A J H  Pump Supply & Repair Ltd,No
Http://opendatacommunities.org/id/metropolitan-district-council/leeds,Leeds City Council,31/10/2020,Resources and Housing,Leeds Building Services,Supplies and Services,Operational Materials,205,30/10/2020,2010-00161,0.00,147.00,R,A J H  Pump Supply & Repair Ltd,No
Http://opendatacommunities.org/id/metropolitan-district-council/leeds,Leeds City Council,31/10/2020,Resources and Housing,Leeds Building Services,Supplies and Services,Operational Materials,205,30/10/2020,2010-00162,0.00,62.78,R,A J H  Pump Supply & Repair Ltd,No
Http://opendatacommunities.org/id/metropolitan-district-council/leeds,Leeds City Council,31/10/2020,Resources and Housing,Leeds Building Services,Supplies and Services,Operational Materials,205,30/10/2020,2010-00163,0.00,146.12,R,A J H  Pump Supply & Repair Ltd,No
Http://opendatacommunities.org/id/metropolitan-district-council/leeds,Leeds City Council,31/10/2020,Resources and Housing,Leeds Building Services,Supplies and Services,Operational Materials,205,30/10/2020,2010-00164,0.00,895.00,R,A J H  Pump Supply & Repair Ltd,No
Http://opendatacommunities.org/id/metropolitan-district-council/leeds,Leeds City Council,31/10/2020,Resources and Housing,Leeds Building Services,Supplies and Services,Operational Materials,205,30/10/2020,2010-00165,0.00,40.00,R,A J H  Pump Supply & Repair Ltd,No
Http://opendatacommunities.org/id/metropolitan-district-council/leeds,Leeds City Council,31/10/2020,Resources and Housing,Leeds Building Services,Supplies and Services,Operational Materials,205,30/10/2020,2010-00166,0.00,50.00,R,A J H  Pump Supply & Repair Ltd,No
Http://opendatacommunities.org/id/metropolitan-district-council/leeds,Leeds City Council,31/10/2020,Resources and Housing,Leeds Building Services,Supplies and Services,Operational Materials,205,30/10/2020,2010-00167,0.00,41.00,R,A J H  Pump Supply & Repair Ltd,No
Http://opendatacommunities.org/id/metropolitan-district-council/leeds,Leeds City Council,31/10/2020,Resources and Housing,Leeds Building Services,Supplies and Services,Operational Materials,205,30/10/2020,2010-00168,0.00,302.95,R,A J H  Pump Supply & Repair Ltd,No
Http://opendatacommunities.org/id/metropolitan-district-council/leeds,Leeds City Council,31/10/2020,Resources and Housing,Leeds Building Services,Supplies and Services,Operational Materials,205,30/10/2020,2010-00169,0.00,281.00,R,A J H  Pump Supply & Repair Ltd,No
Http://opendatacommunities.org/id/metropolitan-district-council/leeds,Leeds City Council,31/10/2020,City Development,Libraries  Arts & Heritage,Supplies and Services,ART GALLERIES TOTAL STORES,3,23/10/2020,2010-00170,0.00,216.00,R,A J PROMOTIONS,No
Http://opendatacommunities.org/id/metropolitan-district-council/leeds,Leeds City Council,31/10/2020,Children and Families,Social Care,Third Party Payments,Services Rendered By Other Organisations,511,02/10/2020,2010-00171,0.00,2064.07,R,REDACTED PERSONAL DATA,No
Http://opendatacommunities.org/id/metropolitan-district-council/leeds,Leeds City Council,31/10/2020,Children and Families,Social Care,Third Party Payments,Services Rendered By Other Organisations,511,07/10/2020,2010-00172,0.00,686.40,R,REDACTED PERSONAL DATA,No
Http://opendatacommunities.org/id/metropolitan-district-council/leeds,Leeds City Council,31/10/2020,Children and Families,Social Care,Third Party Payments,Contact,548,26/10/2020,2010-00173,0.00,32.00,R,REDACTED PERSONAL DATA,No
Http://opendatacommunities.org/id/metropolitan-district-council/leeds,Leeds City Council,31/10/2020,Resources and Housing,HRA Housing Leeds,Capital,OTHER COSTS,7,22/10/2020,2010-00174,0.00,80.00,C,REDACTED PERSONAL DATA,No
Http://opendatacommunities.org/id/metropolitan-district-council/leeds,Leeds City Council,31/10/2020,Communities and Environment,Customer Access,Supplies and Services,Bought In Professional Services,277,08/10/2020,2010-00175,0.00,18.00,R,A MOHAMMED,No
Http://opendatacommunities.org/id/metropolitan-district-council/leeds,Leeds City Council,31/10/2020,Communities and Environment,Customer Access,Supplies and Services,Bought In Professional Services,277,14/10/2020,2010-00176,0.00,18.00,R,A MOHAMMED,No
Http://opendatacommunities.org/id/metropolitan-district-council/leeds,Leeds City Council,31/10/2020,Communities and Environment,Customer Access,Supplies and Services,Bought In Professional Services,277,14/10/2020,2010-00177,0.00,18.00,R,A MOHAMMED,No
Http://opendatacommunities.org/id/metropolitan-district-council/leeds,Leeds City Council,31/10/2020,Resources and Housing,HRA Housing Leeds,Capital,OTHER COSTS,7,20/10/2020,2010-00178,0.00,100.00,C,REDACTED PERSONAL DATA,No
Http://opendatacommunities.org/id/metropolitan-district-council/leeds,Leeds City Council,31/10/2020,Communities and Environment,Customer Access,Supplies and Services,Bought In Professional Services,277,21/10/2020,2010-00179,0.00,27.00,R,A MOHAMMED,No
Http://opendatacommunities.org/id/metropolitan-district-council/leeds,Leeds City Council,31/10/2020,Communities and Environment,Customer Access,Supplies and Services,Bought In Professional Services,277,21/10/2020,2010-00180,0.00,9.00,R,A MOHAMMED,No
Http://opendatacommunities.org/id/metropolitan-district-council/leeds,Leeds City Council,31/10/2020,Communities and Environment,Customer Access,Supplies and Services,Bought In Professional Services,277,21/10/2020,2010-00181,0.00,36.00,R,A MOHAMMED,No
Http://opendatacommunities.org/id/metropolitan-district-council/leeds,Leeds City Council,31/10/2020,Communities and Environment,Customer Access,Supplies and Services,Bought In Professional Services,277,21/10/2020,2010-00182,0.00,13.50,R,A MOHAMMED,No
Http://opendatacommunities.org/id/metropolitan-district-council/leeds,Leeds City Council,31/10/2020,Communities and Environment,Customer Access,Supplies and Services,Bought In Professional Services,277,28/10/2020,2010-00183,0.00,27.00,R,A MOHAMMED,No
Http://opendatacommunities.org/id/metropolitan-district-council/leeds,Leeds City Council,31/10/2020,Communities and Environment,Customer Access,Supplies and Services,Bought In Professional Services,277,28/10/2020,2010-00184,0.00,18.00,R,A MOHAMMED,No
Http://opendatacommunities.org/id/metropolitan-district-council/leeds,Leeds City Council,31/10/2020,Communities and Environment,Customer Access,Supplies and Services,Bought In Professional Services,277,28/10/2020,2010-00185,0.00,9.00,R,A MOHAMMED,No
Http://opendatacommunities.org/id/metropolitan-district-council/leeds,Leeds City Council,31/10/2020,Communities and Environment,Customer Access,Supplies and Services,Bought In Professional Services,277,28/10/2020,2010-00186,0.00,40.50,R,A MOHAMMED,No
Http://opendatacommunities.org/id/metropolitan-district-council/leeds,Leeds City Council,31/10/2020,Communities and Environment,Customer Access,Supplies and Services,Bought In Professional Services,277,28/10/2020,2010-00187,0.00,27.00,R,A MOHAMMED,No
Http://opendatacommunities.org/id/metropolitan-district-council/leeds,Leeds City Council,31/10/2020,Children and Families,Social Care,Third Party Payments,Services Rendered By Other Organisations,511,02/10/2020,2010-00188,0.00,2699.17,R,REDACTED PERSONAL DATA,No
Http://opendatacommunities.org/id/metropolitan-district-council/leeds,Leeds City Council,31/10/2020,Children and Families,Social Care,Third Party Payments,Services Rendered By Other Organisations,511,07/10/2020,2010-00189,0.00,1544.40,R,REDACTED PERSONAL DATA,No
Http://opendatacommunities.org/id/metropolitan-district-council/leeds,Leeds City Council,31/10/2020,Communities and Environment,Customer Access,Supplies and Services,Bought In Professional Services,277,14/10/2020,2010-00190,0.00,22.50,R,A NAMAKI,No
Http://opendatacommunities.org/id/metropolitan-district-council/leeds,Leeds City Council,31/10/2020,Communities and Environment,Customer Access,Supplies and Services,Bought In Professional Services,277,28/10/2020,2010-00191,0.00,18.00,R,A NAMAKI,No
Http://opendatacommunities.org/id/metropolitan-district-council/leeds,Leeds City Council,31/10/2020,Communities and Environment,Customer Access,Supplies and Services,Bought In Professional Services,277,28/10/2020,2010-00192,0.00,9.00,R,A NAMAKI,No
Http://opendatacommunities.org/id/metropolitan-district-council/leeds,Leeds City Council,31/10/2020,Communities and Environment,Customer Access,Supplies and Services,Bought In Professional Services,277,28/10/2020,2010-00193,0.00,18.00,R,A NAMAKI,No
Http://opendatacommunities.org/id/metropolitan-district-council/leeds,Leeds City Council,31/10/2020,Children and Families,Social Care,Third Party Payments,Services Rendered By Other Organisations,511,02/10/2020,2010-00194,0.00,229.95,R,REDACTED PERSONAL DATA,No
Http://opendatacommunities.org/id/metropolitan-district-council/leeds,Leeds City Council,31/10/2020,Communities and Environment,Parks and Countryside,Supplies and Services,Operational Materials,205,13/10/2020,2010-00195,0.00,1702.00,R,A NEWTON,No
Http://opendatacommunities.org/id/metropolitan-district-council/leeds,Leeds City Council,31/10/2020,Children and Families,Social Care,Third Party Payments,Services Rendered By Other Organisations,511,02/10/2020,2010-00196,0.00,284.70,R,REDACTED PERSONAL DATA,No
Http://opendatacommunities.org/id/metropolitan-district-council/leeds,Leeds City Council,31/10/2020,Children and Families,Social Care,Third Party Payments,Services Rendered By Other Organisations,511,07/10/2020,2010-00197,0.00,257.40,R,REDACTED PERSONAL DATA,No
Http://opendatacommunities.org/id/metropolitan-district-council/leeds,Leeds City Council,31/10/2020,Children and Families,Social Care,Third Party Payments,Independent Fostering Agencies,509,30/10/2020,2010-00198,0.00,1440.00,R,A Taxis,No
Http://opendatacommunities.org/id/metropolitan-district-council/leeds,Leeds City Council,31/10/2020,Children and Families,Social Care,Third Party Payments,Services Rendered By Other Organisations,511,07/10/2020,2010-00199,0.00,343.20,R,REDACTED PERSONAL DATA,No
Http://opendatacommunities.org/id/metropolitan-district-council/leeds,Leeds City Council,31/10/2020,Children and Families,Social Care,Third Party Payments,Services Rendered By Other Organisations,511,02/10/2020,2010-00200,0.00,427.05,R,REDACTED PERSONAL DATA,No
Http://opendatacommunities.org/id/metropolitan-district-council/leeds,Leeds City Council,31/10/2020,Children and Families,Social Care,Third Party Payments,General External Residential Placements,507,02/10/2020,2010-00201,0.00,102.60,R,A Wilderness Way Ltd,No
Http://opendatacommunities.org/id/metropolitan-district-council/leeds,Leeds City Council,31/10/2020,Children and Families,Social Care,Third Party Payments,General External Residential Placements,507,05/10/2020,2010-00202,0.00,9285.70,R,A Wilderness Way Ltd,No
Http://opendatacommunities.org/id/metropolitan-district-council/leeds,Leeds City Council,31/10/2020,Children and Families,Social Care,Third Party Payments,General External Residential Placements,507,21/10/2020,2010-00203,0.00,399.00,R,A Wilderness Way Ltd,No
Http://opendatacommunities.org/id/metropolitan-district-council/leeds,Leeds City Council,31/10/2020,Children and Families,Social Care,Transfer Payments,Leaving Care Grants,635,26/10/2020,2010-00204,0.00,493.77,R,A Wilderness Way Ltd,No
Http://opendatacommunities.org/id/metropolitan-district-council/leeds,Leeds City Council,31/10/2020,Children and Families,Social Care,Third Party Payments,General External Residential Placements,507,26/10/2020,2010-00205,0.00,32511.30,R,A Wilderness Way Ltd,No
Http://opendatacommunities.org/id/metropolitan-district-council/leeds,Leeds City Council,31/10/2020,Children and Families,Social Care,Third Party Payments,General External Residential Placements,507,26/10/2020,2010-00206,0.00,22757.91,R,A Wilderness Way Ltd,No
Http://opendatacommunities.org/id/metropolitan-district-council/leeds,Leeds City Council,31/10/2020,Children and Families,Social Care,Third Party Payments,General External Residential Placements,507,26/10/2020,2010-00207,0.00,1960.00,R,A Wilderness Way Ltd,No
Http://opendatacommunities.org/id/metropolitan-district-council/leeds,Leeds City Council,31/10/2020,Children and Families,Social Care,Third Party Payments,General External Residential Placements,507,30/10/2020,2010-00208,0.00,306.00,R,A Wilderness Way Ltd,No
Http://opendatacommunities.org/id/metropolitan-district-council/leeds,Leeds City Council,31/10/2020,Resources and Housing,HRA Housing Leeds,Capital,OTHER COSTS,7,22/10/2020,2010-00209,0.00,100.00,C,REDACTED PERSONAL DATA,No
Http://opendatacommunities.org/id/metropolitan-district-council/leeds,Leeds City Council,31/10/2020,Resources and Housing,HRA Housing Leeds,Capital,OTHER COSTS,7,13/10/2020,2010-00210,0.00,100.00,C,REDACTED PERSONAL DATA,No
Http://opendatacommunities.org/id/metropolitan-district-council/leeds,Leeds City Council,31/10/2020,Resources and Housing,HRA Housing Leeds,Capital,OTHER COSTS,7,20/10/2020,2010-00211,0.00,80.00,C,REDACTED PERSONAL DATA,No
Http://opendatacommunities.org/id/metropolitan-district-council/leeds,Leeds City Council,31/10/2020,Resources and Housing,HRA Housing Leeds,Capital,OTHER COSTS,7,13/10/2020,2010-00212,0.00,80.00,C,REDACTED PERSONAL DATA,No
Http://opendatacommunities.org/id/metropolitan-district-council/leeds,Leeds City Council,31/10/2020,Resources and Housing,Leeds Building Services,Supplies and Services,Other Hired And Contracted Services,265,29/10/2020,2010-00213,0.00,2600.00,R,A1 STAIR LIFT SERVICES,No
Http://opendatacommunities.org/id/metropolitan-district-council/leeds,Leeds City Council,31/10/2020,Children and Families,Social Care,Transfer Payments,Leaving Care Allowances,634,20/10/2020,2010-00214,0.00,20.00,R,REDACTED PERSONAL DATA,No
Http://opendatacommunities.org/id/metropolitan-district-council/leeds,Leeds City Council,31/10/2020,Children and Families,Social Care  ,Supplies and Services,Operational Materials,205,08/09/2020,2010-00215,0.00,23.33,R,Aardvark Archery,Yes
Http://opendatacommunities.org/id/metropolitan-district-council/leeds,Leeds City Council as Accountable Body,31/10/2020,Social Services Pooled Budgets,Leeds Community Equip Store Pooled Budgt,Supplies and Services,Other Equipment,203,09/10/2020,2010-00216,0.00,794.00,R,AAT (GB) LTD,No
Http://opendatacommunities.org/id/metropolitan-district-council/leeds,Leeds City Council as Accountable Body,31/10/2020,Social Services Pooled Budgets,Leeds Community Equip Store Pooled Budgt,Supplies and Services,Other Equipment,203,22/10/2020,2010-00217,0.00,919.50,R,AAT (GB) LTD,No
Http://opendatacommunities.org/id/metropolitan-district-council/leeds,Leeds City Council,31/10/2020,Resources and Housing,Finance,Supplies and Services,Other Hired And Contracted Services,265,02/10/2020,2010-00218,0.00,14250.00,R,AB Development and Consultancy Solutions,No
Http://opendatacommunities.org/id/metropolitan-district-council/leeds,Leeds City Council,31/10/2020,City Development,Libraries  Arts & Heritage,Supplies and Services,Other Hired And Contracted Services,265,22/10/2020,2010-00219,0.00,366.68,R,AB DROITS AUDIOVIS,No
Http://opendatacommunities.org/id/metropolitan-district-council/leeds,Leeds City Council,31/10/2020,City Development,Libraries  Arts & Heritage  ,Supplies and Services,Books & Audio-Visual Materials,206,17/09/2020,2010-00220,0.00,50.77,R,Ab* Abebooks.Uk Gn9fdl,Yes
Http://opendatacommunities.org/id/metropolitan-district-council/leeds,Leeds City Council,31/10/2020,Adults and Health,Public Health,Third Party Payments,Public Health Commissioned Services,526,23/10/2020,2010-00221,0.00,3030.29,R,Abbey Grange Medical Practice,No
Http://opendatacommunities.org/id/metropolitan-district-council/leeds,Leeds City Council,31/10/2020,Children and Families,Learning,Supplies and Services,Other Hired And Contracted Services,265,14/10/2020,2010-00222,0.00,750.00,R,Abbey Multi Academy Trust,No
Http://opendatacommunities.org/id/metropolitan-district-council/leeds,Leeds City Council,31/10/2020,Children and Families,Social Care,Third Party Payments,Allowances,546,28/10/2020,2010-00223,0.00,712.08,R,ABBIE O MAHONY,No
Http://opendatacommunities.org/id/metropolitan-district-council/leeds,Leeds City Council,31/10/2020,Children and Families,Social Care,Third Party Payments,Services Rendered By Other Organisations,511,07/10/2020,2010-00224,0.00,290.40,R,REDACTED PERSONAL DATA,No
Http://opendatacommunities.org/id/metropolitan-district-council/leeds,Leeds City Council,31/10/2020,Children and Families,Social Care,Third Party Payments,Services Rendered By Other Organisations,511,02/10/2020,2010-00225,0.00,4462.12,R,Abc Daycare And Ozone Out Of School,No
Http://opendatacommunities.org/id/metropolitan-district-council/leeds,Leeds City Council,31/10/2020,Children and Families,Social Care,Third Party Payments,Services Rendered By Other Organisations,511,07/10/2020,2010-00226,0.00,1887.60,R,Abc Daycare And Ozone Out Of School,No
Http://opendatacommunities.org/id/metropolitan-district-council/leeds,Leeds City Council,31/10/2020,Children and Families,Social Care,Third Party Payments,Services Rendered By Other Organisations,511,02/10/2020,2010-00227,0.00,5338.12,R,ABC NURSERY AT LUFC,No
Http://opendatacommunities.org/id/metropolitan-district-council/leeds,Leeds City Council,31/10/2020,Children and Families,Social Care,Third Party Payments,Services Rendered By Other Organisations,511,07/10/2020,2010-00228,0.00,3088.88,R,ABC NURSERY AT LUFC,No
Http://opendatacommunities.org/id/metropolitan-district-council/leeds,Leeds City Council,31/10/2020,Children and Families,Social Care,Third Party Payments,Services Rendered By Other Organisations,511,02/10/2020,2010-00229,0.00,3202.87,R,Abc@D'S Childcare,No
Http://opendatacommunities.org/id/metropolitan-district-council/leeds,Leeds City Council,31/10/2020,Children and Families,Social Care,Third Party Payments,Services Rendered By Other Organisations,511,07/10/2020,2010-00230,0.00,2316.60,R,Abc@D'S Childcare,No
Http://opendatacommunities.org/id/metropolitan-district-council/leeds,Leeds City Council,31/10/2020,Communities and Environment,Customer Access,Supplies and Services,Bought In Professional Services,277,08/10/2020,2010-00231,0.00,36.00,R,Abdul Kalam,No
Http://opendatacommunities.org/id/metropolitan-district-council/leeds,Leeds City Council,31/10/2020,Communities and Environment,Customer Access,Supplies and Services,Bought In Professional Services,277,14/10/2020,2010-00232,0.00,18.00,R,Abdul Kalam,No
Http://opendatacommunities.org/id/metropolitan-district-council/leeds,Leeds City Council,31/10/2020,Communities and Environment,Customer Access,Supplies and Services,Bought In Professional Services,277,21/10/2020,2010-00233,0.00,18.00,R,Abdul Kalam,No
Http://opendatacommunities.org/id/metropolitan-district-council/leeds,Leeds City Council,31/10/2020,Communities and Environment,Customer Access,Supplies and Services,Bought In Professional Services,277,28/10/2020,2010-00234,0.00,36.00,R,Abdul Kalam,No
Http://opendatacommunities.org/id/metropolitan-district-council/leeds,Leeds City Council,31/10/2020,Resources and Housing,Sustainable Energy & Climate Change,Capital,OTHER COSTS,7,12/10/2020,2010-00235,0.00,1500.00,C,REDACTED COMMERCIAL CONFIDENTIALITY,No
Http://opendatacommunities.org/id/metropolitan-district-council/leeds,Leeds City Council,31/10/2020,Communities and Environment,Customer Access,Supplies and Services,Bought In Professional Services,277,14/10/2020,2010-00236,0.00,18.00,R,Abdulahad Denha,No
Http://opendatacommunities.org/id/metropolitan-district-council/leeds,Leeds City Council,31/10/2020,Communities and Environment,Customer Access,Supplies and Services,Bought In Professional Services,277,21/10/2020,2010-00237,0.00,22.50,R,Abdulahad Denha,No
Http://opendatacommunities.org/id/metropolitan-district-council/leeds,Leeds City Council,31/10/2020,Communities and Environment,Customer Access,Supplies and Services,Bought In Professional Services,277,28/10/2020,2010-00238,0.00,18.00,R,Abdulahad Denha,No
Http://opendatacommunities.org/id/metropolitan-district-council/leeds,Leeds City Council,31/10/2020,Communities and Environment,Customer Access,Supplies and Services,Bought In Professional Services,277,28/10/2020,2010-00239,0.00,18.00,R,Abdulahad Denha,No
Http://opendatacommunities.org/id/metropolitan-district-council/leeds,Leeds City Council,31/10/2020,Communities and Environment,Customer Access,Supplies and Services,Bought In Professional Services,277,08/10/2020,2010-00240,0.00,24.00,R,Abdulrahim Dastyar,No
Http://opendatacommunities.org/id/metropolitan-district-council/leeds,Leeds City Council,31/10/2020,Communities and Environment,Customer Access,Supplies and Services,Bought In Professional Services,277,28/10/2020,2010-00241,0.00,18.00,R,Abdulrahim Dastyar,No
Http://opendatacommunities.org/id/metropolitan-district-council/leeds,Leeds City Council,31/10/2020,Communities and Environment,Customer Access,Supplies and Services,Bought In Professional Services,277,28/10/2020,2010-00242,0.00,9.00,R,Abdulrahim Dastyar,No
Http://opendatacommunities.org/id/metropolitan-district-council/leeds,Leeds City Council,31/10/2020,Adults and Health,Services For Older People - 65 And Over,Third Party Payments,Nursing Home,570,14/10/2020,2010-00243,0.00,37889.39,R,Aberford Hall,No
Http://opendatacommunities.org/id/metropolitan-district-council/leeds,Leeds City Council,31/10/2020,Resources and Housing,Leeds Building Services,Supplies and Services,Operational Materials,205,01/10/2020,2010-00244,0.00,281.04,R,ABI GARAGE DOORS LTD,No
Http://opendatacommunities.org/id/metropolitan-district-council/leeds,Leeds City Council,31/10/2020,Resources and Housing,Leeds Building Services,Supplies and Services,Operational Materials,205,29/10/2020,2010-00245,0.00,19.12,R,ABI GARAGE DOORS LTD,No
Http://opendatacommunities.org/id/metropolitan-district-council/leeds,Leeds City Council,31/10/2020,Resources and Housing,Leeds Building Services,Supplies and Services,Operational Materials,205,29/10/2020,2010-00246,0.00,4215.60,R,ABI GARAGE DOORS LTD,No
Http://opendatacommunities.org/id/metropolitan-district-council/leeds,Leeds City Council,31/10/2020,Children and Families,Social Care,Third Party Payments, Direct Work,549,13/10/2020,2010-00247,0.00,5.00,R,REDACTED PERSONAL DATA,No
Http://opendatacommunities.org/id/metropolitan-district-council/leeds,Leeds City Council,31/10/2020,Children and Families,Social Care,Third Party Payments,Placement Support,550,13/10/2020,2010-00248,0.00,40.00,R,REDACTED PERSONAL DATA,No
Http://opendatacommunities.org/id/metropolitan-district-council/leeds,Leeds City Council,31/10/2020,Children and Families,Social Care,Third Party Payments,Placement Support,550,16/10/2020,2010-00249,0.00,19.20,R,REDACTED PERSONAL DATA,No
Http://opendatacommunities.org/id/metropolitan-district-council/leeds,Leeds City Council,31/10/2020,Children and Families,Social Care,Third Party Payments,Contact,548,29/10/2020,2010-00250,0.00,76.00,R,REDACTED PERSONAL DATA,No
Http://opendatacommunities.org/id/metropolitan-district-council/leeds,Leeds City Council,31/10/2020,Children and Families,Social Care,Third Party Payments, Direct Work,549,29/10/2020,2010-00251,0.00,4.50,R,REDACTED PERSONAL DATA,No
Http://opendatacommunities.org/id/metropolitan-district-council/leeds,Leeds City Council,31/10/2020,Children and Families,Social Care  ,Supplies and Services,Bedding & Linen,222,23/09/2020,2010-00252,0.00,19.80,R,Absolute,Yes
Http://opendatacommunities.org/id/metropolitan-district-council/leeds,Leeds City Council,31/10/2020,City Development,Support Services,Supplies and Services,Operational Furniture And Equipment,203,23/10/2020,2010-00253,0.00,255.00,R,Absolute Museum & Gallery Products Ltd,No
Http://opendatacommunities.org/id/metropolitan-district-council/leeds,Leeds City Council,31/10/2020,City Development,Support Services,Supplies and Services,Operational Furniture And Equipment,203,23/10/2020,2010-00254,0.00,11.07,R,Absolute Museum & Gallery Products Ltd,No
Http://opendatacommunities.org/id/metropolitan-district-council/leeds,Leeds City Council,31/10/2020,City Development,Libraries  Arts & Heritage  ,Supplies and Services,Operational Materials,205,02/09/2020,2010-00255,0.00,43.00,R,Absoluteproduct.Co,Yes
Http://opendatacommunities.org/id/metropolitan-district-council/leeds,Leeds City Council,31/10/2020,Adults and Health,Services For Adults Under 65 Mental/Dis,Third Party Payments,Fees - Level 4,520,02/10/2020,2010-00256,0.00,175.00,R,Abubaker Denja Mohammed,No
Http://opendatacommunities.org/id/metropolitan-district-council/leeds,Leeds City Council,31/10/2020,Adults and Health,Services For Adults Under 65 Mental/Dis,Third Party Payments,Fees - Level 4,520,02/10/2020,2010-00257,0.00,175.00,R,Abubaker Denja Mohammed,No
Http://opendatacommunities.org/id/metropolitan-district-council/leeds,Leeds City Council,31/10/2020,Adults and Health,Services For Adults Under 65 Mental/Dis,Third Party Payments,Fees - Level 4,520,15/10/2020,2010-00258,0.00,175.00,R,Abubaker Denja Mohammed,No
Http://opendatacommunities.org/id/metropolitan-district-council/leeds,Leeds City Council,31/10/2020,Adults and Health,Services For Adults Under 65 Mental/Dis,Third Party Payments,Fees - Level 4,520,15/10/2020,2010-00259,0.00,175.00,R,Abubaker Denja Mohammed,No
Http://opendatacommunities.org/id/metropolitan-district-council/leeds,Leeds City Council,31/10/2020,Adults and Health,Services For Adults Under 65 Mental/Dis,Third Party Payments,Fees - Level 4,520,15/10/2020,2010-00260,0.00,175.00,R,Abubaker Denja Mohammed,No
Http://opendatacommunities.org/id/metropolitan-district-council/leeds,Leeds City Council,31/10/2020,Adults and Health,Services For Adults Under 65 Mental/Dis,Third Party Payments,Fees - Level 4,520,15/10/2020,2010-00261,0.00,175.00,R,Abubaker Denja Mohammed,No
Http://opendatacommunities.org/id/metropolitan-district-council/leeds,Leeds City Council,31/10/2020,Adults and Health,Services For Adults Under 65 Mental/Dis,Third Party Payments,Fees - Level 4,520,15/10/2020,2010-00262,0.00,175.00,R,Abubaker Denja Mohammed,No
Http://opendatacommunities.org/id/metropolitan-district-council/leeds,Leeds City Council,31/10/2020,Adults and Health,Services For Adults Under 65 Mental/Dis,Third Party Payments,Fees - Level 4,520,23/10/2020,2010-00263,0.00,175.00,R,Abubaker Denja Mohammed,No
Http://opendatacommunities.org/id/metropolitan-district-council/leeds,Leeds City Council,31/10/2020,Adults and Health,Services For Adults Under 65 Mental/Dis,Third Party Payments,Fees - Level 4,520,23/10/2020,2010-00264,0.00,175.00,R,Abubaker Denja Mohammed,No
Http://opendatacommunities.org/id/metropolitan-district-council/leeds,Leeds City Council,31/10/2020,Adults and Health,Services For Adults Under 65 Mental/Dis,Third Party Payments,Fees - Level 4,520,23/10/2020,2010-00265,0.00,175.00,R,Abubaker Denja Mohammed,No
Http://opendatacommunities.org/id/metropolitan-district-council/leeds,Leeds City Council,31/10/2020,Adults and Health,Services For Adults Under 65 Mental/Dis,Third Party Payments,Fees - Level 4,520,23/10/2020,2010-00266,0.00,175.00,R,Abubaker Denja Mohammed,No
Http://opendatacommunities.org/id/metropolitan-district-council/leeds,Leeds City Council,31/10/2020,Adults and Health,Services For Adults Under 65 Mental/Dis,Third Party Payments,Fees - Level 4,520,30/10/2020,2010-00267,0.00,175.00,R,Abubaker Denja Mohammed,No
Http://opendatacommunities.org/id/metropolitan-district-council/leeds,Leeds City Council,31/10/2020,Adults and Health,Services For Adults Under 65 Mental/Dis,Third Party Payments,Fees - Level 4,520,30/10/2020,2010-00268,0.00,175.00,R,Abubaker Denja Mohammed,No
Http://opendatacommunities.org/id/metropolitan-district-council/leeds,Leeds City Council,31/10/2020,Adults and Health,Social Services Support Services,Employees,Training & Development,70,16/10/2020,2010-00269,0.00,860.00,R,ACAS,No
Http://opendatacommunities.org/id/metropolitan-district-council/leeds,Leeds City Council,31/10/2020,Insurance,Insurance,Supplies and Services,Insurance Claims,248,13/10/2020,2010-00270,0.00,2724.22,R,Access Hire,No
Http://opendatacommunities.org/id/metropolitan-district-council/leeds,Leeds City Council,31/10/2020,Communities and Environment,Waste Management  ,Supplies and Services,Operational Furniture And Equipment,203,28/08/2020,2010-00271,0.00,42.20,R,Access Locksmiths,Yes
Http://opendatacommunities.org/id/metropolitan-district-council/leeds,Leeds City Council,31/10/2020,Children and Families,Social Care  ,Supplies and Services,Operational Furniture And Equipment,203,04/09/2020,2010-00272,0.00,2.20,R,Access Locksmiths,Yes
Http://opendatacommunities.org/id/metropolitan-district-council/leeds,Leeds City Council,31/10/2020,Communities and Environment,Parks and Countryside  ,Supplies and Services,Operational Materials,205,24/09/2020,2010-00273,0.00,37.25,R,Access Locksmiths,Yes
Http://opendatacommunities.org/id/metropolitan-district-council/leeds,Leeds City Council,31/10/2020,Strategic Landlord,Housing Management,Premises,General Maintenance,104,02/10/2020,2010-00274,0.00,49.90,R,ACCESS LOCKSMITHS (LEEDS) LIMITED,No
Http://opendatacommunities.org/id/metropolitan-district-council/leeds,Leeds City Council,31/10/2020,Strategic Landlord,Housing Management,Supplies and Services,Resaleable Materials,204,02/10/2020,2010-00275,0.00,11.40,R,ACCESS LOCKSMITHS (LEEDS) LIMITED,No
Http://opendatacommunities.org/id/metropolitan-district-council/leeds,Leeds City Council,31/10/2020,Strategic Landlord,Property and Contracts,Transfer Payments,Disrepair Provision,644,23/10/2020,2010-00276,0.00,690.56,R,ACCESS LOCKSMITHS (LEEDS) LIMITED,No
Http://opendatacommunities.org/id/metropolitan-district-council/leeds,Leeds City Council,31/10/2020,Strategic Landlord,Housing Management,Supplies and Services,Resaleable Materials,204,23/10/2020,2010-00277,0.00,22.80,R,ACCESS LOCKSMITHS (LEEDS) LIMITED,No
Http://opendatacommunities.org/id/metropolitan-district-council/leeds,Leeds City Council,31/10/2020,Resources and Housing,Commercial Services,Supplies and Services,Operational Materials,205,29/10/2020,2010-00278,0.00,210.00,R,ACCESS LOCKSMITHS (LEEDS) LIMITED,No
Http://opendatacommunities.org/id/metropolitan-district-council/leeds,Leeds City Council,31/10/2020,Insurance,Insurance,Supplies and Services,Insurance Claims,248,12/10/2020,2010-00279,0.00,3694.97,R,Accident Exchange Ltd,No
Http://opendatacommunities.org/id/metropolitan-district-council/leeds,Leeds City Council,31/10/2020,Insurance,Insurance,Supplies and Services,Insurance Claims,248,27/10/2020,2010-00280,0.00,539.35,R,Accident Exchange Ltd,No
Http://opendatacommunities.org/id/metropolitan-district-council/leeds,Leeds City Council,31/10/2020,Insurance,Insurance,Supplies and Services,Insurance Claims,248,08/10/2020,2010-00281,0.00,3750.00,R,Accountant General Of The Senior Courts,No
Http://opendatacommunities.org/id/metropolitan-district-council/leeds,Leeds City Council,31/10/2020,City Development,Recreation,Transport,External Hire -Occasional,304,30/10/2020,2010-00282,0.00,128.65,R,ACE CONTAINER SERVICES LIMITED,No
Http://opendatacommunities.org/id/metropolitan-district-council/leeds,Leeds City Council,31/10/2020,City Development,Libraries  Arts & Heritage,Supplies and Services,Other Hired And Contracted Services,265,30/10/2020,2010-00283,0.00,46.50,R,ACE CONTAINER SERVICES LIMITED,No
Http://opendatacommunities.org/id/metropolitan-district-council/leeds,Leeds City Council,31/10/2020,Children and Families,Partnerships & Health,Third Party Payments,SEN Placements,566,09/10/2020,2010-00284,0.00,58000.00,R,Acorn Care & Education Ltd (Sales),No
Http://opendatacommunities.org/id/metropolitan-district-council/leeds,Leeds City Council,31/10/2020,Children and Families,Partnerships & Health,Third Party Payments,SEN Placements,566,16/10/2020,2010-00285,0.00,19261.87,R,Acorn Care & Education Ltd (Sales),No
Http://opendatacommunities.org/id/metropolitan-district-council/leeds,Leeds City Council,31/10/2020,Children and Families,Partnerships & Health,Third Party Payments,SEN Placements,566,16/10/2020,2010-00286,0.00,19261.87,R,Acorn Care & Education Ltd (Sales),No
Http://opendatacommunities.org/id/metropolitan-district-council/leeds,Leeds City Council,31/10/2020,Children and Families,Partnerships & Health,Third Party Payments,SEN Placements,566,16/10/2020,2010-00287,0.00,18726.29,R,Acorn Care & Education Ltd (Sales),No
Http://opendatacommunities.org/id/metropolitan-district-council/leeds,Leeds City Council,31/10/2020,Children and Families,Partnerships & Health,Third Party Payments,SEN Placements,566,16/10/2020,2010-00288,0.00,18726.29,R,Acorn Care & Education Ltd (Sales),No
Http://opendatacommunities.org/id/metropolitan-district-council/leeds,Leeds City Council,31/10/2020,Children and Families,Partnerships & Health,Third Party Payments,SEN Placements,566,16/10/2020,2010-00289,0.00,19247.61,R,Acorn Care & Education Ltd (Sales),No
Http://opendatacommunities.org/id/metropolitan-district-council/leeds,Leeds City Council,31/10/2020,Children and Families,Partnerships & Health,Third Party Payments,SEN Placements,566,16/10/2020,2010-00290,0.00,19261.87,R,Acorn Care & Education Ltd (Sales),No
Http://opendatacommunities.org/id/metropolitan-district-council/leeds,Leeds City Council,31/10/2020,Children and Families,Partnerships & Health,Third Party Payments,SEN Placements,566,16/10/2020,2010-00291,0.00,19418.00,R,Acorn Care & Education Ltd (Sales),No
Http://opendatacommunities.org/id/metropolitan-district-council/leeds,Leeds City Council,31/10/2020,Children and Families,Partnerships & Health,Third Party Payments,SEN Placements,566,21/10/2020,2010-00292,0.00,13418.94,R,Acorn Care & Education Ltd (Sales),No
Http://opendatacommunities.org/id/metropolitan-district-council/leeds,Leeds City Council,31/10/2020,Children and Families,Social Care,Third Party Payments,General External Residential Placements,507,30/10/2020,2010-00293,0.00,11128.57,R,Acorn Care & Education Ltd (Sales),No
Http://opendatacommunities.org/id/metropolitan-district-council/leeds,Leeds City Council,31/10/2020,Adults and Health,Services For Older People - 65 And Over,Third Party Payments,Residential Care Dementia,571,14/10/2020,2010-00294,0.00,1589.72,R,Acorn Nursing Home,No
Http://opendatacommunities.org/id/metropolitan-district-council/leeds,Leeds City Council,31/10/2020,Children and Families,Social Care,Third Party Payments,Services Rendered By Other Organisations,511,02/10/2020,2010-00295,0.00,13025.02,R,ACORNS NURSERY,No
Http://opendatacommunities.org/id/metropolitan-district-council/leeds,Leeds City Council,31/10/2020,Adults and Health,Services For Older People - 65 And Over,Third Party Payments,Nursing Home,570,14/10/2020,2010-00296,0.00,10092.11,R,Acre Green,No
Http://opendatacommunities.org/id/metropolitan-district-council/leeds,Leeds City Council,31/10/2020,Adults and Health,Services For Older People Under 65 P/Dis,Third Party Payments,Nursing Home,570,14/10/2020,2010-00297,0.00,2360.00,R,Acre Green,No
Http://opendatacommunities.org/id/metropolitan-district-council/leeds,Leeds City Council,31/10/2020,Adults and Health,Services For Older People - 65 And Over,Third Party Payments,Residential,580,14/10/2020,2010-00298,0.00,5170.12,R,Acre Green,No
Http://opendatacommunities.org/id/metropolitan-district-council/leeds,Leeds City Council,31/10/2020,Adults and Health,Services For Older People Under 65 P/Dis,Third Party Payments,Residential,580,14/10/2020,2010-00299,0.00,1642.60,R,Acre Green,No
Http://opendatacommunities.org/id/metropolitan-district-council/leeds,Leeds City Council,31/10/2020,Children and Families,Social Care,Third Party Payments,Services Rendered By Other Organisations,511,02/10/2020,2010-00300,0.00,11530.35,R,Acre Wood Day Nursery,No
Http://opendatacommunities.org/id/metropolitan-district-council/leeds,Leeds City Council,31/10/2020,Children and Families,Social Care,Third Party Payments,Services Rendered By Other Organisations,511,07/10/2020,2010-00301,0.00,4229.28,R,Acre Wood Day Nursery,No
Http://opendatacommunities.org/id/metropolitan-district-council/leeds,Leeds City Council,31/10/2020,Resources and Housing,Technology  ,Supplies and Services,Computer Software & Equipment,214,21/09/2020,2010-00302,0.00,19.53,R,Acs Business Supplies Lt,Yes
Http://opendatacommunities.org/id/metropolitan-district-council/leeds,Leeds City Council,31/10/2020,Resources and Housing,Leeds Building Services,Supplies and Services,Operational Materials,205,21/10/2020,2010-00303,0.00,82.90,R,Actavo Hire And Sales Uk Limited,No
Http://opendatacommunities.org/id/metropolitan-district-council/leeds,Leeds City Council,31/10/2020,Children and Families,Social Care,Third Party Payments,Independent Fostering Agencies,509,07/10/2020,2010-00304,0.00,1101.42,R,Action For Children Services Ltd,No
Http://opendatacommunities.org/id/metropolitan-district-council/leeds,Leeds City Council,31/10/2020,Children and Families,Social Care,Third Party Payments,Independent Fostering Agencies,509,15/10/2020,2010-00305,0.00,5163.67,R,Action For Children Services Ltd,No
Http://opendatacommunities.org/id/metropolitan-district-council/leeds,Leeds City Council,31/10/2020,Children and Families,Social Care,Third Party Payments,Independent Fostering Agencies,509,15/10/2020,2010-00306,0.00,495.00,R,Action For Children Services Ltd,No
Http://opendatacommunities.org/id/metropolitan-district-council/leeds,Leeds City Council,31/10/2020,Children and Families,Social Care,Third Party Payments,Independent Fostering Agencies,509,30/10/2020,2010-00307,0.00,5163.67,R,Action For Children Services Ltd,No
Http://opendatacommunities.org/id/metropolitan-district-council/leeds,Leeds City Council,31/10/2020,Adults and Health,Services For Older People - 65 And Over,Third Party Payments,Payments To Voluntary Organisations,561,01/10/2020,2010-00308,0.00,49415.82,R,ACTION FOR GIPTON ELDERLY,No
Http://opendatacommunities.org/id/metropolitan-district-council/leeds,Leeds City Council,31/10/2020,Resources and Housing,Sustainable Energy & Climate Change,Capital,TRANSPORT,4,21/10/2020,2010-00309,0.00,34975.00,C,Active Cycling Projects Ltd,No
Http://opendatacommunities.org/id/metropolitan-district-council/leeds,Leeds City Council,31/10/2020,Children and Families,Social Care,Third Party Payments,Services Rendered By Other Organisations,511,02/10/2020,2010-00310,0.00,5694.00,R,ACTIVE KIDS YEADON LLP,No
Http://opendatacommunities.org/id/metropolitan-district-council/leeds,Leeds City Council,31/10/2020,Children and Families,Social Care,Third Party Payments,Services Rendered By Other Organisations,511,07/10/2020,2010-00311,0.00,1082.40,R,ACTIVE KIDS YEADON LLP,No
Http://opendatacommunities.org/id/metropolitan-district-council/leeds,Leeds City Council as Accountable Body,31/10/2020,Social Services Pooled Budgets,Leeds Community Equip Store Pooled Budgt,Supplies and Services,Other Equipment,203,16/10/2020,2010-00312,0.00,110.00,R,Active Mobility Centre Ltd,No
Http://opendatacommunities.org/id/metropolitan-district-council/leeds,Leeds City Council,31/10/2020,Adults and Health,Services For Adults Under 65 Mental/Dis,Third Party Payments,Sheltered Accommodation,569,14/10/2020,2010-00313,0.00,31736.45,R,Active Pathways,No
Http://opendatacommunities.org/id/metropolitan-district-council/leeds,Leeds City Council,31/10/2020,Adults and Health,Services For Older People Under 65 P/Dis,Third Party Payments,Sheltered Accommodation,569,14/10/2020,2010-00314,0.00,7471.52,R,Active Pathways,No
Http://opendatacommunities.org/id/metropolitan-district-council/leeds,Leeds City Council as Accountable Body,31/10/2020,Social Services Pooled Budgets,Jcs For People With Learning Disabilitie,Third Party Payments,Sheltered Accommodation,569,14/10/2020,2010-00315,0.00,8301.68,R,Active Pathways,No
Http://opendatacommunities.org/id/metropolitan-district-council/leeds,Leeds City Council,31/10/2020,Communities and Environment,Cleaner Neighbourhood Teams,Premises,Removal Of Workplace Waste,126,02/10/2020,2010-00316,0.00,116.60,R,Acumen Waste Services Ltd,No
Http://opendatacommunities.org/id/metropolitan-district-council/leeds,Leeds City Council,31/10/2020,Communities and Environment,Cleaner Neighbourhood Teams,Premises,Removal Of Workplace Waste,126,02/10/2020,2010-00317,0.00,116.60,R,Acumen Waste Services Ltd,No
Http://opendatacommunities.org/id/metropolitan-district-council/leeds,Leeds City Council,31/10/2020,Communities and Environment,Cleaner Neighbourhood Teams,Premises,Removal Of Workplace Waste,126,02/10/2020,2010-00318,0.00,116.60,R,Acumen Waste Services Ltd,No
Http://opendatacommunities.org/id/metropolitan-district-council/leeds,Leeds City Council,31/10/2020,Communities and Environment,Cleaner Neighbourhood Teams,Premises,Removal Of Workplace Waste,126,06/10/2020,2010-00319,0.00,116.60,R,Acumen Waste Services Ltd,No
Http://opendatacommunities.org/id/metropolitan-district-council/leeds,Leeds City Council,31/10/2020,Communities and Environment,Waste Management,Supplies and Services,Recycling & Reuse Charges,234,07/10/2020,2010-00320,0.00,965.16,R,Acumen Waste Services Ltd,No
Http://opendatacommunities.org/id/metropolitan-district-council/leeds,Leeds City Council,31/10/2020,Communities and Environment,Cleaner Neighbourhood Teams,Premises,Removal Of Workplace Waste,126,08/10/2020,2010-00321,0.00,116.60,R,Acumen Waste Services Ltd,No
Http://opendatacommunities.org/id/metropolitan-district-council/leeds,Leeds City Council,31/10/2020,Communities and Environment,Cleaner Neighbourhood Teams,Premises,Removal Of Workplace Waste,126,08/10/2020,2010-00322,0.00,116.60,R,Acumen Waste Services Ltd,No
Http://opendatacommunities.org/id/metropolitan-district-council/leeds,Leeds City Council,31/10/2020,Communities and Environment,Waste Management,Supplies and Services,Recycling & Reuse Charges,234,08/10/2020,2010-00323,0.00,5930.17,R,Acumen Waste Services Ltd,No
Http://opendatacommunities.org/id/metropolitan-district-council/leeds,Leeds City Council,31/10/2020,Communities and Environment,Waste Management,Supplies and Services,Recycling & Reuse Charges,234,08/10/2020,2010-00324,0.00,990.73,R,Acumen Waste Services Ltd,No
Http://opendatacommunities.org/id/metropolitan-district-council/leeds,Leeds City Council,31/10/2020,Communities and Environment,Waste Management,Supplies and Services,Recycling & Reuse Charges,234,08/10/2020,2010-00325,0.00,1000.67,R,Acumen Waste Services Ltd,No
Http://opendatacommunities.org/id/metropolitan-district-council/leeds,Leeds City Council,31/10/2020,Communities and Environment,Waste Management,Supplies and Services,Recycling & Reuse Charges,234,08/10/2020,2010-00326,0.00,942.44,R,Acumen Waste Services Ltd,No
Http://opendatacommunities.org/id/metropolitan-district-council/leeds,Leeds City Council,31/10/2020,Communities and Environment,Waste Management,Supplies and Services,Recycling & Reuse Charges,234,09/10/2020,2010-00327,0.00,986.47,R,Acumen Waste Services Ltd,No
Http://opendatacommunities.org/id/metropolitan-district-council/leeds,Leeds City Council,31/10/2020,Communities and Environment,Cleaner Neighbourhood Teams,Premises,Removal Of Workplace Waste,126,09/10/2020,2010-00328,0.00,116.60,R,Acumen Waste Services Ltd,No
Http://opendatacommunities.org/id/metropolitan-district-council/leeds,Leeds City Council,31/10/2020,Communities and Environment,Cleaner Neighbourhood Teams,Premises,Removal Of Workplace Waste,126,14/10/2020,2010-00329,0.00,116.60,R,Acumen Waste Services Ltd,No
Http://opendatacommunities.org/id/metropolitan-district-council/leeds,Leeds City Council,31/10/2020,Communities and Environment,Cleaner Neighbourhood Teams,Premises,Removal Of Workplace Waste,126,14/10/2020,2010-00330,0.00,116.60,R,Acumen Waste Services Ltd,No
Http://opendatacommunities.org/id/metropolitan-district-council/leeds,Leeds City Council,31/10/2020,Communities and Environment,Waste Management,Supplies and Services,Recycling & Reuse Charges,234,14/10/2020,2010-00331,0.00,933.20,R,Acumen Waste Services Ltd,No
Http://opendatacommunities.org/id/metropolitan-district-council/leeds,Leeds City Council,31/10/2020,Communities and Environment,Waste Management,Supplies and Services,Recycling & Reuse Charges,234,14/10/2020,2010-00332,0.00,982.92,R,Acumen Waste Services Ltd,No
Http://opendatacommunities.org/id/metropolitan-district-council/leeds,Leeds City Council,31/10/2020,Communities and Environment,Waste Management,Supplies and Services,Recycling & Reuse Charges,234,14/10/2020,2010-00333,0.00,983.63,R,Acumen Waste Services Ltd,No
Http://opendatacommunities.org/id/metropolitan-district-council/leeds,Leeds City Council,31/10/2020,Communities and Environment,Cleaner Neighbourhood Teams,Premises,Removal Of Workplace Waste,126,15/10/2020,2010-00334,0.00,116.60,R,Acumen Waste Services Ltd,No
Http://opendatacommunities.org/id/metropolitan-district-council/leeds,Leeds City Council,31/10/2020,Communities and Environment,Waste Management,Supplies and Services,Recycling & Reuse Charges,234,15/10/2020,2010-00335,0.00,982.92,R,Acumen Waste Services Ltd,No
Http://opendatacommunities.org/id/metropolitan-district-council/leeds,Leeds City Council,31/10/2020,Communities and Environment,Waste Management,Supplies and Services,Recycling & Reuse Charges,234,16/10/2020,2010-00336,0.00,-1916.83,R,Acumen Waste Services Ltd,No
Http://opendatacommunities.org/id/metropolitan-district-council/leeds,Leeds City Council,31/10/2020,Communities and Environment,Waste Management,Supplies and Services,Recycling & Reuse Charges,234,16/10/2020,2010-00337,0.00,987.18,R,Acumen Waste Services Ltd,No
Http://opendatacommunities.org/id/metropolitan-district-council/leeds,Leeds City Council,31/10/2020,Communities and Environment,Waste Management,Supplies and Services,Recycling & Reuse Charges,234,16/10/2020,2010-00338,0.00,977.24,R,Acumen Waste Services Ltd,No
Http://opendatacommunities.org/id/metropolitan-district-council/leeds,Leeds City Council,31/10/2020,Communities and Environment,Cleaner Neighbourhood Teams,Premises,Removal Of Workplace Waste,126,21/10/2020,2010-00339,0.00,116.60,R,Acumen Waste Services Ltd,No
Http://opendatacommunities.org/id/metropolitan-district-council/leeds,Leeds City Council,31/10/2020,Communities and Environment,Cleaner Neighbourhood Teams,Premises,Removal Of Workplace Waste,126,21/10/2020,2010-00340,0.00,116.60,R,Acumen Waste Services Ltd,No
Http://opendatacommunities.org/id/metropolitan-district-council/leeds,Leeds City Council,31/10/2020,Communities and Environment,Waste Management,Supplies and Services,Recycling & Reuse Charges,234,21/10/2020,2010-00341,0.00,918.29,R,Acumen Waste Services Ltd,No
Http://opendatacommunities.org/id/metropolitan-district-council/leeds,Leeds City Council,31/10/2020,Communities and Environment,Waste Management,Supplies and Services,Recycling & Reuse Charges,234,22/10/2020,2010-00342,0.00,1012.75,R,Acumen Waste Services Ltd,No
Http://opendatacommunities.org/id/metropolitan-district-council/leeds,Leeds City Council,31/10/2020,Communities and Environment,Waste Management,Supplies and Services,Recycling & Reuse Charges,234,22/10/2020,2010-00343,0.00,1002.09,R,Acumen Waste Services Ltd,No
Http://opendatacommunities.org/id/metropolitan-district-council/leeds,Leeds City Council,31/10/2020,Communities and Environment,Cleaner Neighbourhood Teams,Premises,Removal Of Workplace Waste,126,22/10/2020,2010-00344,0.00,116.60,R,Acumen Waste Services Ltd,No
Http://opendatacommunities.org/id/metropolitan-district-council/leeds,Leeds City Council,31/10/2020,Communities and Environment,Waste Management,Supplies and Services,Recycling & Reuse Charges,234,23/10/2020,2010-00345,0.00,943.15,R,Acumen Waste Services Ltd,No
Http://opendatacommunities.org/id/metropolitan-district-council/leeds,Leeds City Council,31/10/2020,Communities and Environment,Cleaner Neighbourhood Teams,Premises,Removal Of Workplace Waste,126,23/10/2020,2010-00346,0.00,116.60,R,Acumen Waste Services Ltd,No
Http://opendatacommunities.org/id/metropolitan-district-council/leeds,Leeds City Council,31/10/2020,Communities and Environment,Cleaner Neighbourhood Teams,Premises,Removal Of Workplace Waste,126,23/10/2020,2010-00347,0.00,116.60,R,Acumen Waste Services Ltd,No
Http://opendatacommunities.org/id/metropolitan-district-council/leeds,Leeds City Council,31/10/2020,Communities and Environment,Waste Management,Supplies and Services,Recycling & Reuse Charges,234,23/10/2020,2010-00348,0.00,931.07,R,Acumen Waste Services Ltd,No
Http://opendatacommunities.org/id/metropolitan-district-council/leeds,Leeds City Council,31/10/2020,Communities and Environment,Cleaner Neighbourhood Teams,Premises,Removal Of Workplace Waste,126,29/10/2020,2010-00349,0.00,116.60,R,Acumen Waste Services Ltd,No
Http://opendatacommunities.org/id/metropolitan-district-council/leeds,Leeds City Council,31/10/2020,Communities and Environment,Cleaner Neighbourhood Teams,Premises,Removal Of Workplace Waste,126,29/10/2020,2010-00350,0.00,116.60,R,Acumen Waste Services Ltd,No
Http://opendatacommunities.org/id/metropolitan-district-council/leeds,Leeds City Council,31/10/2020,Communities and Environment,Waste Management,Supplies and Services,Recycling & Reuse Charges,234,29/10/2020,2010-00351,0.00,966.58,R,Acumen Waste Services Ltd,No
Http://opendatacommunities.org/id/metropolitan-district-council/leeds,Leeds City Council,31/10/2020,Communities and Environment,Waste Management,Supplies and Services,Recycling & Reuse Charges,234,29/10/2020,2010-00352,0.00,961.61,R,Acumen Waste Services Ltd,No
Http://opendatacommunities.org/id/metropolitan-district-council/leeds,Leeds City Council,31/10/2020,Communities and Environment,Parks and Countryside,Supplies and Services,Resaleable Materials,204,15/10/2020,2010-00353,0.00,160.00,R,ACUSHNET EUROPE LIMITED,No
Http://opendatacommunities.org/id/metropolitan-district-council/leeds,Leeds City Council,31/10/2020,Communities and Environment,Parks and Countryside,Supplies and Services,Resaleable Materials,204,15/10/2020,2010-00354,0.00,60.00,R,ACUSHNET EUROPE LIMITED,No
Http://opendatacommunities.org/id/metropolitan-district-council/leeds,Leeds City Council,31/10/2020,Communities and Environment,Parks and Countryside,Supplies and Services,Resaleable Materials,204,28/10/2020,2010-00355,0.00,100.00,R,ACUSHNET EUROPE LIMITED,No
Http://opendatacommunities.org/id/metropolitan-district-council/leeds,Leeds City Council,31/10/2020,Children and Families,Social Care  ,Transfer Payments,Leaving Care Allowances,634,13/09/2020,2010-00356,0.00,50.54,R,Acw Garden Centre,Yes
Http://opendatacommunities.org/id/metropolitan-district-council/leeds,Leeds City Council,31/10/2020,Resources and Housing,Shared Services,Supplies and Services,Operational Materials,205,22/10/2020,2010-00357,0.00,1131.75,R,AD3 Envelope Printers Limited,No
Http://opendatacommunities.org/id/metropolitan-district-council/leeds,Leeds City Council,31/10/2020,Adults and Health,Services For Older People - 65 And Over,Third Party Payments,Nursing Home,570,14/10/2020,2010-00358,0.00,2584.00,R,Adbolton Hall,No
Http://opendatacommunities.org/id/metropolitan-district-council/leeds,Leeds City Council,31/10/2020,City Development,Libraries  Arts & Heritage,Supplies and Services,Other Hired And Contracted Services,265,09/10/2020,2010-00359,0.00,13317.50,R,Addictive Audio,No
Http://opendatacommunities.org/id/metropolitan-district-council/leeds,Leeds City Council,31/10/2020,Resources and Housing,Commercial Services,Transport,Road Fund Licences,323,09/10/2020,2010-00360,0.00,315.00,R,Addison Motors Limited,No
Http://opendatacommunities.org/id/metropolitan-district-council/leeds,Leeds City Council,31/10/2020,Resources and Housing,Civic Enterprise Leeds,Capital,TRANSPORT,4,09/10/2020,2010-00361,0.00,315.00,C,Addison Motors Limited,No
Http://opendatacommunities.org/id/metropolitan-district-council/leeds,Leeds City Council,31/10/2020,Resources and Housing,Civic Enterprise Leeds,Capital,TRANSPORT,4,09/10/2020,2010-00362,0.00,315.00,C,Addison Motors Limited,No
Http://opendatacommunities.org/id/metropolitan-district-council/leeds,Leeds City Council,31/10/2020,Resources and Housing,Civic Enterprise Leeds,Capital,TRANSPORT,4,09/10/2020,2010-00363,0.00,315.00,C,Addison Motors Limited,No
Http://opendatacommunities.org/id/metropolitan-district-council/leeds,Leeds City Council,31/10/2020,Resources and Housing,Civic Enterprise Leeds,Capital,TRANSPORT,4,09/10/2020,2010-00364,0.00,29571.72,C,Addison Motors Limited,No
Http://opendatacommunities.org/id/metropolitan-district-council/leeds,Leeds City Council,31/10/2020,Resources and Housing,Civic Enterprise Leeds,Capital,TRANSPORT,4,09/10/2020,2010-00365,0.00,29571.72,C,Addison Motors Limited,No
Http://opendatacommunities.org/id/metropolitan-district-council/leeds,Leeds City Council,31/10/2020,Resources and Housing,Civic Enterprise Leeds,Capital,TRANSPORT,4,09/10/2020,2010-00366,0.00,29571.72,C,Addison Motors Limited,No
Http://opendatacommunities.org/id/metropolitan-district-council/leeds,Leeds City Council,31/10/2020,Resources and Housing,Civic Enterprise Leeds,Capital,TRANSPORT,4,14/10/2020,2010-00367,0.00,29571.72,C,Addison Motors Limited,No
Http://opendatacommunities.org/id/metropolitan-district-council/leeds,Leeds City Council,31/10/2020,Resources and Housing,Civic Enterprise Leeds,Capital,TRANSPORT,4,14/10/2020,2010-00368,0.00,29571.72,C,Addison Motors Limited,No
Http://opendatacommunities.org/id/metropolitan-district-council/leeds,Leeds City Council,31/10/2020,Resources and Housing,Commercial Services,Transport,Road Fund Licences,323,15/10/2020,2010-00369,0.00,315.00,R,Addison Motors Limited,No
Http://opendatacommunities.org/id/metropolitan-district-council/leeds,Leeds City Council,31/10/2020,Resources and Housing,Commercial Services,Transport,Road Fund Licences,323,15/10/2020,2010-00370,0.00,315.00,R,Addison Motors Limited,No
Http://opendatacommunities.org/id/metropolitan-district-council/leeds,Leeds City Council,31/10/2020,Resources and Housing,Civic Enterprise Leeds,Capital,TRANSPORT,4,15/10/2020,2010-00371,0.00,29571.72,C,Addison Motors Limited,No
Http://opendatacommunities.org/id/metropolitan-district-council/leeds,Leeds City Council,31/10/2020,Resources and Housing,Civic Enterprise Leeds,Capital,TRANSPORT,4,15/10/2020,2010-00372,0.00,29571.72,C,Addison Motors Limited,No
Http://opendatacommunities.org/id/metropolitan-district-council/leeds,Leeds City Council,31/10/2020,Resources and Housing,Commercial Services,Transport,Road Fund Licences,323,16/10/2020,2010-00373,0.00,315.00,R,Addison Motors Limited,No
Http://opendatacommunities.org/id/metropolitan-district-council/leeds,Leeds City Council,31/10/2020,Resources and Housing,Commercial Services,Transport,Road Fund Licences,323,16/10/2020,2010-00374,0.00,315.00,R,Addison Motors Limited,No
Http://opendatacommunities.org/id/metropolitan-district-council/leeds,Leeds City Council,31/10/2020,Resources and Housing,Civic Enterprise Leeds,Capital,TRANSPORT,4,16/10/2020,2010-00375,0.00,29571.72,C,Addison Motors Limited,No
Http://opendatacommunities.org/id/metropolitan-district-council/leeds,Leeds City Council,31/10/2020,Resources and Housing,Civic Enterprise Leeds,Capital,TRANSPORT,4,16/10/2020,2010-00376,0.00,29571.72,C,Addison Motors Limited,No
Http://opendatacommunities.org/id/metropolitan-district-council/leeds,Leeds City Council,31/10/2020,Resources and Housing,Civic Enterprise Leeds,Capital,TRANSPORT,4,16/10/2020,2010-00377,0.00,29571.72,C,Addison Motors Limited,No
Http://opendatacommunities.org/id/metropolitan-district-council/leeds,Leeds City Council,31/10/2020,Resources and Housing,Commercial Services,Transport,Road Fund Licences,323,21/10/2020,2010-00378,0.00,315.00,R,Addison Motors Limited,No
Http://opendatacommunities.org/id/metropolitan-district-council/leeds,Leeds City Council,31/10/2020,Resources and Housing,Commercial Services,Transport,Road Fund Licences,323,23/10/2020,2010-00379,0.00,315.00,R,Addison Motors Limited,No
Http://opendatacommunities.org/id/metropolitan-district-council/leeds,Leeds City Council,31/10/2020,Resources and Housing,Commercial Services,Transport,Road Fund Licences,323,23/10/2020,2010-00380,0.00,315.00,R,Addison Motors Limited,No
Http://opendatacommunities.org/id/metropolitan-district-council/leeds,Leeds City Council,31/10/2020,Resources and Housing,Commercial Services,Transport,Road Fund Licences,323,23/10/2020,2010-00381,0.00,315.00,R,Addison Motors Limited,No
Http://opendatacommunities.org/id/metropolitan-district-council/leeds,Leeds City Council,31/10/2020,Resources and Housing,Civic Enterprise Leeds,Capital,TRANSPORT,4,23/10/2020,2010-00382,0.00,29571.72,C,Addison Motors Limited,No
Http://opendatacommunities.org/id/metropolitan-district-council/leeds,Leeds City Council,31/10/2020,Resources and Housing,Civic Enterprise Leeds,Capital,TRANSPORT,4,23/10/2020,2010-00383,0.00,29571.72,C,Addison Motors Limited,No
Http://opendatacommunities.org/id/metropolitan-district-council/leeds,Leeds City Council,31/10/2020,Resources and Housing,Civic Enterprise Leeds,Capital,TRANSPORT,4,23/10/2020,2010-00384,0.00,29571.72,C,Addison Motors Limited,No
Http://opendatacommunities.org/id/metropolitan-district-council/leeds,Leeds City Council,31/10/2020,Resources and Housing,Civic Enterprise Leeds,Capital,TRANSPORT,4,28/10/2020,2010-00385,0.00,29571.72,C,Addison Motors Limited,No
Http://opendatacommunities.org/id/metropolitan-district-council/leeds,Leeds City Council,31/10/2020,Resources and Housing,Commercial Services,Transport,Road Fund Licences,323,30/10/2020,2010-00386,0.00,315.00,R,Addison Motors Limited,No
Http://opendatacommunities.org/id/metropolitan-district-council/leeds,Leeds City Council,31/10/2020,Resources and Housing,Commercial Services,Transport,Road Fund Licences,323,30/10/2020,2010-00387,0.00,315.00,R,Addison Motors Limited,No
Http://opendatacommunities.org/id/metropolitan-district-council/leeds,Leeds City Council,31/10/2020,Adults and Health,Public Health,Third Party Payments,Public Health Commissioned Services,526,22/10/2020,2010-00388,0.00,830.08,R,Addlestone & Partners,No
Http://opendatacommunities.org/id/metropolitan-district-council/leeds,Leeds City Council,31/10/2020,Communities and Environment,Parks and Countryside,Supplies and Services,Other Hired And Contracted Services,265,22/10/2020,2010-00389,0.00,6118.00,R,Addlestone & Partners,No
Http://opendatacommunities.org/id/metropolitan-district-council/leeds,Leeds City Council,31/10/2020,Resources and Housing,Technology  ,Employees,Agency Staff,8,11/09/2020,2010-00390,0.00,29826.75,R,Adecco Alfred Marks,Yes
Http://opendatacommunities.org/id/metropolitan-district-council/leeds,Leeds City Council,31/10/2020,Resources and Housing,Technology  ,Employees,Agency Staff,8,24/09/2020,2010-00391,0.00,14509.00,R,Adecco Alfred Marks,Yes
Http://opendatacommunities.org/id/metropolitan-district-council/leeds,Leeds City Council,31/10/2020,Communities and Environment,Benefits  Wlefare and Poverty,Supplies and Services,Grant Related Expenditure,290,23/10/2020,2010-00392,0.00,500.00,R,REDACTED PERSONAL DATA,No
Http://opendatacommunities.org/id/metropolitan-district-council/leeds,Leeds City Council,31/10/2020,Children and Families,Social Care,Third Party Payments,Services Rendered By Voluntary Sector,505,02/10/2020,2010-00393,0.00,7456.80,R,ADEL PRE SCHOOL,No
Http://opendatacommunities.org/id/metropolitan-district-council/leeds,Leeds City Council,31/10/2020,Children and Families,Social Care,Third Party Payments,Services Rendered By Voluntary Sector,505,07/10/2020,2010-00394,0.00,2059.20,R,ADEL PRE SCHOOL,No
Http://opendatacommunities.org/id/metropolitan-district-council/leeds,Leeds City Council,31/10/2020,City Development,Recreation,Supplies and Services,Bought In Professional Services,277,30/10/2020,2010-00395,0.00,160.00,R,Adele Battersby,No
Http://opendatacommunities.org/id/metropolitan-district-council/leeds,Leeds City Council,31/10/2020,City Development,Recreation,Supplies and Services,Bought In Professional Services,277,30/10/2020,2010-00396,0.00,128.00,R,Adele Battersby,No
Http://opendatacommunities.org/id/metropolitan-district-council/leeds,Leeds City Council,31/10/2020,Children and Families,Social Care,Third Party Payments,Services Rendered By Other Organisations,511,02/10/2020,2010-00397,0.00,854.10,R,REDACTED PERSONAL DATA,No
Http://opendatacommunities.org/id/metropolitan-district-council/leeds,Leeds City Council,31/10/2020,Resources and Housing,Leeds Building Services,Supplies and Services,Operational Materials,205,08/10/2020,2010-00398,0.00,545.20,R,ADI Global,No
Http://opendatacommunities.org/id/metropolitan-district-council/leeds,Leeds City Council,31/10/2020,Resources and Housing,Leeds Building Services,Supplies and Services,Operational Materials,205,09/10/2020,2010-00399,0.00,236.22,R,ADI Global,No
Http://opendatacommunities.org/id/metropolitan-district-council/leeds,Leeds City Council,31/10/2020,Resources and Housing,Leeds Building Services,Supplies and Services,Operational Materials,205,30/10/2020,2010-00400,0.00,247.93,R,ADI Global,No
Http://opendatacommunities.org/id/metropolitan-district-council/leeds,Leeds City Council,31/10/2020,City Development,Libraries  Arts & Heritage  ,Supplies and Services,Computer Software & Equipment,214,02/09/2020,2010-00401,0.00,98.44,R,Adobe Creative Cloud,Yes
Http://opendatacommunities.org/id/metropolitan-district-council/leeds,Leeds City Council,31/10/2020,City Development,Recreation  ,Supplies and Services,Licences,266,21/09/2020,2010-00402,0.00,93.89,R,Adobe Creative Cloud,Yes
Http://opendatacommunities.org/id/metropolitan-district-council/leeds,Leeds City Council,31/10/2020,Children and Families,Social Care,Third Party Payments,Independent Fostering Agencies,509,09/10/2020,2010-00403,0.00,3689.00,R,Adolescent And Childrens Trust,No
Http://opendatacommunities.org/id/metropolitan-district-council/leeds,Leeds City Council,31/10/2020,Children and Families,Social Care,Third Party Payments,Independent Fostering Agencies,509,09/10/2020,2010-00404,0.00,3503.00,R,Adolescent And Childrens Trust,No
Http://opendatacommunities.org/id/metropolitan-district-council/leeds,Leeds City Council,31/10/2020,Children and Families,Social Care,Third Party Payments,Independent Fostering Agencies,509,09/10/2020,2010-00405,0.00,3503.00,R,Adolescent And Childrens Trust,No
Http://opendatacommunities.org/id/metropolitan-district-council/leeds,Leeds City Council,31/10/2020,Children and Families,Social Care,Third Party Payments,Independent Fostering Agencies,509,09/10/2020,2010-00406,0.00,3503.00,R,Adolescent And Childrens Trust,No
Http://opendatacommunities.org/id/metropolitan-district-council/leeds,Leeds City Council,31/10/2020,Children and Families,Social Care,Third Party Payments,Independent Fostering Agencies,509,09/10/2020,2010-00407,0.00,3689.00,R,Adolescent And Childrens Trust,No
Http://opendatacommunities.org/id/metropolitan-district-council/leeds,Leeds City Council,31/10/2020,Children and Families,Social Care,Third Party Payments,Independent Fostering Agencies,509,09/10/2020,2010-00408,0.00,3689.00,R,Adolescent And Childrens Trust,No
Http://opendatacommunities.org/id/metropolitan-district-council/leeds,Leeds City Council,31/10/2020,Children and Families,Social Care,Third Party Payments,Independent Fostering Agencies,509,09/10/2020,2010-00409,0.00,3503.00,R,Adolescent And Childrens Trust,No
Http://opendatacommunities.org/id/metropolitan-district-council/leeds,Leeds City Council,31/10/2020,Children and Families,Social Care,Third Party Payments,Independent Fostering Agencies,509,09/10/2020,2010-00410,0.00,3503.00,R,Adolescent And Childrens Trust,No
Http://opendatacommunities.org/id/metropolitan-district-council/leeds,Leeds City Council,31/10/2020,Children and Families,Social Care,Third Party Payments,Independent Fostering Agencies,509,09/10/2020,2010-00411,0.00,3503.00,R,Adolescent And Childrens Trust,No
Http://opendatacommunities.org/id/metropolitan-district-council/leeds,Leeds City Council,31/10/2020,Children and Families,Social Care,Third Party Payments,Independent Fostering Agencies,509,09/10/2020,2010-00412,0.00,3689.00,R,Adolescent And Childrens Trust,No
Http://opendatacommunities.org/id/metropolitan-district-council/leeds,Leeds City Council,31/10/2020,Children and Families,Social Care,Third Party Payments,Independent Fostering Agencies,509,09/10/2020,2010-00413,0.00,3503.00,R,Adolescent And Childrens Trust,No
Http://opendatacommunities.org/id/metropolitan-district-council/leeds,Leeds City Council,31/10/2020,Children and Families,Social Care,Third Party Payments,Independent Fostering Agencies,509,09/10/2020,2010-00414,0.00,4534.99,R,Adolescent And Childrens Trust,No
Http://opendatacommunities.org/id/metropolitan-district-council/leeds,Leeds City Council,31/10/2020,Children and Families,Social Care,Third Party Payments,Independent Fostering Agencies,509,09/10/2020,2010-00415,0.00,3689.00,R,Adolescent And Childrens Trust,No
Http://opendatacommunities.org/id/metropolitan-district-council/leeds,Leeds City Council,31/10/2020,Children and Families,Social Care,Third Party Payments,Independent Fostering Agencies,509,09/10/2020,2010-00416,0.00,3689.00,R,Adolescent And Childrens Trust,No
Http://opendatacommunities.org/id/metropolitan-district-council/leeds,Leeds City Council,31/10/2020,City Development,Recreation,Income,Sporting & Other Recreational Fees,928,22/10/2020,2010-00417,0.00,241.30,R,REDACTED PERSONAL DATA,No
Http://opendatacommunities.org/id/metropolitan-district-council/leeds,Leeds City Council as Accountable Body,31/10/2020,Social Services Pooled Budgets,Jcs For People With Learning Disabilitie,Third Party Payments,Residential,580,20/10/2020,2010-00418,0.00,2609.36,R,ADRIAN HOUSE,No
Http://opendatacommunities.org/id/metropolitan-district-council/leeds,Leeds City Council,31/10/2020,Communities and Environment,Benefits  Wlefare and Poverty,Supplies and Services,Grant Related Expenditure,290,28/10/2020,2010-00419,0.00,500.00,R,REDACTED PERSONAL DATA,No
Http://opendatacommunities.org/id/metropolitan-district-council/leeds,Leeds City Council,31/10/2020,Resources and Housing,Leeds Building Services,Supplies and Services,Other Hired And Contracted Services,265,07/10/2020,2010-00420,0.00,2468.00,R,ADT Fire And Security Plc,No
Http://opendatacommunities.org/id/metropolitan-district-council/leeds,Leeds City Council as Accountable Body,31/10/2020,Social Services Pooled Budgets,Jcs For People With Learning Disabilitie,Third Party Payments,Home Care,568,02/10/2020,2010-00421,0.00,1332.24,R,Adult Placement Services,No
Http://opendatacommunities.org/id/metropolitan-district-council/leeds,Leeds City Council,31/10/2020,Children and Families,Social Care,Support Services,Legal Disbursements,411,28/10/2020,2010-00422,0.00,347.05,R,ADVANCED CHILD CARE ASSESSMENTS LTD,No
Http://opendatacommunities.org/id/metropolitan-district-council/leeds,Leeds City Council as Accountable Body,31/10/2020,Social Services Pooled Budgets,Jcs For People With Learning Disabilitie,Third Party Payments,Residential,580,14/10/2020,2010-00423,0.00,17134.76,R,ADVITAM LTD,No
Http://opendatacommunities.org/id/metropolitan-district-council/leeds,Leeds City Council,31/10/2020,Adults and Health,Services For Adults Under 65 Learn/Dis,Third Party Payments,Payments To Voluntary Organisations,561,08/10/2020,2010-00424,0.00,17944.96,R,Advonet,No
Http://opendatacommunities.org/id/metropolitan-district-council/leeds,Leeds City Council,31/10/2020,Adults and Health,Services For Older People - 65 And Over,Third Party Payments,Payments To Voluntary Organisations,561,08/10/2020,2010-00425,0.00,105583.33,R,Advonet,No
Http://opendatacommunities.org/id/metropolitan-district-council/leeds,Leeds City Council as Accountable Body,31/10/2020,Social Services Pooled Budgets,Jcs For People With Learning Disabilitie,Supplies and Services,Other Hired And Contracted Services,265,09/10/2020,2010-00426,0.00,65.10,R,Advonet,No
Http://opendatacommunities.org/id/metropolitan-district-council/leeds,Leeds City Council,31/10/2020,Adults and Health,Services For Adults Under 65 Mental/Dis,Third Party Payments,Fees - Level 4,520,07/10/2020,2010-00427,0.00,198.00,R,AE BIA Assessments Limited,No
Http://opendatacommunities.org/id/metropolitan-district-council/leeds,Leeds City Council,31/10/2020,Adults and Health,Services For Adults Under 65 Mental/Dis,Third Party Payments,Fees - Level 4,520,07/10/2020,2010-00428,0.00,237.17,R,AE BIA Assessments Limited,No
Http://opendatacommunities.org/id/metropolitan-district-council/leeds,Leeds City Council,31/10/2020,Adults and Health,Services For Adults Under 65 Mental/Dis,Third Party Payments,Fees - Level 4,520,07/10/2020,2010-00429,0.00,198.00,R,AE BIA Assessments Limited,No
Http://opendatacommunities.org/id/metropolitan-district-council/leeds,Leeds City Council,31/10/2020,Adults and Health,Services For Adults Under 65 Mental/Dis,Third Party Payments,Fees - Level 4,520,07/10/2020,2010-00430,0.00,198.00,R,AE BIA Assessments Limited,No
Http://opendatacommunities.org/id/metropolitan-district-council/leeds,Leeds City Council,31/10/2020,Adults and Health,Services For Adults Under 65 Mental/Dis,Third Party Payments,Fees - Level 4,520,07/10/2020,2010-00431,0.00,198.00,R,AE BIA Assessments Limited,No
Http://opendatacommunities.org/id/metropolitan-district-council/leeds,Leeds City Council,31/10/2020,Adults and Health,Services For Adults Under 65 Mental/Dis,Third Party Payments,Fees - Level 4,520,12/10/2020,2010-00432,0.00,198.00,R,AE BIA Assessments Limited,No
Http://opendatacommunities.org/id/metropolitan-district-council/leeds,Leeds City Council,31/10/2020,Adults and Health,Services For Adults Under 65 Mental/Dis,Third Party Payments,Fees - Level 4,520,13/10/2020,2010-00433,0.00,198.00,R,AE BIA Assessments Limited,No
Http://opendatacommunities.org/id/metropolitan-district-council/leeds,Leeds City Council,31/10/2020,Adults and Health,Services For Adults Under 65 Mental/Dis,Third Party Payments,Fees - Level 4,520,13/10/2020,2010-00434,0.00,198.00,R,AE BIA Assessments Limited,No
Http://opendatacommunities.org/id/metropolitan-district-council/leeds,Leeds City Council,31/10/2020,Adults and Health,Services For Adults Under 65 Mental/Dis,Third Party Payments,Fees - Level 4,520,19/10/2020,2010-00435,0.00,198.00,R,AE BIA Assessments Limited,No
Http://opendatacommunities.org/id/metropolitan-district-council/leeds,Leeds City Council,31/10/2020,Adults and Health,Services For Adults Under 65 Mental/Dis,Third Party Payments,Fees - Level 4,520,22/10/2020,2010-00436,0.00,198.00,R,AE BIA Assessments Limited,No
Http://opendatacommunities.org/id/metropolitan-district-council/leeds,Leeds City Council,31/10/2020,Adults and Health,Services For Adults Under 65 Mental/Dis,Third Party Payments,Fees - Level 4,520,22/10/2020,2010-00437,0.00,198.00,R,AE BIA Assessments Limited,No
Http://opendatacommunities.org/id/metropolitan-district-council/leeds,Leeds City Council,31/10/2020,Adults and Health,Services For Adults Under 65 Mental/Dis,Third Party Payments,Fees - Level 4,520,22/10/2020,2010-00438,0.00,198.00,R,AE BIA Assessments Limited,No
Http://opendatacommunities.org/id/metropolitan-district-council/leeds,Leeds City Council,31/10/2020,Adults and Health,Services For Adults Under 65 Mental/Dis,Third Party Payments,Fees - Level 4,520,28/10/2020,2010-00439,0.00,198.00,R,AE BIA Assessments Limited,No
Http://opendatacommunities.org/id/metropolitan-district-council/leeds,Leeds City Council,31/10/2020,Adults and Health,Services For Adults Under 65 Mental/Dis,Third Party Payments,Home Care,568,08/10/2020,2010-00440,0.00,779.60,R,Aegis Care Solutions Ltd,No
Http://opendatacommunities.org/id/metropolitan-district-council/leeds,Leeds City Council,31/10/2020,Adults and Health,Services For Adults Under 65 Mental/Dis,Third Party Payments,Home Care,568,08/10/2020,2010-00441,0.00,1550.40,R,Aegis Care Solutions Ltd,No
Http://opendatacommunities.org/id/metropolitan-district-council/leeds,Leeds City Council,31/10/2020,Adults and Health,Services For Adults Under 65 Mental/Dis,Third Party Payments,Home Care,568,08/10/2020,2010-00442,0.00,1227.90,R,Aegis Care Solutions Ltd,No
Http://opendatacommunities.org/id/metropolitan-district-council/leeds,Leeds City Council,31/10/2020,Adults and Health,Services For Adults Under 65 Mental/Dis,Third Party Payments,Home Care,568,08/10/2020,2010-00443,0.00,356.00,R,Aegis Care Solutions Ltd,No
Http://opendatacommunities.org/id/metropolitan-district-council/leeds,Leeds City Council,31/10/2020,Adults and Health,Services For Adults Under 65 Mental/Dis,Third Party Payments,Home Care,568,08/10/2020,2010-00444,0.00,59.40,R,Aegis Care Solutions Ltd,No
Http://opendatacommunities.org/id/metropolitan-district-council/leeds,Leeds City Council,31/10/2020,Adults and Health,Services For Adults Under 65 Mental/Dis,Third Party Payments,Home Care,568,08/10/2020,2010-00445,0.00,427.20,R,Aegis Care Solutions Ltd,No
Http://opendatacommunities.org/id/metropolitan-district-council/leeds,Leeds City Council,31/10/2020,Adults and Health,Services For Adults Under 65 Mental/Dis,Third Party Payments,Home Care,568,08/10/2020,2010-00446,0.00,1876.70,R,Aegis Care Solutions Ltd,No
Http://opendatacommunities.org/id/metropolitan-district-council/leeds,Leeds City Council,31/10/2020,Adults and Health,Services For Adults Under 65 Mental/Dis,Third Party Payments,Home Care,568,08/10/2020,2010-00447,0.00,1100.30,R,Aegis Care Solutions Ltd,No
Http://opendatacommunities.org/id/metropolitan-district-council/leeds,Leeds City Council,31/10/2020,Adults and Health,Services For Adults Under 65 Mental/Dis,Third Party Payments,Home Care,568,08/10/2020,2010-00448,0.00,618.60,R,Aegis Care Solutions Ltd,No
Http://opendatacommunities.org/id/metropolitan-district-council/leeds,Leeds City Council,31/10/2020,Adults and Health,Services For Adults Under 65 Mental/Dis,Third Party Payments,Home Care,568,08/10/2020,2010-00449,0.00,4076.40,R,Aegis Care Solutions Ltd,No
Http://opendatacommunities.org/id/metropolitan-district-council/leeds,Leeds City Council,31/10/2020,Adults and Health,Services For Older People - 65 And Over,Third Party Payments,Home Care,568,21/10/2020,2010-00450,0.00,13089.02,R,Aegis Care Solutions Ltd,No
Http://opendatacommunities.org/id/metropolitan-district-council/leeds,Leeds City Council,31/10/2020,Adults and Health,Services For Older People Under 65 P/Dis,Third Party Payments,Home Care,568,21/10/2020,2010-00451,0.00,4648.96,R,Aegis Care Solutions Ltd,No
Http://opendatacommunities.org/id/metropolitan-district-council/leeds,Leeds City Council as Accountable Body,31/10/2020,Social Services Pooled Budgets,Jcs For People With Learning Disabilitie,Third Party Payments,Home Care,568,21/10/2020,2010-00452,0.00,2436.00,R,Aegis Care Solutions Ltd,No
Http://opendatacommunities.org/id/metropolitan-district-council/leeds,Leeds City Council,31/10/2020,Adults and Health,Services For Older People - 65 And Over,Third Party Payments,HCAIT Other,577,21/10/2020,2010-00453,0.00,306.40,R,Aegis Care Solutions Ltd,No
Http://opendatacommunities.org/id/metropolitan-district-council/leeds,Leeds City Council,31/10/2020,City Development,Economic Development,Supplies and Services,Grants To Businesses,243,01/10/2020,2010-00454,0.00,10000.00,R,Aeroservices Ltd,No
Http://opendatacommunities.org/id/metropolitan-district-council/leeds,Leeds City Council,31/10/2020,City Development,Highways,Capital,OTHER COSTS,7,16/10/2020,2010-00455,0.00,407.55,C,Aesg Ltd,No
Http://opendatacommunities.org/id/metropolitan-district-council/leeds,Leeds City Council,31/10/2020,City Development,Highways,Capital,OTHER COSTS,7,16/10/2020,2010-00456,0.00,312.00,C,Aesg Ltd,No
Http://opendatacommunities.org/id/metropolitan-district-council/leeds,Leeds City Council,31/10/2020,Adults and Health,Services For Older People Under 65 P/Dis,Third Party Payments,Day Centre,564,02/10/2020,2010-00457,0.00,537.32,R,Affinity Trust,No
Http://opendatacommunities.org/id/metropolitan-district-council/leeds,Leeds City Council as Accountable Body,31/10/2020,Social Services Pooled Budgets,Jcs For People With Learning Disabilitie,Third Party Payments,Day Centre,564,02/10/2020,2010-00458,0.00,1440.00,R,Affinity Trust,No
Http://opendatacommunities.org/id/metropolitan-district-council/leeds,Leeds City Council as Accountable Body,31/10/2020,Social Services Pooled Budgets,Jcs For People With Learning Disabilitie,Third Party Payments,Home Care,568,02/10/2020,2010-00459,0.00,1080.00,R,Affinity Trust,No
Http://opendatacommunities.org/id/metropolitan-district-council/leeds,Leeds City Council as Accountable Body,31/10/2020,Social Services Pooled Budgets,Jcs For People With Learning Disabilitie,Third Party Payments,Home Care,568,02/10/2020,2010-00460,0.00,1800.00,R,Affinity Trust,No
Http://opendatacommunities.org/id/metropolitan-district-council/leeds,Leeds City Council as Accountable Body,31/10/2020,Social Services Pooled Budgets,Jcs For People With Learning Disabilitie,Third Party Payments,Day Centre,564,02/10/2020,2010-00461,0.00,720.00,R,Affinity Trust,No
Http://opendatacommunities.org/id/metropolitan-district-council/leeds,Leeds City Council as Accountable Body,31/10/2020,Social Services Pooled Budgets,Jcs For People With Learning Disabilitie,Third Party Payments,Home Care,568,02/10/2020,2010-00462,0.00,1560.00,R,Affinity Trust,No
Http://opendatacommunities.org/id/metropolitan-district-council/leeds,Leeds City Council as Accountable Body,31/10/2020,Social Services Pooled Budgets,Jcs For People With Learning Disabilitie,Third Party Payments,Home Care,568,02/10/2020,2010-00463,0.00,2640.00,R,Affinity Trust,No
Http://opendatacommunities.org/id/metropolitan-district-council/leeds,Leeds City Council as Accountable Body,31/10/2020,Social Services Pooled Budgets,Jcs For People With Learning Disabilitie,Third Party Payments,Home Care,568,02/10/2020,2010-00464,0.00,2011.20,R,Affinity Trust,No
Http://opendatacommunities.org/id/metropolitan-district-council/leeds,Leeds City Council as Accountable Body,31/10/2020,Social Services Pooled Budgets,Jcs For People With Learning Disabilitie,Third Party Payments,Home Care,568,02/10/2020,2010-00465,0.00,1980.00,R,Affinity Trust,No
Http://opendatacommunities.org/id/metropolitan-district-council/leeds,Leeds City Council as Accountable Body,31/10/2020,Social Services Pooled Budgets,Jcs For People With Learning Disabilitie,Third Party Payments,Day Centre,564,02/10/2020,2010-00466,0.00,1080.00,R,Affinity Trust,No
Http://opendatacommunities.org/id/metropolitan-district-council/leeds,Leeds City Council as Accountable Body,31/10/2020,Social Services Pooled Budgets,Jcs For People With Learning Disabilitie,Third Party Payments,Day Centre,564,02/10/2020,2010-00467,0.00,2031.48,R,Affinity Trust,No
Http://opendatacommunities.org/id/metropolitan-district-council/leeds,Leeds City Council as Accountable Body,31/10/2020,Social Services Pooled Budgets,Jcs For People With Learning Disabilitie,Third Party Payments,Home Care,568,02/10/2020,2010-00468,0.00,770.96,R,Affinity Trust,No
Http://opendatacommunities.org/id/metropolitan-district-council/leeds,Leeds City Council as Accountable Body,31/10/2020,Social Services Pooled Budgets,Jcs For People With Learning Disabilitie,Third Party Payments,Home Care,568,02/10/2020,2010-00469,0.00,3446.80,R,Affinity Trust,No
Http://opendatacommunities.org/id/metropolitan-district-council/leeds,Leeds City Council as Accountable Body,31/10/2020,Social Services Pooled Budgets,Jcs For People With Learning Disabilitie,Third Party Payments,Day Centre,564,02/10/2020,2010-00470,0.00,525.72,R,Affinity Trust,No
Http://opendatacommunities.org/id/metropolitan-district-council/leeds,Leeds City Council as Accountable Body,31/10/2020,Social Services Pooled Budgets,Jcs For People With Learning Disabilitie,Third Party Payments,Home Care,568,02/10/2020,2010-00471,0.00,1613.28,R,Affinity Trust,No
Http://opendatacommunities.org/id/metropolitan-district-council/leeds,Leeds City Council as Accountable Body,31/10/2020,Social Services Pooled Budgets,Jcs For People With Learning Disabilitie,Third Party Payments,Home Care,568,02/10/2020,2010-00472,0.00,804.48,R,Affinity Trust,No
Http://opendatacommunities.org/id/metropolitan-district-council/leeds,Leeds City Council as Accountable Body,31/10/2020,Social Services Pooled Budgets,Jcs For People With Learning Disabilitie,Third Party Payments,Home Care,568,02/10/2020,2010-00473,0.00,1504.72,R,Affinity Trust,No
Http://opendatacommunities.org/id/metropolitan-district-council/leeds,Leeds City Council as Accountable Body,31/10/2020,Social Services Pooled Budgets,Jcs For People With Learning Disabilitie,Third Party Payments,Home Care,568,02/10/2020,2010-00474,0.00,1800.00,R,Affinity Trust,No
Http://opendatacommunities.org/id/metropolitan-district-council/leeds,Leeds City Council as Accountable Body,31/10/2020,Social Services Pooled Budgets,Jcs For People With Learning Disabilitie,Third Party Payments,Home Care,568,02/10/2020,2010-00475,0.00,1005.60,R,Affinity Trust,No
Http://opendatacommunities.org/id/metropolitan-district-council/leeds,Leeds City Council as Accountable Body,31/10/2020,Social Services Pooled Budgets,Jcs For People With Learning Disabilitie,Third Party Payments,Home Care,568,02/10/2020,2010-00476,0.00,360.00,R,Affinity Trust,No
Http://opendatacommunities.org/id/metropolitan-district-council/leeds,Leeds City Council as Accountable Body,31/10/2020,Social Services Pooled Budgets,Jcs For People With Learning Disabilitie,Third Party Payments,Day Centre,564,02/10/2020,2010-00477,0.00,714.78,R,Affinity Trust,No
Http://opendatacommunities.org/id/metropolitan-district-council/leeds,Leeds City Council as Accountable Body,31/10/2020,Social Services Pooled Budgets,Jcs For People With Learning Disabilitie,Third Party Payments,Home Care,568,02/10/2020,2010-00478,0.00,2346.40,R,Affinity Trust,No
Http://opendatacommunities.org/id/metropolitan-district-council/leeds,Leeds City Council as Accountable Body,31/10/2020,Social Services Pooled Budgets,Jcs For People With Learning Disabilitie,Third Party Payments,Day Centre,564,02/10/2020,2010-00479,0.00,1440.00,R,Affinity Trust,No
Http://opendatacommunities.org/id/metropolitan-district-council/leeds,Leeds City Council as Accountable Body,31/10/2020,Social Services Pooled Budgets,Jcs For People With Learning Disabilitie,Third Party Payments,Home Care,568,02/10/2020,2010-00480,0.00,1342.32,R,Affinity Trust,No
Http://opendatacommunities.org/id/metropolitan-district-council/leeds,Leeds City Council as Accountable Body,31/10/2020,Social Services Pooled Budgets,Jcs For People With Learning Disabilitie,Third Party Payments,Home Care,568,02/10/2020,2010-00481,0.00,351.56,R,Affinity Trust,No
Http://opendatacommunities.org/id/metropolitan-district-council/leeds,Leeds City Council as Accountable Body,31/10/2020,Social Services Pooled Budgets,Jcs For People With Learning Disabilitie,Third Party Payments,Home Care,568,02/10/2020,2010-00482,0.00,990.76,R,Affinity Trust,No
Http://opendatacommunities.org/id/metropolitan-district-council/leeds,Leeds City Council as Accountable Body,31/10/2020,Social Services Pooled Budgets,Jcs For People With Learning Disabilitie,Third Party Payments,Day Centre,564,02/10/2020,2010-00483,0.00,416.64,R,Affinity Trust,No
Http://opendatacommunities.org/id/metropolitan-district-council/leeds,Leeds City Council as Accountable Body,31/10/2020,Social Services Pooled Budgets,Jcs For People With Learning Disabilitie,Third Party Payments,Home Care,568,02/10/2020,2010-00484,0.00,1303.50,R,Affinity Trust,No
Http://opendatacommunities.org/id/metropolitan-district-council/leeds,Leeds City Council as Accountable Body,31/10/2020,Social Services Pooled Budgets,Jcs For People With Learning Disabilitie,Third Party Payments,Home Care,568,02/10/2020,2010-00485,0.00,1211.04,R,Affinity Trust,No
Http://opendatacommunities.org/id/metropolitan-district-council/leeds,Leeds City Council as Accountable Body,31/10/2020,Social Services Pooled Budgets,Jcs For People With Learning Disabilitie,Third Party Payments,Home Care,568,02/10/2020,2010-00486,0.00,639.20,R,Affinity Trust,No
Http://opendatacommunities.org/id/metropolitan-district-council/leeds,Leeds City Council as Accountable Body,31/10/2020,Social Services Pooled Budgets,Jcs For People With Learning Disabilitie,Third Party Payments,Home Care,568,02/10/2020,2010-00487,0.00,408.00,R,Affinity Trust,No
Http://opendatacommunities.org/id/metropolitan-district-council/leeds,Leeds City Council as Accountable Body,31/10/2020,Social Services Pooled Budgets,Jcs For People With Learning Disabilitie,Third Party Payments,Home Care,568,02/10/2020,2010-00488,0.00,1086.64,R,Affinity Trust,No
Http://opendatacommunities.org/id/metropolitan-district-council/leeds,Leeds City Council as Accountable Body,31/10/2020,Social Services Pooled Budgets,Jcs For People With Learning Disabilitie,Third Party Payments,Home Care,568,02/10/2020,2010-00489,0.00,3875.15,R,Affinity Trust,No
Http://opendatacommunities.org/id/metropolitan-district-council/leeds,Leeds City Council as Accountable Body,31/10/2020,Social Services Pooled Budgets,Jcs For People With Learning Disabilitie,Third Party Payments,Home Care,568,02/10/2020,2010-00490,0.00,408.64,R,Affinity Trust,No
Http://opendatacommunities.org/id/metropolitan-district-council/leeds,Leeds City Council as Accountable Body,31/10/2020,Social Services Pooled Budgets,Jcs For People With Learning Disabilitie,Third Party Payments,Home Care,568,02/10/2020,2010-00491,0.00,958.80,R,Affinity Trust,No
Http://opendatacommunities.org/id/metropolitan-district-council/leeds,Leeds City Council as Accountable Body,31/10/2020,Social Services Pooled Budgets,Jcs For People With Learning Disabilitie,Third Party Payments,Home Care,568,02/10/2020,2010-00492,0.00,767.04,R,Affinity Trust,No
Http://opendatacommunities.org/id/metropolitan-district-council/leeds,Leeds City Council as Accountable Body,31/10/2020,Social Services Pooled Budgets,Jcs For People With Learning Disabilitie,Third Party Payments,Home Care,568,02/10/2020,2010-00493,0.00,143.82,R,Affinity Trust,No
Http://opendatacommunities.org/id/metropolitan-district-council/leeds,Leeds City Council as Accountable Body,31/10/2020,Social Services Pooled Budgets,Jcs For People With Learning Disabilitie,Third Party Payments,Home Care,568,02/10/2020,2010-00494,0.00,255.68,R,Affinity Trust,No
Http://opendatacommunities.org/id/metropolitan-district-council/leeds,Leeds City Council as Accountable Body,31/10/2020,Social Services Pooled Budgets,Jcs For People With Learning Disabilitie,Third Party Payments,Home Care,568,02/10/2020,2010-00495,0.00,319.60,R,Affinity Trust,No
Http://opendatacommunities.org/id/metropolitan-district-council/leeds,Leeds City Council as Accountable Body,31/10/2020,Social Services Pooled Budgets,Jcs For People With Learning Disabilitie,Third Party Payments,Home Care,568,02/10/2020,2010-00496,0.00,420.00,R,Affinity Trust,No
Http://opendatacommunities.org/id/metropolitan-district-council/leeds,Leeds City Council as Accountable Body,31/10/2020,Social Services Pooled Budgets,Jcs For People With Learning Disabilitie,Third Party Payments,Home Care,568,06/10/2020,2010-00497,0.00,1350.31,R,Affinity Trust,No
Http://opendatacommunities.org/id/metropolitan-district-council/leeds,Leeds City Council as Accountable Body,31/10/2020,Social Services Pooled Budgets,Jcs For People With Learning Disabilitie,Third Party Payments,Home Care,568,06/10/2020,2010-00498,0.00,335.58,R,Affinity Trust,No
Http://opendatacommunities.org/id/metropolitan-district-council/leeds,Leeds City Council as Accountable Body,31/10/2020,Social Services Pooled Budgets,Jcs For People With Learning Disabilitie,Third Party Payments,Home Care,568,06/10/2020,2010-00499,0.00,735.08,R,Affinity Trust,No
Http://opendatacommunities.org/id/metropolitan-district-council/leeds,Leeds City Council as Accountable Body,31/10/2020,Social Services Pooled Budgets,Jcs For People With Learning Disabilitie,Third Party Payments,Day Centre,564,06/10/2020,2010-00500,0.00,720.00,R,Affinity Trust,No
Http://opendatacommunities.org/id/metropolitan-district-council/leeds,Leeds City Council,31/10/2020,Adults and Health,Services For Adults Under 65 Mental/Dis,Third Party Payments,Home Care,568,06/10/2020,2010-00501,0.00,511.36,R,Affinity Trust,No
Http://opendatacommunities.org/id/metropolitan-district-council/leeds,Leeds City Council,31/10/2020,Adults and Health,Services For Older People Under 65 P/Dis,Third Party Payments,Home Care,568,06/10/2020,2010-00502,0.00,1143.76,R,Affinity Trust,No
Http://opendatacommunities.org/id/metropolitan-district-council/leeds,Leeds City Council as Accountable Body,31/10/2020,Social Services Pooled Budgets,Jcs For People With Learning Disabilitie,Third Party Payments,Day Centre,564,06/10/2020,2010-00503,0.00,631.98,R,Affinity Trust,No
Http://opendatacommunities.org/id/metropolitan-district-council/leeds,Leeds City Council,31/10/2020,Adults and Health,Services For Older People Under 65 P/Dis,Third Party Payments,Day Centre,564,07/10/2020,2010-00504,0.00,537.32,R,Affinity Trust,No
Http://opendatacommunities.org/id/metropolitan-district-council/leeds,Leeds City Council,31/10/2020,Adults and Health,Services For Older People - 65 And Over,Third Party Payments,Home Care,568,07/10/2020,2010-00505,0.00,511.36,R,Affinity Trust,No
Http://opendatacommunities.org/id/metropolitan-district-council/leeds,Leeds City Council,31/10/2020,Adults and Health,Services For Older People Under 65 P/Dis,Third Party Payments,Home Care,568,07/10/2020,2010-00506,0.00,639.20,R,Affinity Trust,No
Http://opendatacommunities.org/id/metropolitan-district-council/leeds,Leeds City Council,31/10/2020,Adults and Health,Services For Adults Under 65 Mental/Dis,Third Party Payments,Home Care,568,07/10/2020,2010-00507,0.00,191.76,R,Affinity Trust,No
Http://opendatacommunities.org/id/metropolitan-district-council/leeds,Leeds City Council,31/10/2020,Adults and Health,Services For Older People Under 65 P/Dis,Third Party Payments,Home Care,568,07/10/2020,2010-00508,0.00,740.08,R,Affinity Trust,No
Http://opendatacommunities.org/id/metropolitan-district-council/leeds,Leeds City Council,31/10/2020,Adults and Health,Services For Older People Under 65 P/Dis,Third Party Payments,Home Care,568,07/10/2020,2010-00509,0.00,605.52,R,Affinity Trust,No
Http://opendatacommunities.org/id/metropolitan-district-council/leeds,Leeds City Council as Accountable Body,31/10/2020,Social Services Pooled Budgets,Jcs For People With Learning Disabilitie,Third Party Payments,Home Care,568,07/10/2020,2010-00510,0.00,1342.32,R,Affinity Trust,No
Http://opendatacommunities.org/id/metropolitan-district-council/leeds,Leeds City Council as Accountable Body,31/10/2020,Social Services Pooled Budgets,Jcs For People With Learning Disabilitie,Third Party Payments,Home Care,568,07/10/2020,2010-00511,0.00,143.82,R,Affinity Trust,No
Http://opendatacommunities.org/id/metropolitan-district-council/leeds,Leeds City Council as Accountable Body,31/10/2020,Social Services Pooled Budgets,Jcs For People With Learning Disabilitie,Third Party Payments,Home Care,568,07/10/2020,2010-00512,0.00,990.76,R,Affinity Trust,No
Http://opendatacommunities.org/id/metropolitan-district-council/leeds,Leeds City Council as Accountable Body,31/10/2020,Social Services Pooled Budgets,Jcs For People With Learning Disabilitie,Third Party Payments,Day Centre,564,07/10/2020,2010-00513,0.00,416.64,R,Affinity Trust,No
Http://opendatacommunities.org/id/metropolitan-district-council/leeds,Leeds City Council as Accountable Body,31/10/2020,Social Services Pooled Budgets,Jcs For People With Learning Disabilitie,Third Party Payments,Home Care,568,07/10/2020,2010-00514,0.00,1377.75,R,Affinity Trust,No
Http://opendatacommunities.org/id/metropolitan-district-council/leeds,Leeds City Council as Accountable Body,31/10/2020,Social Services Pooled Budgets,Jcs For People With Learning Disabilitie,Third Party Payments,Home Care,568,07/10/2020,2010-00515,0.00,1211.04,R,Affinity Trust,No
Http://opendatacommunities.org/id/metropolitan-district-council/leeds,Leeds City Council as Accountable Body,31/10/2020,Social Services Pooled Budgets,Jcs For People With Learning Disabilitie,Third Party Payments,Home Care,568,07/10/2020,2010-00516,0.00,639.20,R,Affinity Trust,No
Http://opendatacommunities.org/id/metropolitan-district-council/leeds,Leeds City Council as Accountable Body,31/10/2020,Social Services Pooled Budgets,Jcs For People With Learning Disabilitie,Third Party Payments,Day Centre,564,07/10/2020,2010-00517,0.00,687.14,R,Affinity Trust,No
Http://opendatacommunities.org/id/metropolitan-district-council/leeds,Leeds City Council as Accountable Body,31/10/2020,Social Services Pooled Budgets,Jcs For People With Learning Disabilitie,Third Party Payments,Home Care,568,07/10/2020,2010-00518,0.00,408.00,R,Affinity Trust,No
Http://opendatacommunities.org/id/metropolitan-district-council/leeds,Leeds City Council as Accountable Body,31/10/2020,Social Services Pooled Budgets,Jcs For People With Learning Disabilitie,Third Party Payments,Home Care,568,07/10/2020,2010-00519,0.00,1086.64,R,Affinity Trust,No
Http://opendatacommunities.org/id/metropolitan-district-council/leeds,Leeds City Council as Accountable Body,31/10/2020,Social Services Pooled Budgets,Jcs For People With Learning Disabilitie,Third Party Payments,Home Care,568,07/10/2020,2010-00520,0.00,3935.08,R,Affinity Trust,No
Http://opendatacommunities.org/id/metropolitan-district-council/leeds,Leeds City Council as Accountable Body,31/10/2020,Social Services Pooled Budgets,Jcs For People With Learning Disabilitie,Third Party Payments,Home Care,568,07/10/2020,2010-00521,0.00,408.64,R,Affinity Trust,No
Http://opendatacommunities.org/id/metropolitan-district-council/leeds,Leeds City Council as Accountable Body,31/10/2020,Social Services Pooled Budgets,Jcs For People With Learning Disabilitie,Third Party Payments,Home Care,568,07/10/2020,2010-00522,0.00,1219.45,R,Affinity Trust,No
Http://opendatacommunities.org/id/metropolitan-district-council/leeds,Leeds City Council as Accountable Body,31/10/2020,Social Services Pooled Budgets,Jcs For People With Learning Disabilitie,Third Party Payments,Home Care,568,07/10/2020,2010-00523,0.00,767.04,R,Affinity Trust,No
Http://opendatacommunities.org/id/metropolitan-district-council/leeds,Leeds City Council as Accountable Body,31/10/2020,Social Services Pooled Budgets,Jcs For People With Learning Disabilitie,Third Party Payments,Home Care,568,07/10/2020,2010-00524,0.00,223.72,R,Affinity Trust,No
Http://opendatacommunities.org/id/metropolitan-district-council/leeds,Leeds City Council as Accountable Body,31/10/2020,Social Services Pooled Budgets,Jcs For People With Learning Disabilitie,Third Party Payments,Home Care,568,07/10/2020,2010-00525,0.00,319.60,R,Affinity Trust,No
Http://opendatacommunities.org/id/metropolitan-district-council/leeds,Leeds City Council as Accountable Body,31/10/2020,Social Services Pooled Budgets,Jcs For People With Learning Disabilitie,Third Party Payments,Home Care,568,07/10/2020,2010-00526,0.00,420.00,R,Affinity Trust,No
Http://opendatacommunities.org/id/metropolitan-district-council/leeds,Leeds City Council,31/10/2020,Adults and Health,Services For Adults Under 65 Mental/Dis,Third Party Payments,Home Care,568,07/10/2020,2010-00527,0.00,319.60,R,Affinity Trust,No
Http://opendatacommunities.org/id/metropolitan-district-council/leeds,Leeds City Council,31/10/2020,Adults and Health,Services For Older People Under 65 P/Dis,Third Party Payments,Home Care,568,07/10/2020,2010-00528,0.00,849.41,R,Affinity Trust,No
Http://opendatacommunities.org/id/metropolitan-district-council/leeds,Leeds City Council,31/10/2020,Adults and Health,Services For Older People Under 65 P/Dis,Third Party Payments,Home Care,568,07/10/2020,2010-00529,0.00,555.06,R,Affinity Trust,No
Http://opendatacommunities.org/id/metropolitan-district-council/leeds,Leeds City Council,31/10/2020,Adults and Health,Services For Older People Under 65 P/Dis,Third Party Payments,Home Care,568,07/10/2020,2010-00530,0.00,639.20,R,Affinity Trust,No
Http://opendatacommunities.org/id/metropolitan-district-council/leeds,Leeds City Council,31/10/2020,Adults and Health,Services For Older People - 65 And Over,Third Party Payments,Home Care,568,07/10/2020,2010-00531,0.00,511.36,R,Affinity Trust,No
Http://opendatacommunities.org/id/metropolitan-district-council/leeds,Leeds City Council,31/10/2020,Adults and Health,Services For Older People Under 65 P/Dis,Third Party Payments,Home Care,568,12/10/2020,2010-00532,0.00,639.20,R,Affinity Trust,No
Http://opendatacommunities.org/id/metropolitan-district-council/leeds,Leeds City Council,31/10/2020,Adults and Health,Services For Older People Under 65 P/Dis,Third Party Payments,Sheltered Accommodation,569,14/10/2020,2010-00533,0.00,8290.80,R,Affinity Trust North Divisional Office,No
Http://opendatacommunities.org/id/metropolitan-district-council/leeds,Leeds City Council as Accountable Body,31/10/2020,Social Services Pooled Budgets,Jcs For People With Learning Disabilitie,Third Party Payments,Sheltered Accommodation,569,14/10/2020,2010-00534,0.00,129409.28,R,Affinity Trust North Divisional Office,No
Http://opendatacommunities.org/id/metropolitan-district-council/leeds,Leeds City Council,31/10/2020,Communities and Environment,Parks and Countryside  ,Transport,External Hire -Occasional,304,17/09/2020,2010-00535,0.00,54.18,R,Afi Uplift,Yes
Http://opendatacommunities.org/id/metropolitan-district-council/leeds,Leeds City Council,31/10/2020,Communities and Environment,Parks and Countryside  ,Transport,External Hire -Occasional,304,17/09/2020,2010-00536,0.00,93.40,R,Afi Uplift,Yes
Http://opendatacommunities.org/id/metropolitan-district-council/leeds,Leeds City Council,31/10/2020,Communities and Environment,Parks and Countryside  ,Transport,Hire Of Movable Plant & Machinery,315,17/09/2020,2010-00537,0.00,1.46,R,Afi Uplift,Yes
Http://opendatacommunities.org/id/metropolitan-district-council/leeds,Leeds City Council,31/10/2020,Communities and Environment,Parks and Countryside  ,Transport,External Hire -Occasional,304,17/09/2020,2010-00538,0.00,19.97,R,Afi Uplift,Yes
Http://opendatacommunities.org/id/metropolitan-district-council/leeds,Leeds City Council,31/10/2020,Communities and Environment,Parks and Countryside  ,Transport,External Hire -Occasional,304,17/09/2020,2010-00539,0.00,119.94,R,Afi Uplift,Yes
Http://opendatacommunities.org/id/metropolitan-district-council/leeds,Leeds City Council,31/10/2020,Resources and Housing,Commercial Services,Supplies and Services,Compensation Claims,200,09/10/2020,2010-00540,0.00,447.20,R,REDACTED PERSONAL DATA,No
Http://opendatacommunities.org/id/metropolitan-district-council/leeds,Leeds City Council,31/10/2020,Adults and Health,Other Adult Services,Supplies and Services,Commissioned Services,264,01/10/2020,2010-00541,0.00,13772.00,R,Age Uk Leeds,No
Http://opendatacommunities.org/id/metropolitan-district-council/leeds,Leeds City Council,31/10/2020,Adults and Health,Other Adult Services,Supplies and Services,Commissioned Services,264,01/10/2020,2010-00542,0.00,17270.00,R,Age Uk Leeds,No
Http://opendatacommunities.org/id/metropolitan-district-council/leeds,Leeds City Council,31/10/2020,Adults and Health,Services For Older People - 65 And Over,Third Party Payments,Payments To Voluntary Organisations,561,01/10/2020,2010-00543,0.00,10599.75,R,Age Uk Leeds,No
Http://opendatacommunities.org/id/metropolitan-district-council/leeds,Leeds City Council,31/10/2020,Insurance,Insurance,Supplies and Services,Insurance Claims,248,01/10/2020,2010-00544,0.00,2652.00,R,Ageas Law,No
Http://opendatacommunities.org/id/metropolitan-district-council/leeds,Leeds City Council,31/10/2020,Insurance,Insurance,Supplies and Services,Insurance Claims,248,01/10/2020,2010-00545,0.00,360.00,R,Ageas Law,No
Http://opendatacommunities.org/id/metropolitan-district-council/leeds,Leeds City Council,31/10/2020,Insurance,Insurance,Supplies and Services,Insurance Claims,248,15/10/2020,2010-00546,0.00,216.00,R,Ageas Law,No
Http://opendatacommunities.org/id/metropolitan-district-council/leeds,Leeds City Council,31/10/2020,Adults and Health,Services For Older People - 65 And Over,Transfer Payments,Direct Payments,626,29/10/2020,2010-00547,0.00,1000.00,R,REDACTED PERSONAL DATA,No
Http://opendatacommunities.org/id/metropolitan-district-council/leeds,Leeds City Council,31/10/2020,Communities and Environment,Parks and Countryside,Supplies and Services,Operational Materials,205,21/10/2020,2010-00548,0.00,756.00,R,Agrovista UK Ltd,No
Http://opendatacommunities.org/id/metropolitan-district-council/leeds,Leeds City Council,31/10/2020,Communities and Environment,Customer Access,Supplies and Services,Bought In Professional Services,277,08/10/2020,2010-00549,0.00,20.25,R,Ahmed Moustafa Moustafa Mousa,No
Http://opendatacommunities.org/id/metropolitan-district-council/leeds,Leeds City Council,31/10/2020,Communities and Environment,Customer Access,Supplies and Services,Bought In Professional Services,277,14/10/2020,2010-00550,0.00,18.00,R,Ahmed Moustafa Moustafa Mousa,No
Http://opendatacommunities.org/id/metropolitan-district-council/leeds,Leeds City Council,31/10/2020,Strategic Landlord,Property and Contracts,Transfer Payments,Disrepair Provision,644,01/10/2020,2010-00551,0.00,390.00,R,AHR Building Consultancy Ltd,No
Http://opendatacommunities.org/id/metropolitan-district-council/leeds,Leeds City Council,31/10/2020,Strategic Landlord,Property and Contracts,Transfer Payments,Disrepair Provision,644,01/10/2020,2010-00552,0.00,390.00,R,AHR Building Consultancy Ltd,No
Http://opendatacommunities.org/id/metropolitan-district-council/leeds,Leeds City Council,31/10/2020,Resources and Housing,Shared Services,Supplies and Services,Licences,266,15/10/2020,2010-00553,0.00,-16.20,R,AIDAPT BATHROOMS LTD,No
Http://opendatacommunities.org/id/metropolitan-district-council/leeds,Leeds City Council,31/10/2020,Resources and Housing,Shared Services,Supplies and Services,Licences,266,15/10/2020,2010-00554,0.00,-270.00,R,AIDAPT BATHROOMS LTD,No
Http://opendatacommunities.org/id/metropolitan-district-council/leeds,Leeds City Council,31/10/2020,Resources and Housing,Shared Services,Supplies and Services,Licences,266,15/10/2020,2010-00555,0.00,-71.50,R,AIDAPT BATHROOMS LTD,No
Http://opendatacommunities.org/id/metropolitan-district-council/leeds,Leeds City Council as Accountable Body,31/10/2020,Social Services Pooled Budgets,Leeds Community Equip Store Pooled Budgt,Supplies and Services,Other Equipment,203,15/10/2020,2010-00556,0.00,764.70,R,AIDAPT BATHROOMS LTD,No
Http://opendatacommunities.org/id/metropolitan-district-council/leeds,Leeds City Council as Accountable Body,31/10/2020,Social Services Pooled Budgets,Leeds Community Equip Store Pooled Budgt,Supplies and Services,Other Equipment,203,22/10/2020,2010-00557,0.00,137.50,R,AIDAPT BATHROOMS LTD,No
Http://opendatacommunities.org/id/metropolitan-district-council/leeds,Leeds City Council as Accountable Body,31/10/2020,Social Services Pooled Budgets,Leeds Community Equip Store Pooled Budgt,Supplies and Services,Other Equipment,203,22/10/2020,2010-00558,0.00,8.25,R,AIDAPT BATHROOMS LTD,No
Http://opendatacommunities.org/id/metropolitan-district-council/leeds,Leeds City Council as Accountable Body,31/10/2020,Social Services Pooled Budgets,Leeds Community Equip Store Pooled Budgt,Supplies and Services,Other Equipment,203,23/10/2020,2010-00559,0.00,1281.88,R,AIDAPT BATHROOMS LTD,No
Http://opendatacommunities.org/id/metropolitan-district-council/leeds,Leeds City Council as Accountable Body,31/10/2020,Social Services Pooled Budgets,Leeds Community Equip Store Pooled Budgt,Supplies and Services,Other Equipment,203,23/10/2020,2010-00560,0.00,83.64,R,AIDAPT BATHROOMS LTD,No
Http://opendatacommunities.org/id/metropolitan-district-council/leeds,Leeds City Council as Accountable Body,31/10/2020,Social Services Pooled Budgets,Leeds Community Equip Store Pooled Budgt,Supplies and Services,Other Equipment,203,23/10/2020,2010-00561,0.00,376.38,R,AIDAPT BATHROOMS LTD,No
Http://opendatacommunities.org/id/metropolitan-district-council/leeds,Leeds City Council as Accountable Body,31/10/2020,Social Services Pooled Budgets,Leeds Community Equip Store Pooled Budgt,Supplies and Services,Other Equipment,203,30/10/2020,2010-00562,0.00,1706.72,R,AIDAPT BATHROOMS LTD,No
Http://opendatacommunities.org/id/metropolitan-district-council/leeds,Leeds City Council as Accountable Body,31/10/2020,Social Services Pooled Budgets,Leeds Community Equip Store Pooled Budgt,Supplies and Services,Other Equipment,203,30/10/2020,2010-00563,0.00,2173.80,R,AIDAPT BATHROOMS LTD,No
Http://opendatacommunities.org/id/metropolitan-district-council/leeds,Leeds City Council as Accountable Body,31/10/2020,Social Services Pooled Budgets,Leeds Community Equip Store Pooled Budgt,Supplies and Services,Other Equipment,203,30/10/2020,2010-00564,0.00,638.00,R,AIDAPT BATHROOMS LTD,No
Http://opendatacommunities.org/id/metropolitan-district-council/leeds,Leeds City Council as Accountable Body,31/10/2020,Social Services Pooled Budgets,Leeds Community Equip Store Pooled Budgt,Supplies and Services,Other Equipment,203,30/10/2020,2010-00565,0.00,1227.30,R,AIDAPT BATHROOMS LTD,No
Http://opendatacommunities.org/id/metropolitan-district-council/leeds,Leeds City Council as Accountable Body,31/10/2020,Social Services Pooled Budgets,Leeds Community Equip Store Pooled Budgt,Supplies and Services,Other Equipment,203,30/10/2020,2010-00566,0.00,515.80,R,AIDAPT BATHROOMS LTD,No
Http://opendatacommunities.org/id/metropolitan-district-council/leeds,Leeds City Council as Accountable Body,31/10/2020,Social Services Pooled Budgets,Leeds Community Equip Store Pooled Budgt,Supplies and Services,Other Equipment,203,30/10/2020,2010-00567,0.00,2065.30,R,AIDAPT BATHROOMS LTD,No
Http://opendatacommunities.org/id/metropolitan-district-council/leeds,Leeds City Council,31/10/2020,Strategic Accounts,Miscellaneous,Transfer Payments,Land Drainage Levies,665,30/10/2020,2010-00568,0.00,3868.44,R,Ainsty (2008) Internal Drainage Board,No
Http://opendatacommunities.org/id/metropolitan-district-council/leeds,Leeds City Council,31/10/2020,Resources and Housing,Commercial Services  ,Supplies and Services,Operational Materials,205,07/09/2020,2010-00569,0.00,5.00,R,Air Force Pneumatics And,Yes
Http://opendatacommunities.org/id/metropolitan-district-council/leeds,Leeds City Council,31/10/2020,Resources and Housing,Commercial Services  ,Supplies and Services,Operational Materials,205,07/09/2020,2010-00570,0.00,60.00,R,Air Force Pneumatics And,Yes
Http://opendatacommunities.org/id/metropolitan-district-council/leeds,Leeds City Council,31/10/2020,Resources and Housing,Leeds Building Services,Supplies and Services,Operational Materials,205,01/10/2020,2010-00571,0.00,196.32,R,AIR LIQUIDE UK,No
Http://opendatacommunities.org/id/metropolitan-district-council/leeds,Leeds City Council,31/10/2020,Communities and Environment,Environmental Health,Supplies and Services,Other Hired And Contracted Services,265,15/10/2020,2010-00572,0.00,564.10,R,AIR LIQUIDE UK,No
Http://opendatacommunities.org/id/metropolitan-district-council/leeds,Leeds City Council,31/10/2020,Resources and Housing,Leeds Building Services,Supplies and Services,Operational Materials,205,30/10/2020,2010-00573,0.00,196.32,R,AIR LIQUIDE UK,No
Http://opendatacommunities.org/id/metropolitan-district-council/leeds,Leeds City Council,31/10/2020,Resources and Housing,Digital and Information Services,Capital,OTHER COSTS,7,21/10/2020,2010-00574,0.00,69850.00,C,Aire Logic Ltd,No
Http://opendatacommunities.org/id/metropolitan-district-council/leeds,Leeds City Council,31/10/2020,Communities and Environment,Parks and Countryside,Supplies and Services,Other Hired And Contracted Services,265,02/10/2020,2010-00575,0.00,575.00,R,Aire Valley Tree Services Ltd,No
Http://opendatacommunities.org/id/metropolitan-district-council/leeds,Leeds City Council,31/10/2020,Communities and Environment,Parks and Countryside,Supplies and Services,Other Hired And Contracted Services,265,23/10/2020,2010-00576,0.00,375.00,R,Aire Valley Tree Services Ltd,No
Http://opendatacommunities.org/id/metropolitan-district-council/leeds,Leeds City Council,31/10/2020,Communities and Environment,Parks and Countryside,Supplies and Services,Other Hired And Contracted Services,265,28/10/2020,2010-00577,0.00,1295.00,R,Aire Valley Tree Services Ltd,No
Http://opendatacommunities.org/id/metropolitan-district-council/leeds,Leeds City Council,31/10/2020,Adults and Health,Services For Older People - 65 And Over,Third Party Payments,Residential Care Dementia,571,14/10/2020,2010-00578,0.00,49003.69,R,Aire View Residential Home,No
Http://opendatacommunities.org/id/metropolitan-district-council/leeds,Leeds City Council,31/10/2020,Adults and Health,Services For Older People - 65 And Over,Third Party Payments,Residential,580,14/10/2020,2010-00579,0.00,5923.80,R,Aire View Residential Home,No
Http://opendatacommunities.org/id/metropolitan-district-council/leeds,Leeds City Council,31/10/2020,Adults and Health,Public Health,Third Party Payments,Public Health Commissioned Services,526,23/10/2020,2010-00580,0.00,1438.85,R,Aireborough Family Practice,No
Http://opendatacommunities.org/id/metropolitan-district-council/leeds,Leeds City Council,31/10/2020,Children and Families,Social Care,Third Party Payments,Services Rendered By Voluntary Sector,505,12/10/2020,2010-00581,0.00,25631.00,R,Aireborough Supported Activities Scheme,No
Http://opendatacommunities.org/id/metropolitan-district-council/leeds,Leeds City Council,31/10/2020,Children and Families,Social Care,Third Party Payments,Services Rendered By Voluntary Sector,505,12/10/2020,2010-00582,0.00,30000.00,R,Aireborough Supported Activities Scheme,No
Http://opendatacommunities.org/id/metropolitan-district-council/leeds,Leeds City Council,31/10/2020,Adults and Health,Services For Older People - 65 And Over,Third Party Payments,Residential Care Dementia,571,14/10/2020,2010-00583,0.00,1511.60,R,Airedale Care Home,No
Http://opendatacommunities.org/id/metropolitan-district-council/leeds,Leeds City Council,31/10/2020,Adults and Health,Services For Older People - 65 And Over,Third Party Payments,Residential,580,14/10/2020,2010-00584,0.00,20380.10,R,Airedale Care Home,No
Http://opendatacommunities.org/id/metropolitan-district-council/leeds,Leeds City Council,31/10/2020,Resources and Housing,Commercial Services,Premises,Fixtures & Fittings,131,02/10/2020,2010-00585,0.00,18736.00,R,AIREDALE CATERING EQUIPMENT LTD,No
Http://opendatacommunities.org/id/metropolitan-district-council/leeds,Leeds City Council,31/10/2020,Resources and Housing,Commercial Services,Premises,Fixtures & Fittings,131,23/10/2020,2010-00586,0.00,20874.00,R,AIREDALE CATERING EQUIPMENT LTD,No
Http://opendatacommunities.org/id/metropolitan-district-council/leeds,Leeds City Council,31/10/2020,Resources and Housing,Commercial Services,Supplies and Services,Operational Furniture And Equipment,203,29/10/2020,2010-00587,0.00,1206.00,R,AIREDALE CATERING EQUIPMENT LTD,No
Http://opendatacommunities.org/id/metropolitan-district-council/leeds,Leeds City Council,31/10/2020,Resources and Housing,Leeds Building Services,Supplies and Services,Other Hired And Contracted Services,265,29/10/2020,2010-00588,0.00,6143.00,R,AIREDALE CATERING EQUIPMENT LTD,No
Http://opendatacommunities.org/id/metropolitan-district-council/leeds,Leeds City Council,31/10/2020,Children and Families,Social Care  ,Transport,Public Transport Expenses,310,04/09/2020,2010-00589,0.00,15.14,R,Airpay Amber Cars Leeds-A,Yes
Http://opendatacommunities.org/id/metropolitan-district-council/leeds,Leeds City Council as Accountable Body,31/10/2020,Social Services Pooled Budgets,Jcs For People With Learning Disabilitie,Third Party Payments,Residential,580,14/10/2020,2010-00590,0.00,6709.72,R,AITCH care homes,No
Http://opendatacommunities.org/id/metropolitan-district-council/leeds,Leeds City Council,31/10/2020,Resources and Housing,Leeds Building Services,Supplies and Services,Operational Furniture And Equipment,203,01/10/2020,2010-00591,0.00,44.50,R,AJM FIXINGS & POWER TOOLS LTD,No
Http://opendatacommunities.org/id/metropolitan-district-council/leeds,Leeds City Council,31/10/2020,Resources and Housing,Leeds Building Services,Supplies and Services,Operational Furniture And Equipment,203,01/10/2020,2010-00592,0.00,32.60,R,AJM FIXINGS & POWER TOOLS LTD,No
Http://opendatacommunities.org/id/metropolitan-district-council/leeds,Leeds City Council,31/10/2020,Resources and Housing,Leeds Building Services,Supplies and Services,Operational Materials,205,01/10/2020,2010-00593,0.00,870.00,R,AJM FIXINGS & POWER TOOLS LTD,No
Http://opendatacommunities.org/id/metropolitan-district-council/leeds,Leeds City Council,31/10/2020,Resources and Housing,Leeds Building Services,Supplies and Services,Operational Furniture And Equipment,203,01/10/2020,2010-00594,0.00,94.00,R,AJM FIXINGS & POWER TOOLS LTD,No
Http://opendatacommunities.org/id/metropolitan-district-council/leeds,Leeds City Council,31/10/2020,Resources and Housing,Leeds Building Services,Supplies and Services,Operational Furniture And Equipment,203,01/10/2020,2010-00595,0.00,282.00,R,AJM FIXINGS & POWER TOOLS LTD,No
Http://opendatacommunities.org/id/metropolitan-district-council/leeds,Leeds City Council,31/10/2020,Resources and Housing,Leeds Building Services,Supplies and Services,STORES - CENTRAL AND OTHER DEPOTS,5,01/10/2020,2010-00596,0.00,154.00,R,AJM FIXINGS & POWER TOOLS LTD,No
Http://opendatacommunities.org/id/metropolitan-district-council/leeds,Leeds City Council,31/10/2020,Resources and Housing,Leeds Building Services,Supplies and Services,Operational Materials,205,01/10/2020,2010-00597,0.00,325.00,R,AJM FIXINGS & POWER TOOLS LTD,No
Http://opendatacommunities.org/id/metropolitan-district-council/leeds,Leeds City Council,31/10/2020,Resources and Housing,Leeds Building Services,Supplies and Services,Operational Materials,205,01/10/2020,2010-00598,0.00,348.00,R,AJM FIXINGS & POWER TOOLS LTD,No
Http://opendatacommunities.org/id/metropolitan-district-council/leeds,Leeds City Council,31/10/2020,Resources and Housing,Leeds Building Services,Supplies and Services,Operational Materials,205,01/10/2020,2010-00599,0.00,154.56,R,AJM FIXINGS & POWER TOOLS LTD,No
Http://opendatacommunities.org/id/metropolitan-district-council/leeds,Leeds City Council,31/10/2020,Resources and Housing,Leeds Building Services,Supplies and Services,Operational Materials,205,01/10/2020,2010-00600,0.00,313.92,R,AJM FIXINGS & POWER TOOLS LTD,No
Http://opendatacommunities.org/id/metropolitan-district-council/leeds,Leeds City Council,31/10/2020,Resources and Housing,Leeds Building Services,Supplies and Services,Operational Furniture And Equipment,203,01/10/2020,2010-00601,0.00,556.40,R,AJM FIXINGS & POWER TOOLS LTD,No
Http://opendatacommunities.org/id/metropolitan-district-council/leeds,Leeds City Council,31/10/2020,Resources and Housing,Leeds Building Services,Supplies and Services,Operational Furniture And Equipment,203,09/10/2020,2010-00602,0.00,62.10,R,AJM FIXINGS & POWER TOOLS LTD,No
Http://opendatacommunities.org/id/metropolitan-district-council/leeds,Leeds City Council,31/10/2020,Resources and Housing,Leeds Building Services,Supplies and Services,Operational Furniture And Equipment,203,09/10/2020,2010-00603,0.00,53.70,R,AJM FIXINGS & POWER TOOLS LTD,No
Http://opendatacommunities.org/id/metropolitan-district-council/leeds,Leeds City Council,31/10/2020,Resources and Housing,Leeds Building Services,Supplies and Services,Operational Furniture And Equipment,203,09/10/2020,2010-00604,0.00,54.30,R,AJM FIXINGS & POWER TOOLS LTD,No
Http://opendatacommunities.org/id/metropolitan-district-council/leeds,Leeds City Council,31/10/2020,Resources and Housing,Leeds Building Services,Supplies and Services,Operational Furniture And Equipment,203,09/10/2020,2010-00605,0.00,75.48,R,AJM FIXINGS & POWER TOOLS LTD,No
Http://opendatacommunities.org/id/metropolitan-district-council/leeds,Leeds City Council,31/10/2020,Resources and Housing,Leeds Building Services,Supplies and Services,Operational Furniture And Equipment,203,09/10/2020,2010-00606,0.00,340.00,R,AJM FIXINGS & POWER TOOLS LTD,No
Http://opendatacommunities.org/id/metropolitan-district-council/leeds,Leeds City Council,31/10/2020,Resources and Housing,Leeds Building Services,Supplies and Services,Operational Materials,205,09/10/2020,2010-00607,0.00,97.70,R,AJM FIXINGS & POWER TOOLS LTD,No
Http://opendatacommunities.org/id/metropolitan-district-council/leeds,Leeds City Council,31/10/2020,Resources and Housing,Leeds Building Services,Supplies and Services,Operational Furniture And Equipment,203,13/10/2020,2010-00608,0.00,34.30,R,AJM FIXINGS & POWER TOOLS LTD,No
Http://opendatacommunities.org/id/metropolitan-district-council/leeds,Leeds City Council,31/10/2020,Resources and Housing,Leeds Building Services,Supplies and Services,Operational Materials,205,13/10/2020,2010-00609,0.00,897.36,R,AJM FIXINGS & POWER TOOLS LTD,No
Http://opendatacommunities.org/id/metropolitan-district-council/leeds,Leeds City Council,31/10/2020,Resources and Housing,Leeds Building Services,Supplies and Services,Operational Furniture And Equipment,203,13/10/2020,2010-00610,0.00,47.60,R,AJM FIXINGS & POWER TOOLS LTD,No
Http://opendatacommunities.org/id/metropolitan-district-council/leeds,Leeds City Council,31/10/2020,Resources and Housing,Leeds Building Services,Supplies and Services,Operational Furniture And Equipment,203,13/10/2020,2010-00611,0.00,44.30,R,AJM FIXINGS & POWER TOOLS LTD,No
Http://opendatacommunities.org/id/metropolitan-district-council/leeds,Leeds City Council,31/10/2020,Resources and Housing,Leeds Building Services,Supplies and Services,STORES - CENTRAL AND OTHER DEPOTS,5,13/10/2020,2010-00612,0.00,2016.00,R,AJM FIXINGS & POWER TOOLS LTD,No
Http://opendatacommunities.org/id/metropolitan-district-council/leeds,Leeds City Council,31/10/2020,Resources and Housing,Leeds Building Services,Supplies and Services,Operational Materials,205,13/10/2020,2010-00613,0.00,39.92,R,AJM FIXINGS & POWER TOOLS LTD,No
Http://opendatacommunities.org/id/metropolitan-district-council/leeds,Leeds City Council,31/10/2020,Resources and Housing,Leeds Building Services,Supplies and Services,Operational Materials,205,20/10/2020,2010-00614,0.00,-1653.20,R,AJM FIXINGS & POWER TOOLS LTD,No
Http://opendatacommunities.org/id/metropolitan-district-council/leeds,Leeds City Council,31/10/2020,Resources and Housing,Leeds Building Services,Supplies and Services,Operational Materials,205,20/10/2020,2010-00615,0.00,1653.20,R,AJM FIXINGS & POWER TOOLS LTD,No
Http://opendatacommunities.org/id/metropolitan-district-council/leeds,Leeds City Council,31/10/2020,Resources and Housing,Leeds Building Services,Supplies and Services,Operational Furniture And Equipment,203,21/10/2020,2010-00616,0.00,23.62,R,AJM FIXINGS & POWER TOOLS LTD,No
Http://opendatacommunities.org/id/metropolitan-district-council/leeds,Leeds City Council,31/10/2020,Resources and Housing,Leeds Building Services,Supplies and Services,Operational Furniture And Equipment,203,21/10/2020,2010-00617,0.00,416.96,R,AJM FIXINGS & POWER TOOLS LTD,No
Http://opendatacommunities.org/id/metropolitan-district-council/leeds,Leeds City Council,31/10/2020,Resources and Housing,Leeds Building Services,Supplies and Services,Operational Furniture And Equipment,203,21/10/2020,2010-00618,0.00,255.00,R,AJM FIXINGS & POWER TOOLS LTD,No
Http://opendatacommunities.org/id/metropolitan-district-council/leeds,Leeds City Council,31/10/2020,Resources and Housing,Leeds Building Services,Supplies and Services,Operational Furniture And Equipment,203,21/10/2020,2010-00619,0.00,376.00,R,AJM FIXINGS & POWER TOOLS LTD,No
Http://opendatacommunities.org/id/metropolitan-district-council/leeds,Leeds City Council,31/10/2020,Resources and Housing,Leeds Building Services,Supplies and Services,Operational Furniture And Equipment,203,21/10/2020,2010-00620,0.00,278.32,R,AJM FIXINGS & POWER TOOLS LTD,No
Http://opendatacommunities.org/id/metropolitan-district-council/leeds,Leeds City Council,31/10/2020,Resources and Housing,Leeds Building Services,Supplies and Services,Operational Furniture And Equipment,203,22/10/2020,2010-00621,0.00,57.10,R,AJM FIXINGS & POWER TOOLS LTD,No
Http://opendatacommunities.org/id/metropolitan-district-council/leeds,Leeds City Council,31/10/2020,Resources and Housing,Leeds Building Services,Supplies and Services,Operational Furniture And Equipment,203,23/10/2020,2010-00622,0.00,28.62,R,AJM FIXINGS & POWER TOOLS LTD,No
Http://opendatacommunities.org/id/metropolitan-district-council/leeds,Leeds City Council,31/10/2020,Resources and Housing,Leeds Building Services,Supplies and Services,Operational Furniture And Equipment,203,23/10/2020,2010-00623,0.00,580.00,R,AJM FIXINGS & POWER TOOLS LTD,No
Http://opendatacommunities.org/id/metropolitan-district-council/leeds,Leeds City Council,31/10/2020,Resources and Housing,Leeds Building Services,Supplies and Services,Operational Materials,205,29/10/2020,2010-00624,0.00,300.00,R,AJM FIXINGS & POWER TOOLS LTD,No
Http://opendatacommunities.org/id/metropolitan-district-council/leeds,Leeds City Council,31/10/2020,Resources and Housing,Leeds Building Services,Supplies and Services,Operational Materials,205,29/10/2020,2010-00625,0.00,335.00,R,AJM FIXINGS & POWER TOOLS LTD,No
Http://opendatacommunities.org/id/metropolitan-district-council/leeds,Leeds City Council,31/10/2020,Resources and Housing,Leeds Building Services,Supplies and Services,STORES - CENTRAL AND OTHER DEPOTS,5,29/10/2020,2010-00626,0.00,1094.05,R,AJM FIXINGS & POWER TOOLS LTD,No
Http://opendatacommunities.org/id/metropolitan-district-council/leeds,Leeds City Council,31/10/2020,Resources and Housing,Leeds Building Services,Supplies and Services,Operational Furniture And Equipment,203,29/10/2020,2010-00627,0.00,53.60,R,AJM FIXINGS & POWER TOOLS LTD,No
Http://opendatacommunities.org/id/metropolitan-district-council/leeds,Leeds City Council,31/10/2020,Resources and Housing,Leeds Building Services,Supplies and Services,Operational Furniture And Equipment,203,29/10/2020,2010-00628,0.00,338.48,R,AJM FIXINGS & POWER TOOLS LTD,No
Http://opendatacommunities.org/id/metropolitan-district-council/leeds,Leeds City Council,31/10/2020,Resources and Housing,Leeds Building Services,Supplies and Services,Operational Furniture And Equipment,203,29/10/2020,2010-00629,0.00,28.62,R,AJM FIXINGS & POWER TOOLS LTD,No
Http://opendatacommunities.org/id/metropolitan-district-council/leeds,Leeds City Council,31/10/2020,Children and Families,Social Care,Third Party Payments,Contact,548,19/10/2020,2010-00630,0.00,4.60,R,REDACTED PERSONAL DATA,No
Http://opendatacommunities.org/id/metropolitan-district-council/leeds,Leeds City Council,31/10/2020,Resources and Housing,Commercial Services,Supplies and Services,Other Hired And Contracted Services,265,16/10/2020,2010-00631,0.00,231.90,R,Akua Uk Ltd,No
Http://opendatacommunities.org/id/metropolitan-district-council/leeds,Leeds City Council,31/10/2020,Adults and Health,Services For Older People - 65 And Over,Third Party Payments,Payments To Voluntary Organisations,561,01/10/2020,2010-00632,0.00,3000.00,R,Al Khidmat Centre,No
Http://opendatacommunities.org/id/metropolitan-district-council/leeds,Leeds City Council,31/10/2020,Children and Families,Social Care  ,Transfer Payments,Leaving Care Grants,635,14/09/2020,2010-00633,0.00,57.63,R,Al Murad,Yes
Http://opendatacommunities.org/id/metropolitan-district-council/leeds,Leeds City Council,31/10/2020,Strategic Landlord,Housing Management,Supplies and Services,Compensation Claims,200,19/10/2020,2010-00634,0.00,200.00,R,REDACTED PERSONAL DATA,No
Http://opendatacommunities.org/id/metropolitan-district-council/leeds,Leeds City Council,31/10/2020,Children and Families,Social Care,Third Party Payments,Services Rendered By Other Organisations,511,02/10/2020,2010-00635,0.00,427.05,R,REDACTED PERSONAL DATA,No
Http://opendatacommunities.org/id/metropolitan-district-council/leeds,Leeds City Council,31/10/2020,Adults and Health,Services For Older People - 65 And Over,Third Party Payments,Residential,580,14/10/2020,2010-00636,0.00,1552.60,R,Albion Court Care Home,No
Http://opendatacommunities.org/id/metropolitan-district-council/leeds,Leeds City Council,31/10/2020,Communities and Environment,Parks and Countryside  ,Supplies and Services,Operational Materials,205,28/09/2020,2010-00637,0.00,12.95,R,Albion Electric Stores Lt,Yes
Http://opendatacommunities.org/id/metropolitan-district-council/leeds,Leeds City Council,31/10/2020,City Development,Economic Development,Supplies and Services,Grants To Businesses,243,02/10/2020,2010-00638,0.00,8358.00,R,ALBION ELECTRIC STORES LTD,No
Http://opendatacommunities.org/id/metropolitan-district-council/leeds,Leeds City Council,31/10/2020,Children and Families,Social Care  ,Premises,Cleaning Maintenance & Toiletries,127,28/08/2020,2010-00639,0.00,9.04,R,Aldi 40 779,Yes
Http://opendatacommunities.org/id/metropolitan-district-council/leeds,Leeds City Council,31/10/2020,City Development,Libraries  Arts & Heritage  ,Supplies and Services,Operational Materials,205,27/08/2020,2010-00640,0.00,112.89,R,Aldi 49 779,Yes
Http://opendatacommunities.org/id/metropolitan-district-council/leeds,Leeds City Council,31/10/2020,Children and Families,Social Care  ,Transfer Payments,Leaving Care Allowances,634,01/09/2020,2010-00641,0.00,4.20,R,Aldi 71 779,Yes
Http://opendatacommunities.org/id/metropolitan-district-council/leeds,Leeds City Council,31/10/2020,Children and Families,Social Care  ,Transfer Payments,Leaving Care Allowances,634,25/09/2020,2010-00642,0.00,45.50,R,Aldi 71 779,Yes
Http://opendatacommunities.org/id/metropolitan-district-council/leeds,Leeds City Council,31/10/2020,Children and Families,Social Care  ,Supplies and Services,Food & Drink,231,01/09/2020,2010-00643,0.00,19.17,R,Aldi 85 779,Yes
Http://opendatacommunities.org/id/metropolitan-district-council/leeds,Leeds City Council,31/10/2020,Children and Families,Social Care  ,Transfer Payments,Leaving Care Allowances,634,11/09/2020,2010-00644,0.00,18.67,R,Aldi 85 779,Yes
Http://opendatacommunities.org/id/metropolitan-district-council/leeds,Leeds City Council,31/10/2020,Children and Families,Social Care  ,Supplies and Services,Food & Drink,231,14/09/2020,2010-00645,0.00,400.00,R,Aldi 85 779,Yes
Http://opendatacommunities.org/id/metropolitan-district-council/leeds,Leeds City Council,31/10/2020,Children and Families,Social Care  ,Premises,Cleaning Maintenance & Toiletries,127,14/09/2020,2010-00646,0.00,-203.76,R,Aldi 85 779,Yes
Http://opendatacommunities.org/id/metropolitan-district-council/leeds,Leeds City Council,31/10/2020,Children and Families,Social Care  ,Supplies and Services,Food & Drink,231,21/09/2020,2010-00647,0.00,260.40,R,Aldi 85 779,Yes
Http://opendatacommunities.org/id/metropolitan-district-council/leeds,Leeds City Council,31/10/2020,Children and Families,Social Care  ,Supplies and Services,Food & Drink,231,25/09/2020,2010-00648,0.00,7.80,R,Aldi 85 779,Yes
Http://opendatacommunities.org/id/metropolitan-district-council/leeds,Leeds City Council,31/10/2020,Children and Families,Social Care  ,Supplies and Services,Food & Drink,231,28/09/2020,2010-00649,0.00,18.06,R,Aldi 85 779,Yes
Http://opendatacommunities.org/id/metropolitan-district-council/leeds,Leeds City Council,31/10/2020,Children and Families,Social Care  ,Supplies and Services,Food & Drink,231,12/09/2020,2010-00650,0.00,31.55,R,Aldi 89 779,Yes
Http://opendatacommunities.org/id/metropolitan-district-council/leeds,Leeds City Council,31/10/2020,Resources and Housing,Strategic Housing Partnership & Support  ,Supplies and Services,Schools related grant expenditure,299,04/09/2020,2010-00651,0.00,28.80,R,Aldi Stores,Yes
Http://opendatacommunities.org/id/metropolitan-district-council/leeds,Leeds City Council,31/10/2020,City Development,Recreation  ,Premises,Cleaning Maintenance & Toiletries,127,07/09/2020,2010-00652,0.00,13.26,R,Aldi Stores,Yes
Http://opendatacommunities.org/id/metropolitan-district-council/leeds,Leeds City Council,31/10/2020,Children and Families,Social Care  ,Transfer Payments,Leaving Care Allowances,634,29/09/2020,2010-00653,0.00,13.83,R,Aldi Stores,Yes
Http://opendatacommunities.org/id/metropolitan-district-council/leeds,Leeds City Council,31/10/2020,Communities and Environment,Customer Access,Supplies and Services,Bought In Professional Services,277,14/10/2020,2010-00654,0.00,34.50,R,Alena Zueva,No
Http://opendatacommunities.org/id/metropolitan-district-council/leeds,Leeds City Council,31/10/2020,Communities and Environment,Customer Access,Supplies and Services,Bought In Professional Services,277,21/10/2020,2010-00655,0.00,18.00,R,Alena Zueva,No
Http://opendatacommunities.org/id/metropolitan-district-council/leeds,Leeds City Council,31/10/2020,Communities and Environment,Customer Access,Supplies and Services,Bought In Professional Services,277,21/10/2020,2010-00656,0.00,11.10,R,Alena Zueva,No
Http://opendatacommunities.org/id/metropolitan-district-council/leeds,Leeds City Council,31/10/2020,Communities and Environment,Parks and Countryside  ,Supplies and Services,Resaleable Materials,204,28/08/2020,2010-00657,0.00,29.92,R,Alex Clark Art Ltd,Yes
Http://opendatacommunities.org/id/metropolitan-district-council/leeds,Leeds City Council,31/10/2020,Communities and Environment,Parks and Countryside  ,Supplies and Services,Resaleable Materials,204,28/08/2020,2010-00658,0.00,2.20,R,Alex Clark Art Ltd,Yes
Http://opendatacommunities.org/id/metropolitan-district-council/leeds,Leeds City Council,31/10/2020,Children and Families,Social Care,Supplies and Services,General Amenity For Clients/Residents,285,02/10/2020,2010-00659,0.00,25.20,R,REDACTED PERSONAL DATA,No
Http://opendatacommunities.org/id/metropolitan-district-council/leeds,Leeds City Council,31/10/2020,Children and Families,Social Care,Transport,Public Transport Expenses,310,02/10/2020,2010-00660,0.00,8.48,R,REDACTED PERSONAL DATA,No
Http://opendatacommunities.org/id/metropolitan-district-council/leeds,Leeds City Council,31/10/2020,Communities and Environment,Benefits  Wlefare and Poverty,Supplies and Services,Grant Related Expenditure,290,29/10/2020,2010-00661,0.00,500.00,R,REDACTED PERSONAL DATA,No
Http://opendatacommunities.org/id/metropolitan-district-council/leeds,Leeds City Council,31/10/2020,Resources and Housing,Commercial Services,Supplies and Services,Other Hired And Contracted Services,265,01/10/2020,2010-00662,0.00,75.00,R,ALEX WAGG,No
Http://opendatacommunities.org/id/metropolitan-district-council/leeds,Leeds City Council,31/10/2020,Resources and Housing,Commercial Services,Supplies and Services,Other Hired And Contracted Services,265,01/10/2020,2010-00663,0.00,75.00,R,ALEX WAGG,No
Http://opendatacommunities.org/id/metropolitan-district-council/leeds,Leeds City Council,31/10/2020,Resources and Housing,Commercial Services,Supplies and Services,Other Hired And Contracted Services,265,05/10/2020,2010-00664,0.00,100.00,R,ALEX WAGG,No
Http://opendatacommunities.org/id/metropolitan-district-council/leeds,Leeds City Council,31/10/2020,Resources and Housing,Commercial Services,Supplies and Services,Other Hired And Contracted Services,265,09/10/2020,2010-00665,0.00,100.00,R,ALEX WAGG,No
Http://opendatacommunities.org/id/metropolitan-district-council/leeds,Leeds City Council,31/10/2020,Resources and Housing,Commercial Services,Transport,Vehicle Spares,345,14/10/2020,2010-00666,0.00,126.00,R,ALEX WAGG,No
Http://opendatacommunities.org/id/metropolitan-district-council/leeds,Leeds City Council,31/10/2020,Resources and Housing,Commercial Services,Supplies and Services,Other Hired And Contracted Services,265,14/10/2020,2010-00667,0.00,140.00,R,ALEX WAGG,No
Http://opendatacommunities.org/id/metropolitan-district-council/leeds,Leeds City Council,31/10/2020,Resources and Housing,Commercial Services,Transport,Vehicle Spares,345,16/10/2020,2010-00668,0.00,155.00,R,ALEX WAGG,No
Http://opendatacommunities.org/id/metropolitan-district-council/leeds,Leeds City Council,31/10/2020,Resources and Housing,Commercial Services,Transport,Vehicle Spares,345,23/10/2020,2010-00669,0.00,145.00,R,ALEX WAGG,No
Http://opendatacommunities.org/id/metropolitan-district-council/leeds,Leeds City Council,31/10/2020,Resources and Housing,Commercial Services,Supplies and Services,Other Hired And Contracted Services,265,30/10/2020,2010-00670,0.00,70.00,R,ALEX WAGG,No
Http://opendatacommunities.org/id/metropolitan-district-council/leeds,Leeds City Council,31/10/2020,Resources and Housing,Commercial Services,Supplies and Services,Other Hired And Contracted Services,265,30/10/2020,2010-00671,0.00,70.00,R,ALEX WAGG,No
Http://opendatacommunities.org/id/metropolitan-district-council/leeds,Leeds City Council,31/10/2020,Communities and Environment,Elections  Licensing and Registration,Income,Admissions  Booking Fees & Ticket Sales,933,27/10/2020,2010-00672,0.00,417.00,R,REDACTED PERSONAL DATA,No
Http://opendatacommunities.org/id/metropolitan-district-council/leeds,Leeds City Council,31/10/2020,Adults and Health,Services For Older People - 65 And Over,Third Party Payments,Residential Care Dementia,571,14/10/2020,2010-00673,0.00,14105.48,R,ALEXANDER RESIDENTIAL HOME,No
Http://opendatacommunities.org/id/metropolitan-district-council/leeds,Leeds City Council,31/10/2020,Adults and Health,Services For Older People - 65 And Over,Third Party Payments,Residential,580,14/10/2020,2010-00674,0.00,12713.92,R,ALEXANDER RESIDENTIAL HOME,No
Http://opendatacommunities.org/id/metropolitan-district-council/leeds,Leeds City Council,31/10/2020,Communities and Environment,Customer Access,Supplies and Services,Bought In Professional Services,277,21/10/2020,2010-00675,0.00,18.00,R,Alexandra Costenco,No
Http://opendatacommunities.org/id/metropolitan-district-council/leeds,Leeds City Council,31/10/2020,Children and Families,Social Care,Support Services,Legal Disbursements,411,23/10/2020,2010-00676,0.00,90.00,R,Alexandra Costenco,No
Http://opendatacommunities.org/id/metropolitan-district-council/leeds,Leeds City Council,31/10/2020,Adults and Health,Services For Older People - 65 And Over,Third Party Payments,Residential Care Dementia,571,14/10/2020,2010-00677,0.00,3199.60,R,ALEXANDRA COURT,No
Http://opendatacommunities.org/id/metropolitan-district-council/leeds,Leeds City Council,31/10/2020,Adults and Health,Services For Older People - 65 And Over,Third Party Payments,Residential,580,14/10/2020,2010-00678,0.00,6204.28,R,ALEXANDRA COURT,No
Http://opendatacommunities.org/id/metropolitan-district-council/leeds,Leeds City Council,31/10/2020,Adults and Health,Other Adult Services,Third Party Payments,Residential,580,20/10/2020,2010-00679,0.00,3360.00,R,Alexandra Court Residential Home,No
Http://opendatacommunities.org/id/metropolitan-district-council/leeds,Leeds City Council,31/10/2020,Communities and Environment,Benefits  Wlefare and Poverty,Supplies and Services,Grant Related Expenditure,290,29/10/2020,2010-00680,0.00,500.00,R,REDACTED PERSONAL DATA,No
Http://opendatacommunities.org/id/metropolitan-district-council/leeds,Leeds City Council,31/10/2020,Children and Families,Social Care,Third Party Payments,Services Rendered By Other Organisations,511,07/10/2020,2010-00681,0.00,514.80,R,REDACTED PERSONAL DATA,No
Http://opendatacommunities.org/id/metropolitan-district-council/leeds,Leeds City Council,31/10/2020,Adults and Health,Services For Older People - 65 And Over  ,Supplies and Services,Clothing & Uniforms,241,21/09/2020,2010-00682,0.00,-2.87,R,Alexandra Website,Yes
Http://opendatacommunities.org/id/metropolitan-district-council/leeds,Leeds City Council,31/10/2020,Adults and Health,Services For Older People - 65 And Over  ,Supplies and Services,Operational Furniture And Equipment,203,22/09/2020,2010-00683,0.00,7.80,R,Alexandra Website,Yes
Http://opendatacommunities.org/id/metropolitan-district-council/leeds,Leeds City Council,31/10/2020,Adults and Health,Home Care Services  ,Supplies and Services,Clothing & Uniforms,241,22/09/2020,2010-00684,0.00,5.00,R,Alexandra Website,Yes
Http://opendatacommunities.org/id/metropolitan-district-council/leeds,Leeds City Council,31/10/2020,Resources and Housing,Leeds Building Services,Supplies and Services,Other Hired And Contracted Services,265,02/10/2020,2010-00685,0.00,1378.50,R,Alfred Bagnall & Sons (Leeds) Ltd,No
Http://opendatacommunities.org/id/metropolitan-district-council/leeds,Leeds City Council,31/10/2020,Resources and Housing,Leeds Building Services,Supplies and Services,Other Hired And Contracted Services,265,02/10/2020,2010-00686,0.00,1378.50,R,Alfred Bagnall & Sons (Leeds) Ltd,No
Http://opendatacommunities.org/id/metropolitan-district-council/leeds,Leeds City Council,31/10/2020,Children and Families,Social Care,Premises,Repairs & Adapts - Buildings,191,02/10/2020,2010-00687,0.00,1900.00,R,Alfred Bagnall & Sons (Leeds) Ltd,No
Http://opendatacommunities.org/id/metropolitan-district-council/leeds,Leeds City Council,31/10/2020,Resources and Housing,Leeds Building Services,Supplies and Services,Other Hired And Contracted Services,265,05/10/2020,2010-00688,0.00,1389.00,R,Alfred Bagnall & Sons (Leeds) Ltd,No
Http://opendatacommunities.org/id/metropolitan-district-council/leeds,Leeds City Council,31/10/2020,Children and Families,Social Care,Supplies and Services,Other Hired And Contracted Services,265,06/10/2020,2010-00689,0.00,5936.24,R,Alfred Bagnall & Sons (Leeds) Ltd,No
Http://opendatacommunities.org/id/metropolitan-district-council/leeds,Leeds City Council,31/10/2020,Children and Families,Social Care,Supplies and Services,Crockery  Cutlery & Utensils,221,15/10/2020,2010-00690,0.00,1380.00,R,Alfred Bagnall & Sons (Leeds) Ltd,No
Http://opendatacommunities.org/id/metropolitan-district-council/leeds,Leeds City Council,31/10/2020,Resources and Housing,Leeds Building Services,Supplies and Services,Other Hired And Contracted Services,265,20/10/2020,2010-00691,0.00,2300.00,R,Alfred Bagnall & Sons (Leeds) Ltd,No
Http://opendatacommunities.org/id/metropolitan-district-council/leeds,Leeds City Council,31/10/2020,Resources and Housing,Leeds Building Services,Supplies and Services,Other Hired And Contracted Services,265,27/10/2020,2010-00692,0.00,3950.00,R,Alfred Bagnall & Sons (Leeds) Ltd,No
Http://opendatacommunities.org/id/metropolitan-district-council/leeds,Leeds City Council,31/10/2020,Resources and Housing,Leeds Building Services,Supplies and Services,Other Hired And Contracted Services,265,30/10/2020,2010-00693,0.00,3038.91,R,Alfred Bagnall & Sons (Leeds) Ltd,No
Http://opendatacommunities.org/id/metropolitan-district-council/leeds,Leeds City Council,31/10/2020,Communities and Environment,Customer Access,Supplies and Services,Bought In Professional Services,277,08/10/2020,2010-00694,0.00,40.70,R,Ali Pourakaberian,No
Http://opendatacommunities.org/id/metropolitan-district-council/leeds,Leeds City Council,31/10/2020,Communities and Environment,Customer Access,Supplies and Services,Bought In Professional Services,277,14/10/2020,2010-00695,0.00,13.50,R,Ali Pourakaberian,No
Http://opendatacommunities.org/id/metropolitan-district-council/leeds,Leeds City Council,31/10/2020,Communities and Environment,Customer Access,Supplies and Services,Bought In Professional Services,277,21/10/2020,2010-00696,0.00,149.68,R,Ali Pourakaberian,No
Http://opendatacommunities.org/id/metropolitan-district-council/leeds,Leeds City Council,31/10/2020,Communities and Environment,Customer Access,Supplies and Services,Bought In Professional Services,277,21/10/2020,2010-00697,0.00,18.00,R,Ali Pourakaberian,No
Http://opendatacommunities.org/id/metropolitan-district-council/leeds,Leeds City Council,31/10/2020,Communities and Environment,Customer Access,Supplies and Services,Bought In Professional Services,277,21/10/2020,2010-00698,0.00,9.00,R,Ali Pourakaberian,No
Http://opendatacommunities.org/id/metropolitan-district-council/leeds,Leeds City Council,31/10/2020,Communities and Environment,Customer Access,Supplies and Services,Bought In Professional Services,277,21/10/2020,2010-00699,0.00,18.00,R,Ali Pourakaberian,No
Http://opendatacommunities.org/id/metropolitan-district-council/leeds,Leeds City Council,31/10/2020,Communities and Environment,Customer Access,Supplies and Services,Bought In Professional Services,277,21/10/2020,2010-00700,0.00,27.00,R,Ali Pourakaberian,No
Http://opendatacommunities.org/id/metropolitan-district-council/leeds,Leeds City Council,31/10/2020,Communities and Environment,Customer Access,Supplies and Services,Bought In Professional Services,277,21/10/2020,2010-00701,0.00,18.00,R,Ali Pourakaberian,No
Http://opendatacommunities.org/id/metropolitan-district-council/leeds,Leeds City Council,31/10/2020,Communities and Environment,Customer Access,Supplies and Services,Bought In Professional Services,277,28/10/2020,2010-00702,0.00,18.00,R,Ali Pourakaberian,No
Http://opendatacommunities.org/id/metropolitan-district-council/leeds,Leeds City Council,31/10/2020,Communities and Environment,Customer Access,Supplies and Services,Bought In Professional Services,277,28/10/2020,2010-00703,0.00,45.00,R,Ali Pourakaberian,No
Http://opendatacommunities.org/id/metropolitan-district-council/leeds,Leeds City Council,31/10/2020,Communities and Environment,Customer Access,Supplies and Services,Bought In Professional Services,277,28/10/2020,2010-00704,0.00,21.30,R,Ali Pourakaberian,No
Http://opendatacommunities.org/id/metropolitan-district-council/leeds,Leeds City Council,31/10/2020,Adults and Health,Social Services Support Services,Employees,Training & Development,70,30/10/2020,2010-00705,0.00,18.00,R,REDACTED PERSONAL DATA,No
Http://opendatacommunities.org/id/metropolitan-district-council/leeds,Leeds City Council as Accountable Body,31/10/2020,Social Services Pooled Budgets,Jcs For People With Learning Disabilitie,Transfer Payments,Direct payments,626,14/10/2020,2010-00706,0.00,2243.79,R,REDACTED PERSONAL DATA,No
Http://opendatacommunities.org/id/metropolitan-district-council/leeds,Leeds City Council,31/10/2020,City Development,Libraries  Arts & Heritage,Supplies and Services,Bought In Professional Services,277,23/10/2020,2010-00707,0.00,1496.00,R,Alice Mary Duggan,No
Http://opendatacommunities.org/id/metropolitan-district-council/leeds,Leeds City Council,31/10/2020,Children and Families,Social Care,Third Party Payments,Section 17,551,23/10/2020,2010-00708,0.00,27.00,R,REDACTED PERSONAL DATA,No
Http://opendatacommunities.org/id/metropolitan-district-council/leeds,Leeds City Council,31/10/2020,Children and Families,Social Care,Transfer Payments,Leaving Care Grants,635,02/10/2020,2010-00709,0.00,100.00,R,REDACTED PERSONAL DATA,No
Http://opendatacommunities.org/id/metropolitan-district-council/leeds,Leeds City Council,31/10/2020,Children and Families,Social Care,Transfer Payments,Leaving Care Allowances,634,21/10/2020,2010-00710,0.00,500.00,R,REDACTED PERSONAL DATA,No
Http://opendatacommunities.org/id/metropolitan-district-council/leeds,Leeds City Council,31/10/2020,Children and Families,Social Care,Third Party Payments,Services Rendered By Other Organisations,511,02/10/2020,2010-00711,0.00,569.40,R,REDACTED PERSONAL DATA,No
Http://opendatacommunities.org/id/metropolitan-district-council/leeds,Leeds City Council,31/10/2020,Communities and Environment,Waste Management,Supplies and Services,Publication And Promotion,267,02/10/2020,2010-00712,0.00,30.00,R,REDACTED PERSONAL DATA,No
Http://opendatacommunities.org/id/metropolitan-district-council/leeds,Leeds City Council,31/10/2020,Resources and Housing,Strategic Housing Partnership & Support,Supplies and Services,Other Hired And Contracted Services,265,01/10/2020,2010-00713,0.00,684.65,R,Alison L Dixon,No
Http://opendatacommunities.org/id/metropolitan-district-council/leeds,Leeds City Council,31/10/2020,Strategic Landlord,Property and Contracts,Supplies and Services,Insurance Claims,248,09/10/2020,2010-00714,0.00,7000.00,R,Alison Law Solicitors,No
Http://opendatacommunities.org/id/metropolitan-district-council/leeds,Leeds City Council,31/10/2020,Strategic Landlord,Property and Contracts,Support Services,Legal Disbursements,411,20/10/2020,2010-00715,0.00,2500.00,R,Alison Law Solicitors,No
Http://opendatacommunities.org/id/metropolitan-district-council/leeds,Leeds City Council,31/10/2020,Adults and Health,Services For Adults Under 65 Mental/Dis,Third Party Payments,Home Care,568,02/10/2020,2010-00716,0.00,316.50,R,All Seasons Home Care,No
Http://opendatacommunities.org/id/metropolitan-district-council/leeds,Leeds City Council,31/10/2020,Adults and Health,Services For Adults Under 65 Mental/Dis,Third Party Payments,Home Care,568,30/10/2020,2010-00717,0.00,306.00,R,All Seasons Home Care,No
Http://opendatacommunities.org/id/metropolitan-district-council/leeds,Leeds City Council,31/10/2020,Strategic Accounts,Miscellaneous,Supplies and Services,Non-Recurring Grants,227,05/10/2020,2010-00718,0.00,300.00,R,All Stars Badminton Club,No
Http://opendatacommunities.org/id/metropolitan-district-council/leeds,Leeds City Council,31/10/2020,Children and Families,Social Care,Third Party Payments,Services Rendered By Other Organisations,511,02/10/2020,2010-00719,0.00,9181.57,R,All Stars Childcare,No
Http://opendatacommunities.org/id/metropolitan-district-council/leeds,Leeds City Council,31/10/2020,Children and Families,Social Care,Third Party Payments,Services Rendered By Other Organisations,511,07/10/2020,2010-00720,0.00,1029.60,R,All Stars Childcare,No
Http://opendatacommunities.org/id/metropolitan-district-council/leeds,Leeds City Council,31/10/2020,Adults and Health,Services For Adults Under 65 Mental/Dis,Supplies and Services,Operational Furniture And Equipment,203,29/10/2020,2010-00721,0.00,106.92,R,ALLANSOUND COMMUNICATIONS,No
Http://opendatacommunities.org/id/metropolitan-district-council/leeds,Leeds City Council,31/10/2020,City Development,Libraries  Arts & Heritage,Supplies and Services,Other Hired And Contracted Services,265,14/10/2020,2010-00722,0.00,274.30,R,ALLEGRO FILM,No
Http://opendatacommunities.org/id/metropolitan-district-council/leeds,Leeds City Council as Accountable Body,31/10/2020,Social Services Pooled Budgets,Jcs For People With Learning Disabilitie,Third Party Payments,Sheltered Accommodation,569,14/10/2020,2010-00723,0.00,18652.98,R,Allerton Avenue,No
Http://opendatacommunities.org/id/metropolitan-district-council/leeds,Leeds City Council,31/10/2020,Adults and Health,Services For Older People - 65 And Over,Third Party Payments,Nursing Care Dementia,574,14/10/2020,2010-00724,0.00,2320.36,R,ALLERTON PARK N H,No
Http://opendatacommunities.org/id/metropolitan-district-council/leeds,Leeds City Council,31/10/2020,Resources and Housing,Finance,Supplies and Services,Bank Charges,263,06/10/2020,2010-00725,0.00,82.12,R,ALLIANCE & LEICESTER COMMERCIAL BANK,No
Http://opendatacommunities.org/id/metropolitan-district-council/leeds,Leeds City Council,31/10/2020,Resources and Housing,Finance,Supplies and Services,Bank Charges,263,06/10/2020,2010-00726,0.00,100.14,R,ALLIANCE & LEICESTER COMMERCIAL BANK,No
Http://opendatacommunities.org/id/metropolitan-district-council/leeds,Leeds City Council,31/10/2020,Resources and Housing,Commercial Services,Supplies and Services,Operational Materials,205,07/10/2020,2010-00727,0.00,141.35,R,ALLIANCE DISPOSABLES LTD,No
Http://opendatacommunities.org/id/metropolitan-district-council/leeds,Leeds City Council,31/10/2020,City Development,Recreation,Supplies and Services,Operational Furniture And Equipment,203,15/10/2020,2010-00728,0.00,99.00,R,Alliance Leisure Service Ltd,No
Http://opendatacommunities.org/id/metropolitan-district-council/leeds,Leeds City Council,31/10/2020,City Development,Recreation,Supplies and Services,Publication And Promotion,267,29/10/2020,2010-00729,0.00,1235.00,R,Alliance Leisure Service Ltd,No
Http://opendatacommunities.org/id/metropolitan-district-council/leeds,Leeds City Council,31/10/2020,City Development,Highways,Supplies and Services,Other Hired And Contracted Services,265,20/10/2020,2010-00730,0.00,4816.40,R,ALLIED EXPLORATION & GEOTECHNICS LTD,No
Http://opendatacommunities.org/id/metropolitan-district-council/leeds,Leeds City Council,31/10/2020,Adults and Health,Services For Older People - 65 And Over,Third Party Payments,Home Care,568,07/10/2020,2010-00731,0.00,778.40,R,Allied Healthcare,No
Http://opendatacommunities.org/id/metropolitan-district-council/leeds,Leeds City Council,31/10/2020,Adults and Health,Services For Older People - 65 And Over,Third Party Payments,Home Care,568,07/10/2020,2010-00732,0.00,4731.93,R,Allied Healthcare,No
Http://opendatacommunities.org/id/metropolitan-district-council/leeds,Leeds City Council,31/10/2020,Adults and Health,Services For Older People Under 65 P/Dis,Third Party Payments,Home Care,568,07/10/2020,2010-00733,0.00,1451.16,R,Allied Healthcare,No
Http://opendatacommunities.org/id/metropolitan-district-council/leeds,Leeds City Council,31/10/2020,Adults and Health,Services For Older People - 65 And Over,Third Party Payments,Home Care,568,07/10/2020,2010-00734,0.00,12011.05,R,Allied Healthcare,No
Http://opendatacommunities.org/id/metropolitan-district-council/leeds,Leeds City Council,31/10/2020,Adults and Health,Services For Older People Under 65 P/Dis,Third Party Payments,Home Care,568,07/10/2020,2010-00735,0.00,2945.12,R,Allied Healthcare,No
Http://opendatacommunities.org/id/metropolitan-district-council/leeds,Leeds City Council,31/10/2020,Adults and Health,Services For Adults Under 65 Mental/Dis,Third Party Payments,Home Care,568,07/10/2020,2010-00736,0.00,561.50,R,Allied Healthcare,No
Http://opendatacommunities.org/id/metropolitan-district-council/leeds,Leeds City Council,31/10/2020,Adults and Health,Services For Older People - 65 And Over,Third Party Payments,Home Care,568,07/10/2020,2010-00737,0.00,12669.81,R,Allied Healthcare,No
Http://opendatacommunities.org/id/metropolitan-district-council/leeds,Leeds City Council,31/10/2020,Adults and Health,Services For Older People Under 65 P/Dis,Third Party Payments,Home Care,568,07/10/2020,2010-00738,0.00,1143.18,R,Allied Healthcare,No
Http://opendatacommunities.org/id/metropolitan-district-council/leeds,Leeds City Council,31/10/2020,Adults and Health,Services For Older People - 65 And Over,Third Party Payments,HCAIT Other,577,07/10/2020,2010-00739,0.00,52.20,R,Allied Healthcare,No
Http://opendatacommunities.org/id/metropolitan-district-council/leeds,Leeds City Council,31/10/2020,Adults and Health,Services For Older People Under 65 P/Dis,Third Party Payments,HCAIT Other,577,07/10/2020,2010-00740,0.00,346.26,R,Allied Healthcare,No
Http://opendatacommunities.org/id/metropolitan-district-council/leeds,Leeds City Council,31/10/2020,Adults and Health,Services For Adults Under 65 Mental/Dis,Third Party Payments,Home Care,568,14/10/2020,2010-00741,0.00,522.00,R,Allied Healthcare,No
Http://opendatacommunities.org/id/metropolitan-district-council/leeds,Leeds City Council,31/10/2020,Adults and Health,Services For Older People - 65 And Over,Third Party Payments,Home Care,568,14/10/2020,2010-00742,0.00,27000.98,R,Allied Healthcare,No
Http://opendatacommunities.org/id/metropolitan-district-council/leeds,Leeds City Council,31/10/2020,Adults and Health,Services For Older People Under 65 P/Dis,Third Party Payments,Home Care,568,14/10/2020,2010-00743,0.00,5572.52,R,Allied Healthcare,No
Http://opendatacommunities.org/id/metropolitan-district-council/leeds,Leeds City Council,31/10/2020,Adults and Health,Services For Older People - 65 And Over,Third Party Payments,HCAIT Other,577,14/10/2020,2010-00744,0.00,222.02,R,Allied Healthcare,No
Http://opendatacommunities.org/id/metropolitan-district-council/leeds,Leeds City Council as Accountable Body,31/10/2020,Social Services Pooled Budgets,Jcs For People With Learning Disabilitie,Third Party Payments,Home Care,568,27/10/2020,2010-00745,0.00,302.41,R,Allied Healthcare,No
Http://opendatacommunities.org/id/metropolitan-district-council/leeds,Leeds City Council,31/10/2020,Children and Families,Social Care,Third Party Payments,Services Rendered By Voluntary Sector,505,27/10/2020,2010-00746,0.00,256.50,R,Allied Healthcare,No
Http://opendatacommunities.org/id/metropolitan-district-council/leeds,Leeds City Council,31/10/2020,Communities and Environment,Customer Access,Supplies and Services,Printing,215,28/10/2020,2010-00747,0.00,2418.21,R,Allied Publicity Services,No
Http://opendatacommunities.org/id/metropolitan-district-council/leeds,Leeds City Council,31/10/2020,Children and Families,Social Care,Third Party Payments,Services Rendered By Other Organisations,511,02/10/2020,2010-00748,0.00,738.76,R,REDACTED PERSONAL DATA,No
Http://opendatacommunities.org/id/metropolitan-district-council/leeds,Leeds City Council,31/10/2020,Resources and Housing,Finance,Supplies and Services,Bank Charges,263,06/10/2020,2010-00749,0.00,3059.12,R,Allpay Limted,No
Http://opendatacommunities.org/id/metropolitan-district-council/leeds,Leeds City Council,31/10/2020,Resources and Housing,Finance,Supplies and Services,Bank Charges,263,06/10/2020,2010-00750,0.00,9868.44,R,Allpay Limted,No
Http://opendatacommunities.org/id/metropolitan-district-council/leeds,Leeds City Council,31/10/2020,Resources and Housing,Finance,Supplies and Services,Bank Charges,263,06/10/2020,2010-00751,0.00,245.51,R,Allpay Limted,No
Http://opendatacommunities.org/id/metropolitan-district-council/leeds,Leeds City Council,31/10/2020,Resources and Housing,Finance,Supplies and Services,Bank Charges,263,06/10/2020,2010-00752,0.00,6.24,R,Allpay Limted,No
Http://opendatacommunities.org/id/metropolitan-district-council/leeds,Leeds City Council,31/10/2020,Resources and Housing,Finance,Supplies and Services,Bank Charges,263,06/10/2020,2010-00753,0.00,2680.56,R,Allpay Limted,No
Http://opendatacommunities.org/id/metropolitan-district-council/leeds,Leeds City Council,31/10/2020,Resources and Housing,Finance,Supplies and Services,Bank Charges,263,06/10/2020,2010-00754,0.00,119.90,R,Allpay Limted,No
Http://opendatacommunities.org/id/metropolitan-district-council/leeds,Leeds City Council,31/10/2020,Adults and Health,Services For Older People Under 65 P/Dis,Supplies and Services,Operational Materials,205,06/10/2020,2010-00755,0.00,98.09,R,Allpay Limted,No
Http://opendatacommunities.org/id/metropolitan-district-council/leeds,Leeds City Council,31/10/2020,Resources and Housing,Finance,Supplies and Services,Bank Charges,263,30/10/2020,2010-00756,0.00,2714.04,R,Allpay Limted,No
Http://opendatacommunities.org/id/metropolitan-district-council/leeds,Leeds City Council,31/10/2020,Resources and Housing,Finance,Supplies and Services,Bank Charges,263,30/10/2020,2010-00757,0.00,9607.17,R,Allpay Limted,No
Http://opendatacommunities.org/id/metropolitan-district-council/leeds,Leeds City Council,31/10/2020,Resources and Housing,Finance,Supplies and Services,Bank Charges,263,30/10/2020,2010-00758,0.00,3109.91,R,Allpay Limted,No
Http://opendatacommunities.org/id/metropolitan-district-council/leeds,Leeds City Council,31/10/2020,Resources and Housing,Finance,Supplies and Services,Bank Charges,263,30/10/2020,2010-00759,0.00,235.07,R,Allpay Limted,No
Http://opendatacommunities.org/id/metropolitan-district-council/leeds,Leeds City Council,31/10/2020,Resources and Housing,Finance,Supplies and Services,Bank Charges,263,30/10/2020,2010-00760,0.00,12.31,R,Allpay Limted,No
Http://opendatacommunities.org/id/metropolitan-district-council/leeds,Leeds City Council,31/10/2020,Resources and Housing,Finance,Supplies and Services,Bank Charges,263,30/10/2020,2010-00761,0.00,129.11,R,Allpay Limted,No
Http://opendatacommunities.org/id/metropolitan-district-council/leeds,Leeds City Council,31/10/2020,Adults and Health,Services For Older People Under 65 P/Dis,Supplies and Services,Operational Materials,205,30/10/2020,2010-00762,0.00,111.73,R,Allpay Limted,No
Http://opendatacommunities.org/id/metropolitan-district-council/leeds,Leeds City Council,31/10/2020,Children and Families,Social Care  ,Supplies and Services,Food & Drink,231,04/09/2020,2010-00763,0.00,22.00,R,Allsorts Discount Stor,Yes
Http://opendatacommunities.org/id/metropolitan-district-council/leeds,Leeds City Council,31/10/2020,Children and Families,Social Care  ,Supplies and Services,Operational Furniture And Equipment,203,14/09/2020,2010-00764,0.00,19.28,R,Allsorts Discount Stor,Yes
Http://opendatacommunities.org/id/metropolitan-district-council/leeds,Leeds City Council,31/10/2020,Children and Families,Social Care  ,Supplies and Services,Operational Furniture And Equipment,203,28/09/2020,2010-00765,0.00,54.52,R,Allsorts Discount Store,Yes
Http://opendatacommunities.org/id/metropolitan-district-council/leeds,Leeds City Council,31/10/2020,Communities and Environment,Parks and Countryside,Transport,Fuel (Non LCC Supplies),321,07/10/2020,2010-00766,0.00,481.62,R,Allstar Business Solutions Ltd,No
Http://opendatacommunities.org/id/metropolitan-district-council/leeds,Leeds City Council,31/10/2020,Children and Families,Learning,Transport,Fuel (Non LCC Supplies),321,07/10/2020,2010-00767,0.00,395.86,R,Allstar Business Solutions Ltd,No
Http://opendatacommunities.org/id/metropolitan-district-council/leeds,Leeds City Council,31/10/2020,City Development,Highways,Transport,Fuel (Non LCC Supplies),321,07/10/2020,2010-00768,0.00,257.09,R,Allstar Business Solutions Ltd,No
